Workbook

Sheet 1. ФАСАД
B2: Прайс-лист Товаров Продуктовой группы раздела «Фасад» Цены действительны c 01.10.2021 г.
A3: Артикул | B3: Наименование продукта | C3: Произ-водство | D3: Область применения | E3: Вид материала | F3: Основа материала | G3: Упаковка | J3: Расчетный расход продукта | M3: Цена БЕЗ учета НДС за единицу измерения | N3: Цена с НДС за единицу измерения | O3: Цена с НДС за 1м² (при min расходе) | P3: Цена с НДС за упаковку | Q3: Кол-во единиц товара | R3: Сумма заказа с НДС | S3: Наличие на складе | T3: Рекомендованный ассортимент | U3: Количество упаковок на паллете, шт. | V3: Вес одного паллето-места (без палеты), кг. | W3: Норма загрузки авто (20 т.) шт. | X3: Краткое описание продукта
G4: к-во | H4: ед. | I4: вид упаковки | J4: от | K4: до | L4: единица измерения
A5: 00861-002 | B5: StoPlex W | C5: DE | D5: фасад | E5: грунт проникающий | F5: акрил-силоксан | G5: 20 | H5: л | I5: Канистра | J5: 0.1 | K5: 0.4 | L5: л/м² | M5: 314.8398605 | N5: =M5*1.2 -> 377.8078326 | O5: =$N5*$J5 -> 37.78078326 | P5: =$N5*$G5 -> 7556.156652 | R5: =Q5*P5 -> 0 | S5: ● | T5: ● | U5: 24 | V5: 498.72 | W5: 792 | X5: универсальная водоразбавимая грунтовка на акрилатной основе, усиленная силоксаном (гидрофобизирующий эффект). Разбавляется водой в соотношении 1:1
A6: 00861-001 | B6: StoPlex W | C6: DE | D6: фасад | E6: грунт проникающий | F6: акрил-силоксан | G6: 10 | H6: л | I6: Канистра | J6: 0.1 | K6: 0.4 | L6: л/м² | M6: 323.1489928 | N6: =M6*1.2 -> 387.7787914 | O6: =$N6*$J6 -> 38.77787914 | P6: =$N6*$G6 -> 3877.787914 | R6: =Q6*P6 -> 0 | U6: 60 | V6: 623.4 | W6: 1740
A7: 00861_012 | B7: StoPrim Solid | C7: RU | D7: универсальный | E7: грунт проникающий | F7: акрил | G7: 5 | H7: л | I7: Канистра | J7: 0.02 | K7: 0.08 | L7: л/м² | M7: 495.4635 | N7: 594.5562 | O7: 11.891124 | P7: 2972.781 | R7: =Q7*P7 -> 0 | S7: ● | T7: ● | U7: 96 | V7: 498.72 | W7: 3168 | X7: универсальная водорастворимая грунтовка - концентрат на основе акрилата с модифицирующими добавками. Разбавляется водой в соотношении 1:4. Глубоко проникает, хорошо укрепляет основание.
A8: 00810-015 | B8: StoPrim Micro | C8: DE | D8: фасад | E8: грунт проникающий | F8: силикон | G8: 3 | H8: л | I8: Канистра | J8: 0.02 | K8: 0.1 | L8: л/м² | M8: 9027.398115 | N8: 10832.87774 | O8: 216.6575548 | P8: 32498.63321 | R8: 0 | U8: 150 | V8: 469.35 | W8: 4950 | X8: глубокопроникающий грунтовочный концентрат на основе силиконовой микроэмульсии, предназначена для проблемных оснований, разбавляется водой 1:10
A9: 00870-006 | B9: StoPrim Silikat | C9: DE | D9: универсальный | E9: грунт проникающий | F9: силикат | G9: 10 | H9: л | I9: Канистра | J9: 0.15 | K9: 0.8 | L9: л/м² | M9: 292.11 | N9: 350.532 | O9: 52.5798 | P9: 3505.32 | R9: 0 | U9: 60 | V9: 653.4 | W9: 1680 | X9: водоразбавимая бесцветная грунтовка на силикатной основе, идеальна для минеральных покрытий
A10: 00870-047 | B10: StoPrim Sol GT | C10: DE | D10: универсальный | E10: грунт проникающий | F10: силикат | G10: 15 | H10: л | I10: Канистра | J10: 0.1 | K10: 0.6 | L10: л/м² | M10: 356.9072626 | N10: 428.2887151 | O10: 42.82887151 | P10: 6424.330727 | R10: 0 | U10: 24 | V10: 463.2 | W10: 792 | X10: водоразбавимая бесцветная грунтовка на силикатной основе, идеальна для минеральных и органических оснований. Гелевая консистенция минимизурующая капание
A11: 00856-013 | B11: StoPrim Grundex | C11: DE | D11: фасад | E11: грунт проникающий | F11: растворитель | G11: 20 | H11: л | I11: Канистра | J11: 0.2 | K11: 1 | L11: л/м² | M11: 1067.541329 | N11: 1281.049595 | O11: 256.209919 | P11: 25620.9919 | R11: 0 | S11: ● | U11: 24 | V11: 408 | W11: 792 | X11: особоглубокопроникающая бесцветная грунтовка на основе полимерных смол, содержит растворитель, предназначена для проблемных оснований, активно защищает от выхода солей на поверхность, возможно применение на гипсовых основаниях
A12: 00856-012 | B12: StoPrim Grundex | C12: DE | D12: фасад | E12: грунт проникающий | F12: растворитель | G12: 10 | H12: л | I12: Канистра | J12: 0.2 | K12: 1 | L12: л/м² | M12: 1198.590926 | N12: 1438.309111 | O12: 287.6618221 | P12: 14383.09111 | R12: 0 | S12: ● | T12: ● | U12: 50 | V12: 425 | W12: 1650
A13: 01304-005 | B13: StoPrim Isol | C13: DE | D13: универсальный | E13: грунт изолирующий | F13: акрил | G13: 15 | H13: л | I13: Ведро | J13: 0.1 | K13: 0.4 | L13: л/м² | M13: 842.09 | N13: 1010.508 | O13: 101.0508 | P13: 15157.62 | R13: 0 | U13: 24 | V13: 441.36 | W13: 792 | X13: водоразбавимая изолирующая грунтовка на акрилатной основе
A14: 01304-006 | B14: StoPrim Isol | C14: DE | D14: универсальный | E14: грунт изолирующий | F14: акрил | G14: 5 | H14: л | I14: Ведро | J14: 0.1 | K14: 0.4 | L14: л/м² | M14: 1016.240721 | N14: 1219.488865 | O14: 121.9488865 | P14: 6097.444325 | R14: 0 | T14: ● | U14: 60 | V14: 367.8 | W14: 1980
A15: 00855-003 | B15: StoPrim LP | C15: DE | D15: фасад | E15: грунт изолирующий | F15: растворитель | G15: 12,5 | H15: л | I15: Ведро | J15: 0.13 | K15: 0.15 | L15: л/м² | M15: 1807.61607 | N15: 2169.139285 | O15: 281.988107 | P15: 27114.24106 | R15: 0 | U15: 24 | V15: 454.2 | W15: 792 | X15: изолирующая грунтовка, содержит растворитель
A16: 08401-009 | B16: Sto-Allgrund AF, белая | C16: DE | D16: металл | E16: грунт антикоррозионный | F16: растворитель | G16: 2,5 | H16: л | I16: Банка | J16: 0.15 | K16: 0.2 | L16: л/м² | M16: 2347.748445 | N16: 2817.298134 | O16: 422.5947201 | P16: 7043.245335 | R16: 0 | T16: ● | U16: 144 | V16: 575.712 | W16: 4464 | X16: быстросохнущая антикоррозионная грунтовка на основе алкидных смол, содержит растворитель, хорошие адгезионные свойства при нанесении на цинк, оцинкованную сталь, алюминий
A17: 08401-011 | B17: Sto-Allgrund AF getönt (колерованная) | C17: DE | D17: металл | E17: грунт антикоррозионный | F17: растворитель | G17: 2.5 | H17: л | I17: Банка | J17: 0.15 | K17: 0.2 | L17: л/м² | M17: 2898.63 | N17: 3478.356 | O17: 521.7534 | P17: 8695.89 | R17: 0 | U17: 144 | V17: 575.712 | W17: 4464
A18: 00889-005 | B18: StoPrim Fungal | C18: DE | D18: универсальный | E18: биоцид | F18: вода | G18: 20 | H18: л | I18: Канистра | J18: 0.15 | K18: 0.2 | L18: л/м² | M18: 300.2413433 | N18: 360.289612 | O18: 54.0434418 | P18: 7205.79224 | R18: 0 | S18: ● | U18: 24 | V18: 498.72 | W18: 792 | X18: водоразбавимый дезинфицирующий раствор для обработки поверхностей, пораженных водорослями и/или грибком
A19: 00889-001 | B19: StoPrim Fungal | C19: DE | D19: универсальный | E19: биоцид | F19: вода | G19: 10 | H19: л | I19: Канистра | J19: 0.15 | K19: 0.2 | L19: л/м² | M19: 325.815 | N19: 390.978 | O19: 58.6467 | P19: 3909.78 | R19: 0 | S19: ● | U19: 60 | V19: 623.4 | W19: 1740
A20: 00515-001 | B20: StoSilco HC | C20: DE | D20: фасад | E20: гидрофобизатор | F20: силикон | G20: 25 | H20: кг | I20: Ведро | J20: 0.1 | K20: 0.2 | L20: кг/м² | M20: 3067.155 | N20: 3680.586 | O20: 368.0586 | P20: 92014.65 | R20: 0 | U20: 24 | V20: 648 | W20: 672 | X20: пропитывающий водоотталкивающий крем на основе силана, не содержит растворителя. Используется для защиты, в т.ч. и как финишное покрытие для кирпичной кладки.
A21: 00801_118 | B21: Sto-Putzgrund natur (натурального цвета) | C21: RU | D21: универсальный | E21: грунт адгезионный | F21: акрил | G21: 23 | H21: кг | I21: Ведро | J21: 0.2 | K21: 0.3 | L21: кг/м² | M21: 192.192 | N21: 230.6304 | O21: 46.12608 | P21: 5304.4992 | R21: 0 | T21: ● | U21: 24 | V21: 568.008 | W21: 768 | X21: органическая адгезионная грунтовка с наполнителем (кварцевый песок) для последующего нанесения органических и силиконовых покрытий
A22: 00801_122 | B22: Sto-Putzgrund getönt (колерованная) C1 | C22: RU | D22: универсальный | E22: грунт адгезионный | F22: акрил | G22: 23 | H22: кг | I22: Ведро | J22: 0.2 | K22: 0.3 | L22: кг/м² | M22: =M21+34 -> 226.192 | N22: 271.4304 | O22: 54.28608 | P22: 6242.8992 | R22: 0 | U22: 24 | V22: 568.008 | W22: 768
A23: 00804-001 | B23: StoPrep Miral natur (натурального цвета) | C23: DE | D23: фасад | E23: грунт адгезионный | F23: силикат | G23: 25 | H23: кг | I23: Ведро | J23: 0.2 | K23: 0.4 | L23: кг/м² | M23: 379.2705767 | N23: 455.124692 | O23: 91.02493841 | P23: 11378.1173 | R23: 0 | S23: ● | U23: 24 | V23: 616.2 | W23: 696 | X23: силикатное пигментированное промежуточное покрытие с наполнителем (кварцевый песок)
A24: 00804-020 | B24: StoPrep Miral getönt (колерованное) C1 | C24: DE | D24: фасад | E24: грунт адгезионный | F24: силикат | G24: 25 | H24: кг | I24: Ведро | J24: 0.2 | K24: 0.4 | L24: кг/м² | M24: 450.2005084 | N24: 540.2406101 | O24: 108.048122 | P24: 13506.01525 | R24: 0 | U24: 24 | V24: 616.2 | W24: 696
A25: 00517-001 | B25: StoPrim Color weiss (белая) | C25: DE | D25: универсальный | E25: грунт адгезионный | F25: акрил | G25: 15 | H25: л | I25: Ведро | J25: 0.15 | K25: 0.2 | L25: л/м² | M25: 618.6938758 | N25: 742.4326509 | O25: 111.3648976 | P25: 11136.48976 | R25: 0 | U25: 24 | V25: 519.84 | W25: 792 | X25: промежуточное покрытие на силиконо-кремниевой основе для твердых, гладких, слабовпитывающих оснований
A26: 00517-008 | B26: StoPrim Color getönt (колерованное) C1 | C26: DE | D26: универсальный | E26: грунт адгезионный | F26: акрил | G26: 15 | H26: л | I26: Ведро | J26: 0.15 | K26: 0.2 | L26: л/м² | M26: 618.6938758 | N26: 742.4326509 | O26: 111.3648976 | P26: 11136.48976 | R26: 0 | U26: 24 | V26: 519.84 | W26: 792
A27: 00884-001 | B27: StoPrep Contact | C27: DE | D27: фасад | E27: грунт адгезионный | F27: акрил | G27: 25 | H27: кг | I27: Ведро | J27: 0.2 | K27: 2 | L27: кг/м² | M27: 298.390365 | N27: 358.068438 | O27: 71.6136876 | P27: 8951.71095 | R27: 0 | U27: 24 | V27: 616.2 | W27: 696 | X27: "адгезионный мостик" для гладких оснований, может смешиваться с цементом
A28: 00747-001 | B28: StoLevell Deco weiss (белая) | C28: DE | D28: универсальный | E28: шпатлевка | F28: акрил | G28: 25 | H28: кг | I28: Ведро | J28: 1.2 | K28: 1.8 | L28: кг/м² | M28: 256.3480608 | N28: 307.617673 | O28: 369.1412076 | P28: 7690.441825 | R28: 0 | S28: ● | T28: ● | U28: 24 | V28: 616.2 | W28: 696 | X28: органическая финишная шпаклевочная масса, колеруется по системе StoColor System, предназначена для всех минеральных и органических оснований
A29: 00747-002 | B29: StoLevell Deco getönt (колерованная) C1 | C29: DE | D29: универсальный | E29: шпатлевка | F29: акрил | G29: 25 | H29: кг | I29: Ведро | J29: 1.2 | K29: 1.8 | L29: кг/м² | M29: =M28+34 -> 290.3480608 | N29: 348.417673 | O29: 418.1012076 | P29: 8710.441825 | R29: 0 | U29: 24 | V29: 616.2 | W29: 696
A30: 00163-006 | B30: Sto-Rissfüller fein (мелкозернистый) | C30: DE | D30: фасад | E30: шпатлевка | F30: акрил | G30: 25 | H30: кг | I30: Ведро | J30: 1 | K30: н/д | L30: кг/м² | M30: 338.4903685 | N30: 406.1884422 | O30: 406.1884422 | P30: 10154.71106 | R30: 0 | U30: 24 | V30: 616.2 | W30: 696 | X30: натурально-белый готовый к применению эластичный материал на основе искусственных смол для тонкослойного поверхностного нанесения и заполнения трещин
A31: 00163-001 | B31: Sto-Rissfüller fein (мелкозернистый) | C31: DE | D31: фасад | E31: шпатлевка | F31: акрил | G31: 8 | H31: кг | I31: Ведро | J31: 1 | K31: н/д | L31: кг/м² | M31: 411.4445998 | N31: 493.7335198 | O31: 493.7335198 | P31: 3949.868159 | R31: 0 | U31: 60 | V31: 492.96 | W31: 1980
A32: 00845-006 | B32: StoMiral FL Vario | C32: DE | D32: универсальный | E32: штукатурка | F32: цемент | G32: 15 | H32: кг | I32: Мешок | J32: 3.2 | K32: 12 | L32: кг/м² | M32: 165.62637 | N32: 198.751644 | O32: 636.0052608 | P32: 2981.27466 | R32: 0 | U32: 42 | V32: 633.78 | W32: 1176 | X32: минеральная, армированная волокнами легкая штукатурка. Для теплоизоляционной кладки из кирпича, а также для смешанной кладки.
A33: 01817-001 | B33: StoSeal F 505 grau (серый), картридж 310 мл | C33: DE | D33: универсальный | E33: герметик | F33: гибридный | G33: 1 | H33: шт. | I33: Картридж | J33: 0.04 | K33: н/д | L33: л/м.п. | M33: 755.6811165 | N33: 906.8173399 | O33: 36.27269359 | P33: 906.8173399 | R33: 0 | S33: ● | U33: 1008 | V33: 951.552 | W33: 19152 | X33: однокомпонентная высокоэластичная масса (герметик) для заполнения фасадных швов
A34: 01817-002 | B34: StoSeal F 505 grau (серый), 600 мл | C34: DE | D34: универсальный | E34: герметик | F34: гибридный | G34: 1 | H34: шт. | I34: Картридж | J34: 0.02 | K34: н/д | L34: л/м.п. | M34: 1188.944261 | N34: 1426.733114 | O34: 28.53466227 | P34: 1426.733114 | R34: 0 | U34: 504 | V34: 907.2 | W34: 10080
A35: 01812-001 | B35: StoSeal F 505 weiss (белый), картридж 310 мл | C35: DE | D35: универсальный | E35: герметик | F35: гибридный | G35: 1 | H35: шт. | I35: Картридж | J35: 0.04 | K35: н/д | L35: л/м.п. | M35: 755.6811165 | N35: 906.8173399 | O35: 36.27269359 | P35: 906.8173399 | R35: 0 | S35: ● | T35: ● | U35: 1008 | V35: 951.552 | W35: 19152
A36: 01812-002 | B36: StoSeal F 505 weiss (белый), 600 мл | C36: DE | D36: универсальный | E36: герметик | F36: гибридный | G36: 1 | H36: шт. | I36: Картридж | J36: 0.02 | K36: н/д | L36: л/м.п. | M36: 1188.944261 | N36: 1426.733114 | O36: 28.53466227 | P36: 1426.733114 | R36: 0 | U36: 504 | V36: 907.2 | W36: 10080
A37: 00780-001 | B37: Sto-Flexyl | C37: DE | D37: универсальный | E37: гидроизоляция | F37: акрил | G37: 18 | H37: кг | I37: Ведро | J37: 0.5 | K37: 3.9 | L37: кг/м² | M37: 660.7452819 | N37: 792.8943383 | O37: 396.4471691 | P37: 14272.09809 | R37: 0 | S37: ● | T37: ● | U37: 24 | V37: 447.984 | W37: 792 | X37: органическая шпаклевка-клей для гидроизоляции в области цоколя и соприкосновения с землей
A38: 00130-001 | B38: Stolit K 1,0 weiss (белая) | C38: DE | D38: фасад | E38: декоративная штукатурка | F38: акрил | G38: 25 | H38: кг | I38: Ведро | J38: 1.8 | K38: 1.9 | L38: кг/м² | M38: 315.4788 | N38: 378.57456 | O38: 681.434208 | P38: 9464.364 | R38: 0 | U38: 24 | V38: 616.2 | W38: 696 | X38: органическая, армированная волокнами, усиленная финишная штукатурка с царапанной структурой ("шуба"), применяется на минеральных и органических основаниях
A39: 00130-005 | B39: Stolit K 1,0 getönt (колерованная) C1 | C39: DE | D39: фасад | E39: декоративная штукатурка | F39: акрил | G39: 25 | H39: кг | I39: Ведро | J39: 1.8 | K39: 1.9 | L39: кг/м² | M39: =M38+34 -> 349.4788 | N39: 419.37456 | O39: 754.874208 | P39: 10484.364 | R39: 0 | U39: 24 | V39: 616.2 | W39: 696
A40: 00131-001 | B40: Stolit K 1,5 weiss (белая) | C40: DE | D40: фасад | E40: декоративная штукатурка | F40: акрил | G40: 25 | H40: кг | I40: Ведро | J40: 2.3 | K40: 2.4 | L40: кг/м² | M40: 315.4788 | N40: 378.57456 | O40: 870.721488 | P40: 9464.364 | R40: 0 | U40: 24 | V40: 616.2 | W40: 696
A41: 00131-053 | B41: Stolit K 1,5 getönt (колерованная) C1 | C41: DE | D41: фасад | E41: декоративная штукатурка | F41: акрил | G41: 25 | H41: кг | I41: Ведро | J41: 2.3 | K41: 2.4 | L41: кг/м² | M41: =M40+34 -> 349.4788 | N41: 419.37456 | O41: 964.561488 | P41: 10484.364 | R41: 0 | U41: 24 | V41: 616.2 | W41: 696
A42: 00132-001 | B42: Stolit K 2,0 weiss (белая) | C42: DE | D42: фасад | E42: декоративная штукатурка | F42: акрил | G42: 25 | H42: кг | I42: Ведро | J42: 3 | K42: 3.1 | L42: кг/м² | M42: 315.4788 | N42: 378.57456 | O42: 1135.72368 | P42: 9464.364 | R42: 0 | U42: 24 | V42: 616.2 | W42: 696
A43: 00132-003 | B43: Stolit K 2,0 getönt (колерованная) C1 | C43: DE | D43: фасад | E43: декоративная штукатурка | F43: акрил | G43: 25 | H43: кг | I43: Ведро | J43: 3 | K43: 3.1 | L43: кг/м² | M43: =M42+34 -> 349.4788 | N43: 419.37456 | O43: 1258.12368 | P43: 10484.364 | R43: 0 | U43: 24 | V43: 616.2 | W43: 696
A44: 00134-001 | B44: Stolit K 3,0 weiss (белая) | C44: DE | D44: фасад | E44: декоративная штукатурка | F44: акрил | G44: 25 | H44: кг | I44: Ведро | J44: 4.3 | K44: 4.4 | L44: кг/м² | M44: 315.4788 | N44: 378.57456 | O44: 1627.870608 | P44: 9464.364 | R44: 0 | U44: 24 | V44: 616.2 | W44: 696
A45: 00134-003 | B45: Stolit K 3,0 getönt (колерованная) C1 | C45: DE | D45: фасад | E45: декоративная штукатурка | F45: акрил | G45: 25 | H45: кг | I45: Ведро | J45: 4.3 | K45: 4.4 | L45: кг/м² | M45: =M44+34 -> 349.4788 | N45: 419.37456 | O45: 1803.310608 | P45: 10484.364 | R45: 0 | U45: 24 | V45: 616.2 | W45: 696
A46: 00135-001 | B46: Stolit K 6,0 weiss (белая) | C46: DE | D46: фасад | E46: декоративная штукатурка | F46: акрил | G46: 25 | H46: кг | I46: Ведро | J46: 6 | K46: 6.1 | L46: кг/м² | M46: 331.612921 | N46: 397.9355052 | O46: 2387.613031 | P46: 9948.38763 | R46: 0 | U46: 24 | V46: 616.2 | W46: 696
A47: 00135-002 | B47: Stolit K 6,0 getönt (колерованная) C1 | C47: DE | D47: фасад | E47: декоративная штукатурка | F47: акрил | G47: 25 | H47: кг | I47: Ведро | J47: 6 | K47: 6.1 | L47: кг/м² | M47: =M46+34 -> 365.612921 | N47: 438.7355052 | O47: 2632.413031 | P47: 10968.38763 | R47: 0 | U47: 24 | V47: 616.2 | W47: 696
A48: 00141-001 | B48: Stolit R 1,5 weiss (белая) | C48: DE | D48: фасад | E48: декоративная штукатурка | F48: акрил | G48: 25 | H48: кг | I48: Ведро | J48: 2.2 | K48: 2.3 | L48: кг/м² | M48: 315.4788 | N48: 378.57456 | O48: 832.864032 | P48: 9464.364 | R48: 0 | U48: 24 | V48: 616.2 | W48: 696 | X48: органическая, армированная волокнами, усиленная финишная штукатурка с бороздчатой структурой ("короед") для наружных работ, применяется на минеральных и органических основаниях
A49: 00141-046 | B49: Stolit R 1,5 getönt (колерованная) C1 | C49: DE | D49: фасад | E49: декоративная штукатурка | F49: акрил | G49: 25 | H49: кг | I49: Ведро | J49: 2.2 | K49: 2.3 | L49: кг/м² | M49: =M48+34 -> 349.4788 | N49: 419.37456 | O49: 922.624032 | P49: 10484.364 | R49: 0 | U49: 24 | V49: 616.2 | W49: 696
A50: 00142-002 | B50: Stolit R 2,0 weiss (белая) | C50: DE | D50: фасад | E50: декоративная штукатурка | F50: акрил | G50: 25 | H50: кг | I50: Ведро | J50: 2.7 | K50: 2.8 | L50: кг/м² | M50: 315.4788 | N50: 378.57456 | O50: 1022.151312 | P50: 9464.364 | R50: 0 | U50: 24 | V50: 616.2 | W50: 696
A51: 00142-047 | B51: Stolit R 2,0 getönt (колерованная) C1 | C51: DE | D51: фасад | E51: декоративная штукатурка | F51: акрил | G51: 25 | H51: кг | I51: Ведро | J51: 2.7 | K51: 2.8 | L51: кг/м² | M51: =M50+34 -> 349.4788 | N51: 419.37456 | O51: 1132.311312 | P51: 10484.364 | R51: 0 | U51: 24 | V51: 616.2 | W51: 696
A52: 00143-001 | B52: Stolit R 3,0 weiss (белая) | C52: DE | D52: фасад | E52: декоративная штукатурка | F52: акрил | G52: 25 | H52: кг | I52: Ведро | J52: 3.5 | K52: 3.6 | L52: кг/м² | M52: 349.4788 | N52: 419.37456 | O52: 1467.81096 | P52: 10484.364 | R52: 0 | U52: 24 | V52: 616.2 | W52: 696
A53: 00143-048 | B53: Stolit R 3,0 getönt (колерованная) C1 | C53: DE | D53: фасад | E53: декоративная штукатурка | F53: акрил | G53: 25 | H53: кг | I53: Ведро | J53: 3.5 | K53: 3.6 | L53: кг/м² | M53: =M52+34 -> 383.4788 | N53: 460.17456 | O53: 1610.61096 | P53: 11504.364 | R53: 0 | U53: 24 | V53: 616.2 | W53: 696
A54: 00144-001 | B54: Stolit R 6,0 weiss (белая) | C54: DE | D54: фасад | E54: декоративная штукатурка | F54: акрил | G54: 25 | H54: кг | I54: Ведро | J54: 5.6 | K54: 5.7 | L54: кг/м² | M54: 322.7293546 | N54: 387.2752255 | O54: 2168.741263 | P54: 9681.880637 | R54: 0 | U54: 24 | V54: 616.2 | W54: 696
A55: 00144-003 | B55: Stolit R 6,0 getönt (колерованная) C1 | C55: DE | D55: фасад | E55: декоративная штукатурка | F55: акрил | G55: 25 | H55: кг | I55: Ведро | J55: 5.6 | K55: 5.7 | L55: кг/м² | M55: =M54+34 -> 356.7293546 | N55: 428.0752255 | O55: 2397.221263 | P55: 10701.88064 | R55: 0 | U55: 24 | V55: 616.2 | W55: 696
A56: 00183-001 | B56: Stolit MP weiss (белая) | C56: DE | D56: фасад | E56: декоративная штукатурка | F56: акрил | G56: 25 | H56: кг | I56: Ведро | J56: 1.2 | K56: 4 | L56: кг/м² | M56: 303.616942 | N56: 364.3403304 | O56: 437.2083964 | P56: 9108.508259 | R56: 0 | S56: ● | T56: ● | U56: 24 | V56: 616.2 | W56: 696 | X56: органическая финишная штукатурка с моделируемой структурой для наружных работ, применяется на минеральных и органических основаниях
A57: 00183-014 | B57: Stolit MP getönt (колерованная) C1 | C57: DE | D57: фасад | E57: декоративная штукатурка | F57: акрил | G57: 25 | H57: кг | I57: Ведро | J57: 1.2 | K57: 4 | L57: кг/м² | M57: =M56+34 -> 337.616942 | N57: 405.1403304 | O57: 486.1683964 | P57: 10128.50826 | R57: 0 | U57: 24 | V57: 616.2 | W57: 696
A58: 01247_001 | B58: StoMarlit K 1.0 weiss (белая) | C58: RU | D58: фасад | E58: декоративная штукатурка | F58: акрил | G58: 25 | H58: кг | I58: Ведро | J58: 1.9 | K58: 2 | L58: кг/м² | M58: 159.0015 | N58: 190.8018 | O58: 362.52342 | P58: 4770.045 | R58: 0 | S58: ● | U58: 24 | V58: 616.2 | W58: 720 | X58: органическая финишная штукатурка (с высокой паропроницаемостью) с зернистой структурой ("шуба") для наружных работ, применяется на минеральных и органических основаниях.
A59: 01247_003 | B59: StoMarlit K 1.0 getönt (колерованная) C1 | C59: RU | D59: фасад | E59: декоративная штукатурка | F59: акрил | G59: 25 | H59: кг | I59: Ведро | J59: 1.9 | K59: 2 | L59: кг/м² | M59: =M58+34 -> 193.0015 | N59: 231.6018 | O59: 440.04342 | P59: 5790.045 | R59: 0 | U59: 24 | V59: 616.2 | W59: 720
A60: 02131_001 | B60: StoMarlit K 1.5 weiss (белая) | C60: RU | D60: фасад | E60: декоративная штукатурка | F60: акрил | G60: 25 | H60: кг | I60: Ведро | J60: 2.4 | K60: 2.5 | L60: кг/м² | M60: 159.0015 | N60: 190.8018 | O60: 457.92432 | P60: 4770.045 | R60: 0 | S60: ● | U60: 24 | V60: 616.2 | W60: 720
A61: 02131_002 | B61: StoMarlit K 1.5 getönt (колерованная) C1 | C61: RU | D61: фасад | E61: декоративная штукатурка | F61: акрил | G61: 25 | H61: кг | I61: Ведро | J61: 2.4 | K61: 2.5 | L61: кг/м² | M61: =M60+34 -> 193.0015 | N61: =M61*1.2 -> 231.6018 | O61: =$N61*$J61 -> 555.84432 | P61: =$N61*$G61 -> 5790.045 | R61: 0 | U61: 24 | V61: 616.2 | W61: 720
A62: 02132_001 | B62: StoMarlit K 2.0 weiss (белая) | C62: RU | D62: фасад | E62: декоративная штукатурка | F62: акрил | G62: 25 | H62: кг | I62: Ведро | J62: 3.1 | K62: 3.2 | L62: кг/м² | M62: 159.0015 | N62: 190.8018 | O62: 591.48558 | P62: 4770.045 | R62: 0 | S62: ● | U62: 24 | V62: 616.2 | W62: 720
A63: 02132_002 | B63: StoMarlit K 2.0 getönt (колерованная) C1 | C63: RU | D63: фасад | E63: декоративная штукатурка | F63: акрил | G63: 25 | H63: кг | I63: Ведро | J63: 3.1 | K63: 3.2 | L63: кг/м² | M63: =M62+34 -> 193.0015 | N63: 231.6018 | O63: 717.96558 | P63: 5790.045 | R63: =Q63*P63 -> 0 | U63: 24 | V63: 616.2 | W63: 720
A64: 02142_001 | B64: StoMarlit R 2.0 weiss (белая) | C64: RU | D64: фасад | E64: декоративная штукатурка | F64: акрил | G64: 25 | H64: кг | I64: Ведро | J64: 2.8 | K64: 2.9 | L64: кг/м² | M64: 159.0015 | N64: 190.8018 | O64: 534.24504 | P64: 4770.045 | R64: 0 | S64: ● | U64: 24 | V64: 616.2 | W64: 720 | X64: органическая финишная штукатурка (с высокой паропроницаемостью) с бороздчатой структурой ("короед") для наружных работ, применяется на минеральных и органических основаниях.
A65: 02142_002 | B65: StoMarlit R 2.0 getönt (колерованная) C1 | C65: RU | D65: фасад | E65: декоративная штукатурка | F65: акрил | G65: 25 | H65: кг | I65: Ведро | J65: 2.8 | K65: 2.9 | L65: кг/м² | M65: =M64+34 -> 193.0015 | N65: 231.6018 | O65: 648.48504 | P65: 5790.045 | R65: 0 | U65: 24 | V65: 616.2 | W65: 720
A66: 00152-061 | B66: Sto-Superlit K 2,0 403 (размер зерна 2,00 мм) | C66: DE | D66: фасад | E66: декоративная штукатурка | F66: акрил | G66: 23 | H66: кг | I66: Ведро | J66: 5 | K66: 6 | L66: кг/м² | M66: 486.6043301 | N66: 583.9251961 | O66: 2919.625981 | P66: 13430.27951 | R66: 0 | U66: 24 | V66: 568.008 | W66: 768 | X66: органическая штукатурка из смеси натуральных цветных камней. Высокая устойчивость против механических нагрузок, высокая эластичность, хорошая пароницаемость, погодоустойчавая. Ограниченный ассортимент цветов. (см. на сайте www.sto.ru)
A67: 00152-076 | B67: Sto-Superlit K 2,0 404 (размер зерна 2,00 мм) | C67: DE | D67: фасад | E67: декоративная штукатурка | F67: акрил | G67: 23 | H67: кг | I67: Ведро | J67: 5 | K67: 6 | L67: кг/м² | M67: 466.7319525 | N67: 560.078343 | O67: 2800.391715 | P67: 12881.80189 | R67: 0 | U67: 24 | V67: 568.008 | W67: 768
A68: 00152-062 | B68: Sto-Superlit K 2,0 405 (размер зерна 2,00 мм) | C68: DE | D68: фасад | E68: декоративная штукатурка | F68: акрил | G68: 23 | H68: кг | I68: Ведро | J68: 5 | K68: 6 | L68: кг/м² | M68: 412.88625 | N68: 495.4635 | O68: 2477.3175 | P68: 11395.6605 | R68: 0 | U68: 24 | V68: 568.008 | W68: 768
A69: 00152-063 | B69: Sto-Superlit K 2,0 409 (размер зерна 2,00 мм) | C69: DE | D69: фасад | E69: декоративная штукатурка | F69: акрил | G69: 23 | H69: кг | I69: Ведро | J69: 5 | K69: 6 | L69: кг/м² | M69: 412.88625 | N69: 495.4635 | O69: 2477.3175 | P69: 11395.6605 | R69: 0 | U69: 24 | V69: 568.008 | W69: 768
A70: 00152-077 | B70: Sto-Superlit K 2,0 411 (размер зерна 2,00 мм) | C70: DE | D70: фасад | E70: декоративная штукатурка | F70: акрил | G70: 23 | H70: кг | I70: Ведро | J70: 5 | K70: 6 | L70: кг/м² | M70: 412.88625 | N70: 495.4635 | O70: 2477.3175 | P70: 11395.6605 | R70: 0 | U70: 24 | V70: 568.008 | W70: 768
A71: 00152-078 | B71: Sto-Superlit K 2,0 412 (размер зерна 2,00 мм) | C71: DE | D71: фасад | E71: декоративная штукатурка | F71: акрил | G71: 23 | H71: кг | I71: Ведро | J71: 5 | K71: 6 | L71: кг/м² | M71: 421.6186658 | N71: 505.9423989 | O71: 2529.711995 | P71: 11636.67517 | R71: 0 | U71: 24 | V71: 568.008 | W71: 768
A72: 00152-064 | B72: Sto-Superlit K 2,0 413 (размер зерна 2,00 мм) | C72: DE | D72: фасад | E72: декоративная штукатурка | F72: акрил | G72: 23 | H72: кг | I72: Ведро | J72: 5 | K72: 6 | L72: кг/м² | M72: 412.88625 | N72: 495.4635 | O72: 2477.3175 | P72: 11395.6605 | R72: 0 | U72: 24 | V72: 568.008 | W72: 768
A73: 00152-079 | B73: Sto-Superlit K 2,0 414 (размер зерна 2,00 мм) | C73: DE | D73: фасад | E73: декоративная штукатурка | F73: акрил | G73: 23 | H73: кг | I73: Ведро | J73: 5 | K73: 6 | L73: кг/м² | M73: 423.4831762 | N73: 508.1798115 | O73: 2540.899057 | P73: 11688.13566 | R73: 0 | U73: 24 | V73: 568.008 | W73: 768
A74: 00152-065 | B74: Sto-Superlit K 2,0 415 (размер зерна 2,00 мм) | C74: DE | D74: фасад | E74: декоративная штукатурка | F74: акрил | G74: 23 | H74: кг | I74: Ведро | J74: 5 | K74: 6 | L74: кг/м² | M74: 452.1635958 | N74: 542.596315 | O74: 2712.981575 | P74: 12479.71524 | R74: 0 | U74: 24 | V74: 568.008 | W74: 768
A75: 00152-080 | B75: Sto-Superlit K 2,0 416 (размер зерна 2,00 мм) | C75: DE | D75: фасад | E75: декоративная штукатурка | F75: акрил | G75: 23 | H75: кг | I75: Ведро | J75: 5 | K75: 6 | L75: кг/м² | M75: 450.6578266 | N75: 540.7893919 | O75: 2703.94696 | P75: 12438.15601 | R75: 0 | U75: 24 | V75: 568.008 | W75: 768
A76: 00152-030 | B76: Sto-Superlit K 2,0 800 (размер зерна 2,00 мм) | C76: DE | D76: фасад | E76: декоративная штукатурка | F76: акрил | G76: 23 | H76: кг | I76: Ведро | J76: 5 | K76: 6 | L76: кг/м² | M76: 412.88625 | N76: 495.4635 | O76: 2477.3175 | P76: 11395.6605 | R76: 0 | U76: 24 | V76: 568.008 | W76: 768
A77: 00152-041 | B77: Sto-Superlit K 2,0 818 (размер зерна 2,00 мм) | C77: DE | D77: фасад | E77: декоративная штукатурка | F77: акрил | G77: 23 | H77: кг | I77: Ведро | J77: 5 | K77: 6 | L77: кг/м² | M77: 412.88625 | N77: 495.4635 | O77: 2477.3175 | P77: 11395.6605 | R77: 0 | U77: 24 | V77: 568.008 | W77: 768
A78: 00152-043 | B78: Sto-Superlit K 2,0 820 (размер зерна 2,00 мм) | C78: DE | D78: фасад | E78: декоративная штукатурка | F78: акрил | G78: 23 | H78: кг | I78: Ведро | J78: 5 | K78: 6 | L78: кг/м² | M78: 421.9128965 | N78: 506.2954758 | O78: 2531.477379 | P78: 11644.79594 | R78: 0 | U78: 24 | V78: 568.008 | W78: 768
A79: 00152-044 | B79: Sto-Superlit K 2,0 821 (размер зерна 2,00 мм) | C79: DE | D79: фасад | E79: декоративная штукатурка | F79: акрил | G79: 23 | H79: кг | I79: Ведро | J79: 5 | K79: 6 | L79: кг/м² | M79: 412.88625 | N79: 495.4635 | O79: 2477.3175 | P79: 11395.6605 | R79: 0 | U79: 24 | V79: 568.008 | W79: 768
A80: 00152-047 | B80: Sto-Superlit K 2,0 824 (размер зерна 2,00 мм) | C80: DE | D80: фасад | E80: декоративная штукатурка | F80: акрил | G80: 23 | H80: кг | I80: Ведро | J80: 5 | K80: 6 | L80: кг/м² | M80: 412.88625 | N80: 495.4635 | O80: 2477.3175 | P80: 11395.6605 | R80: 0 | U80: 24 | V80: 568.008 | W80: 768
A81: 00152-050 | B81: Sto-Superlit K 2,0 827 (размер зерна 2,00 мм) | C81: DE | D81: фасад | E81: декоративная штукатурка | F81: акрил | G81: 23 | H81: кг | I81: Ведро | J81: 5 | K81: 6 | L81: кг/м² | M81: 493.4141203 | N81: 592.0969444 | O81: 2960.484722 | P81: 13618.22972 | R81: 0 | U81: 24 | V81: 568.008 | W81: 768
A82: 00152-051 | B82: Sto-Superlit K 2,0 828 (размер зерна 2,00 мм) | C82: DE | D82: фасад | E82: декоративная штукатурка | F82: акрил | G82: 23 | H82: кг | I82: Ведро | J82: 5 | K82: 6 | L82: кг/м² | M82: 412.88625 | N82: 495.4635 | O82: 2477.3175 | P82: 11395.6605 | R82: 0 | U82: 24 | V82: 568.008 | W82: 768
A83: 00152-052 | B83: Sto-Superlit K 2,0 829 (размер зерна 2,00 мм) | C83: DE | D83: фасад | E83: декоративная штукатурка | F83: акрил | G83: 23 | H83: кг | I83: Ведро | J83: 5 | K83: 6 | L83: кг/м² | M83: 496.5562532 | N83: 595.8675038 | O83: 2979.337519 | P83: 13704.95259 | R83: 0 | U83: 24 | V83: 568.008 | W83: 768
A84: 00152-054 | B84: Sto-Superlit K 2,0 831 (размер зерна 2,00 мм) | C84: DE | D84: фасад | E84: декоративная штукатурка | F84: акрил | G84: 23 | H84: кг | I84: Ведро | J84: 5 | K84: 6 | L84: кг/м² | M84: 412.88625 | N84: 495.4635 | O84: 2477.3175 | P84: 11395.6605 | R84: 0 | U84: 24 | V84: 568.008 | W84: 768
A85: 00152-055 | B85: Sto-Superlit K 2,0 832 (размер зерна 2,00 мм) | C85: DE | D85: фасад | E85: декоративная штукатурка | F85: акрил | G85: 23 | H85: кг | I85: Ведро | J85: 5 | K85: 6 | L85: кг/м² | M85: 451.9669175 | N85: 542.360301 | O85: 2711.801505 | P85: 12474.28692 | R85: 0 | U85: 24 | V85: 568.008 | W85: 768
A86: 00152-056 | B86: Sto-Superlit K 2,0 833 (размер зерна 2,00 мм) | C86: DE | D86: фасад | E86: декоративная штукатурка | F86: акрил | G86: 23 | H86: кг | I86: Ведро | J86: 5 | K86: 6 | L86: кг/м² | M86: 426.3641203 | N86: 511.6369444 | O86: 2558.184722 | P86: 11767.64972 | R86: 0 | U86: 24 | V86: 568.008 | W86: 768
A87: 00152-057 | B87: Sto-Superlit K 2,0 834 (размер зерна 2,00 мм) | C87: DE | D87: фасад | E87: декоративная штукатурка | F87: акрил | G87: 23 | H87: кг | I87: Ведро | J87: 5 | K87: 6 | L87: кг/м² | M87: 412.88625 | N87: 495.4635 | O87: 2477.3175 | P87: 11395.6605 | R87: 0 | U87: 24 | V87: 568.008 | W87: 768
A88: 00152-059 | B88: Sto-Superlit K 2,0 836 (размер зерна 2,00 мм) | C88: DE | D88: фасад | E88: декоративная штукатурка | F88: акрил | G88: 23 | H88: кг | I88: Ведро | J88: 5 | K88: 6 | L88: кг/м² | M88: 451.7371972 | N88: 542.0846367 | O88: 2710.423183 | P88: 12467.94664 | R88: 0 | U88: 24 | V88: 568.008 | W88: 768
A89: 00152-083 | B89: Sto-Superlit K 2,0 841 (размер зерна 2,00 мм) | C89: DE | D89: фасад | E89: декоративная штукатурка | F89: акрил | G89: 23 | H89: кг | I89: Ведро | J89: 5 | K89: 6 | L89: кг/м² | M89: 437.2679665 | N89: 524.7215597 | O89: 2623.607799 | P89: 12068.59587 | R89: 0 | U89: 24 | V89: 568.008 | W89: 768
A90: 00152-084 | B90: Sto-Superlit K 2,0 842 (размер зерна 2,00 мм) | C90: DE | D90: фасад | E90: декоративная штукатурка | F90: акрил | G90: 23 | H90: кг | I90: Ведро | J90: 5 | K90: 6 | L90: кг/м² | M90: 536.2695399 | N90: 643.5234479 | O90: 3217.617239 | P90: 14801.0393 | R90: 0 | U90: 24 | V90: 568.008 | W90: 768
A91: 00966-001 | B91: Stolit Effect weiss (белая) | C91: DE | D91: фасад | E91: декоративная штукатурка | F91: акрил | G91: 25 | H91: кг | I91: Ведро | J91: 4 | K91: 5.5 | L91: кг/м² | M91: 341.7687 | N91: 410.12244 | O91: 1640.48976 | P91: 10253.061 | R91: 0 | U91: 24 | V91: 616.2 | W91: 696 | X91: специальная наружная штукатурка на искусственных смолах. Высокая защита от атмосферных воздействий, хорошая паропроницаемость.
A92: 00966-002 | B92: Stolit Effect getönt (колерованная) C1 | C92: DE | D92: фасад | E92: декоративная штукатурка | F92: акрил | G92: 25 | H92: кг | I92: Ведро | J92: 4 | K92: 5.5 | L92: кг/м² | M92: =M91+34 -> 375.7687 | N92: 450.92244 | O92: 1803.68976 | P92: 11273.061 | R92: 0 | U92: 24 | V92: 616.2 | W92: 696
A93: 04366-003 | B93: Stolit Milano natur (натурального цвета) | C93: DE | D93: фасад | E93: декоративная штукатурка | F93: акрил | G93: 25 | H93: кг | I93: Ведро | J93: 1 | K93: 2.5 | L93: кг/м² | M93: 353.4301478 | N93: 424.1161773 | O93: 424.1161773 | P93: 10602.90443 | R93: 0 | S93: ● | T93: ● | U93: 24 | V93: 616.2 | W93: 696 | X93: тонкая наружная штукатурка на исскуственных смолах. Высокая эластичность и устойчивость к атмосферным воздействиям. Возможность моделирования различных структур, высокая стабильность цветового тона.
A94: 04366-004 | B94: Stolit Milano getönt (колерованная) C1 | C94: DE | D94: фасад | E94: декоративная штукатурка | F94: акрил | G94: 25 | H94: кг | I94: Ведро | J94: 1 | K94: 2.5 | L94: кг/м² | M94: =M93+34 -> 387.4301478 | N94: 464.9161773 | O94: 464.9161773 | P94: 11622.90443 | R94: 0 | U94: 24 | V94: 616.2 | W94: 696
A95: 01383-001 | B95: StoNivellit weiss (белая) | C95: DE | D95: фасад | E95: декоративная штукатурка | F95: акрил | G95: 25 | H95: кг | I95: Ведро | J95: 3.3 | K95: 3.5 | L95: кг/м² | M95: 354.91365 | N95: 425.89638 | O95: 1405.458054 | P95: 10647.4095 | R95: 0 | U95: 24 | V95: 616.2 | W95: 696 | X95: мелкозернистая наружная штукатурка на искусственных смолах. Не содержит цемента, высокая погодоустойчивость и эластичность, белая, колеруемая.
A96: 01383-008 | B96: StoNivellit getönt (колерованная) C1 | C96: DE | D96: фасад | E96: декоративная штукатурка | F96: акрил | G96: 25 | H96: кг | I96: Ведро | J96: 3.3 | K96: 3.5 | L96: кг/м² | M96: =M95+34 -> 388.91365 | N96: 466.69638 | O96: 1540.098054 | P96: 11667.4095 | R96: 0 | U96: 24 | V96: 616.2 | W96: 696
A97: 01220-001 | B97: StoSilco K 1,0 fein weiss (мелкозернистая белая) | C97: DE | D97: фасад | E97: декоративная штукатурка | F97: силикон | G97: 25 | H97: кг | I97: Ведро | J97: 2 | K97: 2.1 | L97: кг/м² | M97: 327.7910678 | N97: 393.3492814 | O97: 786.6985628 | P97: 9833.732035 | R97: 0 | U97: 24 | V97: 616.2 | W97: 696 | X97: наружняя силиконовая улучшенная штукатурка. Структура зернистая - типа "шуба". Выдерживает механические нагрузки, хорошо самоочищающаяся, отличная устойчивость против воздействия микроорганизмов, высокая паропроницаемость и водоотталкивающая способность, хорошая погодоустойчивость, белая, колеруемая, высокая стабильность цветового фона, готова к применению.
A98: 01220-024 | B98: StoSilco K 1,0 fein getönt (мелкозернистая колерованная) C1 | C98: DE | D98: фасад | E98: декоративная штукатурка | F98: силикон | G98: 25 | H98: кг | I98: Ведро | J98: 2 | K98: 2.1 | L98: кг/м² | M98: =M97+34 -> 361.7910678 | N98: 434.1492814 | O98: 868.2985628 | P98: 10853.73204 | R98: 0 | U98: 24 | V98: 616.2 | W98: 696
A99: 01218-001 | B99: StoSilco K 1,5 weiss (белая) | C99: DE | D99: фасад | E99: декоративная штукатурка | F99: силикон | G99: 25 | H99: кг | I99: Ведро | J99: 2.3 | K99: 2.4 | L99: кг/м² | M99: 327.1632 | N99: 392.59584 | O99: 902.970432 | P99: 9814.896 | R99: 0 | U99: 24 | V99: 616.2 | W99: 696
A100: 01218-043 | B100: StoSilco K 1,5 getönt (колерованная) C1 | C100: DE | D100: фасад | E100: декоративная штукатурка | F100: силикон | G100: 25 | H100: кг | I100: Ведро | J100: 2.3 | K100: 2.4 | L100: кг/м² | M100: =M99+34 -> 361.1632 | N100: 433.39584 | O100: 996.810432 | P100: 10834.896 | R100: 0 | U100: 24 | V100: 616.2 | W100: 696
A101: 00186-001 | B101: StoSilco K 2,0 weiss (белая) | C101: DE | D101: фасад | E101: декоративная штукатурка | F101: силикон | G101: 25 | H101: кг | I101: Ведро | J101: 3 | K101: 3.1 | L101: кг/м² | M101: 326.9366972 | N101: 392.3240367 | O101: 1176.97211 | P101: 9808.100916 | R101: 0 | U101: 24 | V101: 616.2 | W101: 696
A102: 00186-026 | B102: StoSilco K 2,0 getönt (колерованная) C1 | C102: DE | D102: фасад | E102: декоративная штукатурка | F102: силикон | G102: 25 | H102: кг | I102: Ведро | J102: 3 | K102: 3.1 | L102: кг/м² | M102: =M101+34 -> 360.9366972 | N102: 433.1240367 | O102: 1299.37211 | P102: 10828.10092 | R102: 0 | U102: 24 | V102: 616.2 | W102: 696
A103: 00187-001 | B103: StoSilco K 3,0 weiss (белая) | C103: DE | D103: фасад | E103: декоративная штукатурка | F103: силикон | G103: 25 | H103: кг | I103: Ведро | J103: 4.3 | K103: 4.4 | L103: кг/м² | M103: 328.4456133 | N103: 394.134736 | O103: 1694.779365 | P103: 9853.368399 | R103: 0 | U103: 24 | V103: 616.2 | W103: 696
A104: 00187-028 | B104: StoSilco K 3,0 getönt (колерованная) C1 | C104: DE | D104: фасад | E104: декоративная штукатурка | F104: силикон | G104: 25 | H104: кг | I104: Ведро | J104: 4.3 | K104: 4.4 | L104: кг/м² | M104: =M103+34 -> 362.4456133 | N104: 434.934736 | O104: 1870.219365 | P104: 10873.3684 | R104: 0 | U104: 24 | V104: 616.2 | W104: 696
A105: 01219-001 | B105: StoSilco R 1,5 weiss (белая) | C105: DE | D105: фасад | E105: декоративная штукатурка | F105: силикон | G105: 25 | H105: кг | I105: Ведро | J105: 2.2 | K105: 2.3 | L105: кг/м² | M105: 409.0396692 | N105: 490.8476031 | O105: 1079.864727 | P105: 12271.19008 | R105: 0 | U105: 24 | V105: 616.2 | W105: 696 | X105: наружняя силиконовая улучшенная штукатурка. Структура бороздчатая - типа "короед". Выдерживает механические нагрузки, хорошо самоочищающаяся, отличная устойчивость против воздействия микроорганизмов, высокая паропроницаемость и водоотталкивающая способность, хорошая погодоустойчивость, белая, колеруемая, высокая стабильность цветового фона, готова к применению.
A106: 01219-018 | B106: StoSilco R 1,5 getönt (колерованная) C1 | C106: DE | D106: фасад | E106: декоративная штукатурка | F106: силикон | G106: 25 | H106: кг | I106: Ведро | J106: 2.2 | K106: 2.3 | L106: кг/м² | M106: =M105+34 -> 443.0396692 | N106: 531.6476031 | O106: 1169.624727 | P106: 13291.19008 | R106: 0 | U106: 24 | V106: 616.2 | W106: 696
A107: 00188-001 | B107: StoSilco R 2,0 weiss (белая) | C107: DE | D107: фасад | E107: декоративная штукатурка | F107: силикон | G107: 25 | H107: кг | I107: Ведро | J107: 2.7 | K107: 2.8 | L107: кг/м² | M107: 332.8763825 | N107: 399.451659 | O107: 1078.519479 | P107: 9986.291476 | R107: 0 | U107: 24 | V107: 616.2 | W107: 696
A108: 00188-023 | B108: StoSilco R 2,0 getönt (колерованная) C1 | C108: DE | D108: фасад | E108: декоративная штукатурка | F108: силикон | G108: 25 | H108: кг | I108: Ведро | J108: 2.7 | K108: 2.8 | L108: кг/м² | M108: =M107+34 -> 366.8763825 | N108: 440.251659 | O108: 1188.679479 | P108: 11006.29148 | R108: 0 | U108: 24 | V108: 616.2 | W108: 696
A109: 00189-001 | B109: StoSilco R 3,0 weiss (белая) | C109: DE | D109: фасад | E109: декоративная штукатурка | F109: силикон | G109: 25 | H109: кг | I109: Ведро | J109: 3.5 | K109: 3.6 | L109: кг/м² | M109: 332.5160678 | N109: 399.0192814 | O109: 1396.567485 | P109: 9975.482035 | R109: 0 | U109: 24 | V109: 616.2 | W109: 696
A110: 00189-024 | B110: StoSilco R 3,0 getönt (колерованная) C1 | C110: DE | D110: фасад | E110: декоративная штукатурка | F110: силикон | G110: 25 | H110: кг | I110: Ведро | J110: 3.5 | K110: 3.6 | L110: кг/м² | M110: =M109+34 -> 366.5160678 | N110: 439.8192814 | O110: 1539.367485 | P110: 10995.48204 | R110: 0 | U110: 24 | V110: 616.2 | W110: 696
A111: 01214-001 | B111: StoSilco MP weiss (белая) | C111: DE | D111: фасад | E111: декоративная штукатурка | F111: силикон | G111: 25 | H111: кг | I111: Ведро | J111: 1.2 | K111: 4 | L111: кг/м² | M111: 334.2216622 | N111: 401.0659947 | O111: 481.2791936 | P111: 10026.64987 | R111: 0 | U111: 24 | V111: 616.2 | W111: 696 | X111: финишная штукатурка на основе силиконовых смол с моделируемой структурой
A112: 01214-013 | B112: StoSilco MP getönt (колерованная) C1 | C112: DE | D112: фасад | E112: декоративная штукатурка | F112: силикон | G112: 25 | H112: кг | I112: Ведро | J112: 1.2 | K112: 4 | L112: кг/м² | M112: =M111+34 -> 368.2216622 | N112: 441.8659947 | O112: 530.2391936 | P112: 11046.64987 | R112: 0 | U112: 24 | V112: 616.2 | W112: 696
A113: 14524_002 | B113: Sto-Silkolit K 1,0 weiss (белая) | C113: RU | D113: фасад | E113: декоративная штукатурка | F113: силикон | G113: 25 | H113: кг | I113: Ведро | J113: 1.9 | K113: 1.9 | L113: кг/м² | M113: 182.847 | N113: 219.4164 | O113: 416.89116 | P113: 5485.41 | R113: 0 | S113: ● | U113: 24 | V113: 616.2 | W113: 720 | X113: наружняя стандартная силиконовая штукатурка. Структура зернистая - типа "шуба". Выдерживает механические нагрузки, хорошая самоочищаемость, высокая паропроницаемость и водоотталкивающая способность, хорошая погодоустойчивость, белая, колеруемая, готова к применению.
A114: 14524_001 | B114: Sto-Silkolit K 1,0 getönt (колерованная) C1 | C114: RU | D114: фасад | E114: декоративная штукатурка | F114: силикон | G114: 25 | H114: кг | I114: Ведро | J114: 1.9 | K114: 1.9 | L114: кг/м² | M114: =M113+34 -> 216.847 | N114: 260.2164 | O114: 494.41116 | P114: 6505.41 | R114: 0 | U114: 24 | V114: 616.2 | W114: 720
A115: 14006_031 | B115: Sto-Silkolit K 1,5 weiss (белая) | C115: RU | D115: фасад | E115: декоративная штукатурка | F115: силикон | G115: 25 | H115: кг | I115: Ведро | J115: 2.4 | K115: 2.5 | L115: кг/м² | M115: 182.847 | N115: 219.4164 | O115: 526.59936 | P115: 5485.41 | R115: 0 | S115: ● | T115: ● | U115: 24 | V115: 616.2 | W115: 720
A116: 14006_032 | B116: Sto-Silkolit K 1,5 getönt (колерованная) C1 | C116: RU | D116: фасад | E116: декоративная штукатурка | F116: силикон | G116: 25 | H116: кг | I116: Ведро | J116: 2.4 | K116: 2.5 | L116: кг/м² | M116: =M115+34 -> 216.847 | N116: 260.2164 | O116: 624.51936 | P116: 6505.41 | R116: 0 | U116: 24 | V116: 616.2 | W116: 720
A117: 14007_037 | B117: Sto-Silkolit K 2,0 weiss (белая) | C117: RU | D117: фасад | E117: декоративная штукатурка | F117: силикон | G117: 25 | H117: кг | I117: Ведро | J117: 3.1 | K117: 3.2 | L117: кг/м² | M117: 182.847 | N117: 219.4164 | O117: 680.19084 | P117: 5485.41 | R117: 0 | S117: ● | U117: 24 | V117: 616.2 | W117: 720
A118: 14007_036 | B118: Sto-Silkolit K 2,0 getönt (колерованная) C1 | C118: RU | D118: фасад | E118: декоративная штукатурка | F118: силикон | G118: 25 | H118: кг | I118: Ведро | J118: 3.1 | K118: 3.2 | L118: кг/м² | M118: =M117+34 -> 216.847 | N118: 260.2164 | O118: 806.67084 | P118: 6505.41 | R118: 0 | U118: 24 | V118: 616.2 | W118: 720
A119: 14009_002 | B119: Sto-Silkolit R 2,0 weiss (белая) | C119: RU | D119: фасад | E119: декоративная штукатурка | F119: силикон | G119: 25 | H119: кг | I119: Ведро | J119: 3 | K119: 3.1 | L119: кг/м² | M119: 182.847 | N119: 219.4164 | O119: 658.2492 | P119: 5485.41 | R119: 0 | S119: ● | U119: 24 | V119: 616.2 | W119: 720
A120: 14009_001 | B120: Sto-Silkolit R 2,0 getönt (колерованная) C1 | C120: RU | D120: фасад | E120: декоративная штукатурка | F120: силикон | G120: 25 | H120: кг | I120: Ведро | J120: 3 | K120: 3.1 | L120: кг/м² | M120: =M119+34 -> 216.847 | N120: 260.2164 | O120: 780.6492 | P120: 6505.41 | R120: 0 | U120: 24 | V120: 616.2 | W120: 720
A121: 04096-001 | B121: StoLotusan K 1,0 weiss (белая) | C121: DE | D121: фасад | E121: декоративная штукатурка | F121: силикон/Лотос | G121: 25 | H121: кг | I121: Ведро | J121: 1.9 | K121: 2 | L121: кг/м² | M121: 561.75 | N121: 674.1 | O121: 1280.79 | P121: 16852.5 | R121: 0 | U121: 24 | V121: 616.2 | W121: 696 | X121: самоочищающаяся финишная штукатурка с "эффектом лотоса" и царапанной структурой ("шуба")
A122: 04096-002 | B122: StoLotusan K 1,0 getönt (колерованная) C1 | C122: DE | D122: фасад | E122: декоративная штукатурка | F122: силикон/Лотос | G122: 25 | H122: кг | I122: Ведро | J122: 1.9 | K122: 2 | L122: кг/м² | M122: =M121+34 -> 595.75 | N122: 714.9 | O122: 1358.31 | P122: 17872.5 | R122: 0 | U122: 24 | V122: 616.2 | W122: 696
A123: 04790-001 | B123: StoLotusan K 1,5 weiss (белая) | C123: DE | D123: фасад | E123: декоративная штукатурка | F123: силикон/Лотос | G123: 25 | H123: кг | I123: Ведро | J123: 2.4 | K123: 2.5 | L123: кг/м² | M123: 561.75 | N123: 674.1 | O123: 1617.84 | P123: 16852.5 | R123: 0 | U123: 24 | V123: 616.2 | W123: 696
A124: 04790-002 | B124: StoLotusan K 1,5 getönt (колерованная) C1 | C124: DE | D124: фасад | E124: декоративная штукатурка | F124: силикон/Лотос | G124: 25 | H124: кг | I124: Ведро | J124: 2.4 | K124: 2.5 | L124: кг/м² | M124: =M123+34 -> 595.75 | N124: 714.9 | O124: 1715.76 | P124: 17872.5 | R124: 0 | U124: 24 | V124: 616.2 | W124: 696
A125: 04430-005 | B125: StoLotusan K 2,0 weiss (белая) | C125: DE | D125: фасад | E125: декоративная штукатурка | F125: силикон/Лотос | G125: 25 | H125: кг | I125: Ведро | J125: 3.2 | K125: 3.3 | L125: кг/м² | M125: 561.75 | N125: =M125*1.2 -> 674.1 | O125: =$N125*$J125 -> 2157.12 | P125: =$N125*$G125 -> 16852.5 | R125: 0 | U125: 24 | V125: 616.2 | W125: 696
A126: 04430-006 | B126: StoLotusan K 2,0 getönt (колерованная) C1 | C126: DE | D126: фасад | E126: декоративная штукатурка | F126: силикон/Лотос | G126: 25 | H126: кг | I126: Ведро | J126: 3.2 | K126: 3.3 | L126: кг/м² | M126: =M125+34 -> 595.75 | N126: 714.9 | O126: 2287.68 | P126: 17872.5 | R126: 0 | U126: 24 | V126: 616.2 | W126: 696
A127: 04432-001 | B127: StoLotusan K 3,0 weiss (белая) | C127: DE | D127: фасад | E127: декоративная штукатурка | F127: силикон/Лотос | G127: 25 | H127: кг | I127: Ведро | J127: 4.3 | K127: 4.4 | L127: кг/м² | M127: 561.75 | N127: 674.1 | O127: 2898.63 | P127: 16852.5 | R127: =Q127*P127 -> 0 | U127: 24 | V127: 616.2 | W127: 696
A128: 04432-002 | B128: StoLotusan K 3,0 getönt (колерованная) C1 | C128: DE | D128: фасад | E128: декоративная штукатурка | F128: силикон/Лотос | G128: 25 | H128: кг | I128: Ведро | J128: 4.3 | K128: 4.4 | L128: кг/м² | M128: =M127+34 -> 595.75 | N128: 714.9 | O128: 3074.07 | P128: 17872.5 | R128: 0 | U128: 24 | V128: 616.2 | W128: 696
A129: 04792-001 | B129: StoLotusan MP weiss (белая) | C129: DE | D129: фасад | E129: декоративная штукатурка | F129: силикон/Лотос | G129: 25 | H129: кг | I129: Ведро | J129: 1.2 | K129: 4 | L129: кг/м² | M129: 561.75 | N129: 674.1 | O129: 808.92 | P129: 16852.5 | R129: 0 | U129: 24 | V129: 616.2 | W129: 696 | X129: самоочищающаяся финишная штукатурка с "эффектом лотоса" и моделируемой структурой
A130: 04792-002 | B130: StoLotusan MP getönt (колерованная) C1 | C130: DE | D130: фасад | E130: декоративная штукатурка | F130: силикон/Лотос | G130: 25 | H130: кг | I130: Ведро | J130: 1.2 | K130: 4 | L130: кг/м² | M130: =M129+34 -> 595.75 | N130: 714.9 | O130: 857.88 | P130: 17872.5 | R130: 0 | U130: 24 | V130: 616.2 | W130: 696
A131: 02119-001 | B131: StoSil K 1,0 weiss (белая) | C131: DE | D131: фасад | E131: декоративная штукатурка | F131: силикат | G131: 25 | H131: кг | I131: Ведро | J131: 2.1 | K131: 2.2 | L131: кг/м² | M131: 327.16 | N131: 392.592 | O131: 824.4432 | P131: 9814.8 | R131: 0 | U131: 24 | V131: 616.2 | W131: 696 | X131: финишная штукартурка на основе силикатных смол с царапанной структурой ("шуба") для минеральных оснований
A132: 02119-002 | B132: StoSil K 1,0 getönt (колерованная) C1 | C132: DE | D132: фасад | E132: декоративная штукатурка | F132: силикат | G132: 25 | H132: кг | I132: Ведро | J132: 2.1 | K132: 2.2 | L132: кг/м² | M132: =M131+34 -> 361.16 | N132: 433.392 | O132: 910.1232 | P132: 10834.8 | R132: 0 | U132: 24 | V132: 616.2 | W132: 696
A133: 00103-001 | B133: StoSil K 1,5 weiss (белая) | C133: DE | D133: фасад | E133: декоративная штукатурка | F133: силикат | G133: 25 | H133: кг | I133: Ведро | J133: 2.3 | K133: 2.4 | L133: кг/м² | M133: 327.16 | N133: 392.592 | O133: 902.9616 | P133: 9814.8 | R133: 0 | U133: 24 | V133: 616.2 | W133: 696
A134: 00103-039 | B134: StoSil K 1,5 getönt (колерованная) C1 | C134: DE | D134: фасад | E134: декоративная штукатурка | F134: силикат | G134: 25 | H134: кг | I134: Ведро | J134: 2.3 | K134: 2.4 | L134: кг/м² | M134: =M133+34 -> 361.16 | N134: 433.392 | O134: 996.8016 | P134: 10834.8 | R134: 0 | U134: 24 | V134: 616.2 | W134: 696
A135: 00104-001 | B135: StoSil K 2,0 weiss (белая) | C135: DE | D135: фасад | E135: декоративная штукатурка | F135: силикат | G135: 25 | H135: кг | I135: Ведро | J135: 3 | K135: 3.1 | L135: кг/м² | M135: 327.16 | N135: 392.592 | O135: 1177.776 | P135: 9814.8 | R135: 0 | U135: 24 | V135: 616.2 | W135: 696
A136: 00104-039 | B136: StoSil K 2,0 getönt (колерованная) C1 | C136: DE | D136: фасад | E136: декоративная штукатурка | F136: силикат | G136: 25 | H136: кг | I136: Ведро | J136: 3 | K136: 3.1 | L136: кг/м² | M136: =M135+34 -> 361.16 | N136: 433.392 | O136: 1300.176 | P136: 10834.8 | R136: 0 | U136: 24 | V136: 616.2 | W136: 696
A137: 00105-001 | B137: StoSil K 3,0 weiss (белая) | C137: DE | D137: фасад | E137: декоративная штукатурка | F137: силикат | G137: 25 | H137: кг | I137: Ведро | J137: 4.3 | K137: 4.4 | L137: кг/м² | M137: 327.16 | N137: 392.592 | O137: 1688.1456 | P137: 9814.8 | R137: 0 | U137: 24 | V137: 616.2 | W137: 696
A138: 00105-038 | B138: StoSil K 3,0 getönt (колерованная) C1 | C138: DE | D138: фасад | E138: декоративная штукатурка | F138: силикат | G138: 25 | H138: кг | I138: Ведро | J138: 4.3 | K138: 4.4 | L138: кг/м² | M138: =M137+34 -> 361.16 | N138: 433.392 | O138: 1863.5856 | P138: 10834.8 | R138: 0 | U138: 24 | V138: 616.2 | W138: 696
A139: 00107-001 | B139: StoSil R 1.5 weiss (белая) | C139: DE | D139: фасад | E139: декоративная штукатурка | F139: силикат | G139: 25 | H139: кг | I139: Ведро | J139: 2.3 | K139: 2.4 | L139: кг/м² | M139: 397.3554035 | N139: 476.8264842 | O139: 1096.700914 | P139: 11920.66211 | R139: 0 | U139: 24 | V139: 616.2 | W139: 696 | X139: финишная штукартурка на основе силикатных смол с бороздчатой структурой ("короед") для минеральных оснований
A140: 00107-036 | B140: StoSil R 1.5 getönt (колерованная) C1 | C140: DE | D140: фасад | E140: декоративная штукатурка | F140: силикат | G140: 25 | H140: кг | I140: Ведро | J140: 2.3 | K140: 2.4 | L140: кг/м² | M140: =M139+34 -> 431.3554035 | N140: 517.6264842 | O140: 1190.540914 | P140: 12940.66211 | R140: 0 | U140: 24 | V140: 616.2 | W140: 696
A141: 00108-001 | B141: StoSil R 2,0 weiss (белая) | C141: DE | D141: фасад | E141: декоративная штукатурка | F141: силикат | G141: 25 | H141: кг | I141: Ведро | J141: 3 | K141: 3.1 | L141: кг/м² | M141: 350.4263825 | N141: 420.511659 | O141: 1261.534977 | P141: 10512.79148 | R141: 0 | U141: 24 | V141: 616.2 | W141: 696
A142: 00108-038 | B142: StoSil R 2,0 getönt (колерованная) C1 | C142: DE | D142: фасад | E142: декоративная штукатурка | F142: силикат | G142: 25 | H142: кг | I142: Ведро | J142: 3 | K142: 3.1 | L142: кг/м² | M142: =M141+34 -> 384.4263825 | N142: 461.311659 | O142: 1383.934977 | P142: 11532.79148 | R142: 0 | U142: 24 | V142: 616.2 | W142: 696
A143: 00109-001 | B143: StoSil R 3,0 weiss (белая) | C143: DE | D143: фасад | E143: декоративная штукатурка | F143: силикат | G143: 25 | H143: кг | I143: Ведро | J143: 3.9 | K143: 4 | L143: кг/м² | M143: 383.3330259 | N143: 459.9996311 | O143: 1793.998561 | P143: 11499.99078 | R143: 0 | U143: 24 | V143: 616.2 | W143: 696
A144: 00109-039 | B144: StoSil R 3,0 getönt (колерованная) C1 | C144: DE | D144: фасад | E144: декоративная штукатурка | F144: силикат | G144: 25 | H144: кг | I144: Ведро | J144: 3.9 | K144: 4 | L144: кг/м² | M144: =M143+34 -> 417.3330259 | N144: 500.7996311 | O144: 1953.118561 | P144: 12519.99078 | R144: 0 | U144: 24 | V144: 616.2 | W144: 696
A145: 00110-001 | B145: StoSil MP weiss (белая) | C145: DE | D145: фасад | E145: декоративная штукатурка | F145: силикат | G145: 25 | H145: кг | I145: Ведро | J145: 1.2 | K145: 4 | L145: кг/м² | M145: 327.16 | N145: 392.592 | O145: 471.1104 | P145: 9814.8 | R145: 0 | U145: 24 | V145: 616.2 | W145: 696 | X145: финишная штукатурка на основе силикатных смол с моделируемой структурой для минеральных оснований
A146: 00110-034 | B146: StoSil MP getönt (колерованная) C1 | C146: DE | D146: фасад | E146: декоративная штукатурка | F146: силикат | G146: 25 | H146: кг | I146: Ведро | J146: 1.2 | K146: 4 | L146: кг/м² | M146: =M145+34 -> 361.16 | N146: 433.392 | O146: 520.0704 | P146: 10834.8 | R146: 0 | U146: 24 | V146: 616.2 | W146: 696
A147: 01505_001 | B147: Sto-Strukturputz K 1,5 weiss (белая) | C147: RU | D147: фасад | E147: декоративная штукатурка | F147: цемент | G147: 25 | H147: кг | I147: Мешок | J147: 1.9 | K147: 2 | L147: кг/м² | M147: 49.266 | N147: 59.1192 | O147: 112.32648 | P147: 1477.98 | R147: 0 | S147: ● | U147: 36 | V147: 903.6 | W147: 720 | X147: минеральная финишная штукатурка, усиленная органическими добавками - царапанная структура ("шуба") для минеральных оснований
A148: 01502_004 | B148: Sto-Strukturputz K 2,0 weiss (белая) | C148: RU | D148: фасад | E148: декоративная штукатурка | F148: цемент | G148: 25 | H148: кг | I148: Мешок | J148: 2.4 | K148: 2.5 | L148: кг/м² | M148: 49.266 | N148: 59.1192 | O148: 141.88608 | P148: 1477.98 | R148: 0 | S148: ● | T148: ● | U148: 36 | V148: 903.6 | W148: 720
A149: 01512_001 | B149: Sto-Strukturputz R 1,5 weiss (белая) | C149: RU | D149: фасад | E149: декоративная штукатурка | F149: цемент | G149: 25 | H149: кг | I149: Мешок | J149: 1.9 | K149: 2 | L149: кг/м² | M149: 49.266 | N149: 59.1192 | O149: 112.32648 | P149: 1477.98 | R149: 0 | S149: ● | U149: 36 | V149: 903.6 | W149: 720 | X149: минеральная финишная штукатурка, усиленная органическими добавками - бороздчатая структура ("короед") для минеральных оснований
A150: 01512_002 | B150: Sto-Strukturputz R 2,0 weiss (белая) | C150: RU | D150: фасад | E150: декоративная штукатурка | F150: цемент | G150: 25 | H150: кг | I150: Мешок | J150: 2.4 | K150: 2.5 | L150: кг/м² | M150: 49.266 | N150: 59.1192 | O150: 141.88608 | P150: 1477.98 | R150: 0 | S150: ● | U150: 36 | V150: 903.6 | W150: 720
A151: 08744-001 | B151: StoMiral K 1,0 weiss (белая) | C151: DE | D151: фасад | E151: декоративная штукатурка | F151: цемент | G151: 25 | H151: кг | I151: Мешок | J151: 1.6 | K151: 1.7 | L151: кг/м² | M151: 165.62637 | N151: 198.751644 | O151: 318.0026304 | P151: 4968.7911 | R151: 0 | U151: 36 | V151: 903.6 | W151: 720 | X151: минеральная финишная штукатурка, усиленная органическими добавками - царапанная структура ("шуба") для минеральных оснований
A152: 01380-001 | B152: StoMiral K 1,5 weiss (белая) | C152: DE | D152: фасад | E152: декоративная штукатурка | F152: цемент | G152: 25 | H152: кг | I152: Мешок | J152: 1.8 | K152: 1.9 | L152: кг/м² | M152: 165.62637 | N152: 198.751644 | O152: 357.7529592 | P152: 4968.7911 | R152: 0 | U152: 36 | V152: 903.6 | W152: 720
A153: 01381-001 | B153: StoMiral K 2,0 weiss (белая) | C153: DE | D153: фасад | E153: декоративная штукатурка | F153: цемент | G153: 25 | H153: кг | I153: Мешок | J153: 2.4 | K153: 2.5 | L153: кг/м² | M153: 165.62637 | N153: 198.751644 | O153: 477.0039456 | P153: 4968.7911 | R153: 0 | U153: 36 | V153: 903.6 | W153: 720
A154: 01382-001 | B154: StoMiral K 3,0 weiss (белая) | C154: DE | D154: фасад | E154: декоративная штукатурка | F154: цемент | G154: 25 | H154: кг | I154: Мешок | J154: 2.7 | K154: 2.8 | L154: кг/м² | M154: 165.62637 | N154: 198.751644 | O154: 536.6294388 | P154: 4968.7911 | R154: 0 | U154: 36 | V154: 903.6 | W154: 720
A155: 01385-001 | B155: StoMiral R 1,5 weiss (белая) | C155: DE | D155: фасад | E155: декоративная штукатурка | F155: цемент | G155: 25 | H155: кг | I155: Мешок | J155: 1.8 | K155: 1.9 | L155: кг/м² | M155: 165.62637 | N155: 198.751644 | O155: 357.7529592 | P155: 4968.7911 | R155: 0 | U155: 36 | V155: 903.6 | W155: 720 | X155: финишная штукатурка, усиленная органическими добавками - бороздчатая структура ("короед") для минеральных оснований
A156: 01386-001 | B156: StoMiral R 2,0 weiss (белая) | C156: DE | D156: фасад | E156: декоративная штукатурка | F156: цемент | G156: 25 | H156: кг | I156: Мешок | J156: 2.4 | K156: 2.5 | L156: кг/м² | M156: 165.62637 | N156: 198.751644 | O156: 477.0039456 | P156: 4968.7911 | R156: 0 | U156: 36 | V156: 903.6 | W156: 720
A157: 01387-001 | B157: StoMiral R 3,0 weiss (белая) | C157: DE | D157: фасад | E157: декоративная штукатурка | F157: цемент | G157: 25 | H157: кг | I157: Мешок | J157: 2.8 | K157: 2.9 | L157: кг/м² | M157: 165.62637 | N157: 198.751644 | O157: 556.5046032 | P157: 4968.7911 | R157: 0 | U157: 36 | V157: 903.6 | W157: 720
A158: 00113-020 | B158: StoMiral MP weiss (белая) | C158: DE | D158: фасад | E158: декоративная штукатурка | F158: цемент | G158: 25 | H158: кг | I158: Мешок | J158: 1.5 | K158: 4 | L158: кг/м² | M158: 165.62637 | N158: 198.751644 | O158: 298.127466 | P158: 4968.7911 | R158: =Q158*P158 -> 0 | U158: 36 | V158: 903.6 | W158: 720 | X158: минеральная финишная штукатурка с моделируемой структурой
A159: 00113-023 | B159: StoMiral MP getönt (колерованная) C1 | C159: DE | D159: фасад | E159: декоративная штукатурка | F159: цемент | G159: 25 | H159: кг | I159: Мешок | J159: 1.5 | K159: 4 | L159: кг/м² | M159: =M158+34 -> 199.62637 | N159: 239.551644 | O159: 359.327466 | P159: 5988.7911 | R159: 0 | U159: 36 | V159: 903.6 | W159: 720
A160: 01388-001 | B160: StoMiral Nivell F (мелкозернистая) | C160: DE | D160: фасад | E160: декоративная штукатурка | F160: цемент | G160: 25 | H160: кг | I160: Мешок | J160: 3.4 | K160: 3.5 | L160: кг/м² | M160: 165.62637 | N160: 198.751644 | O160: 675.7555896 | P160: 4968.7911 | R160: 0 | U160: 36 | V160: 903.6 | W160: 720 | X160: мелкозернистая минеральная штукатурка для имитации затертой штукатурки, необходимо покрывать фасадной краской
A161: 09548-002 | B161: StoColor Dryonic weiss (белая) | C161: DE | D161: фасад | E161: краска | F161: акрил | G161: 15 | H161: л | I161: Ведро | J161: 0.12 | K161: 0.4 | L161: л/м² | M161: 1249.285641 | N161: 1499.14277 | O161: 179.8971324 | P161: 22487.14155 | R161: 0 | S161: ● | T161: ● | U161: 24 | V161: 478.44 | W161: 792 | X161: Уникальный новый продукт! Краска с "эффектом сухого фасада" - "Сухая поверхность, несмотря ни на что". Отлично колеруется во многие цвета. Низкий расход. Подходит для поверхностей почти любого типа.
A162: 09548-001 | B162: StoColor Dryonic getönt (колер.) C1 | C162: DE | D162: фасад | E162: краска | F162: акрил | G162: 15 | H162: л | I162: Ведро | J162: 0.12 | K162: 0.4 | L162: л/м² | M162: =M161+68 -> 1317.285641 | N162: 1580.74277 | O162: 189.6891324 | P162: 23711.14155 | R162: 0 | T162: ● | U162: 24 | V162: 478.44 | W162: 792
A163: 09548-006 | B163: StoColor Dryonic G (белая) | C163: DE | D163: фасад | E163: краска | F163: акрил | G163: 15 | H163: л | I163: Ведро | J163: 0.12 | K163: 0.4 | L163: л/м² | M163: 1247.846777 | N163: =M163*1.2 -> 1497.416132 | O163: 179.6899358 | P163: 22461.24198 | R163: =Q163*P163 -> 0 | S163: ● | T163: ● | U163: 24 | V163: 478.44 | W163: 792 | X163: Уникальный новый продукт! Краска с "эффектом сухого фасада" - "Сухая поверхность, несмотря ни на что". Отлично колеруется во многие цвета. Низкий расход. Подходит для поверхностей почти любого типа. Усилена антигрибковой добавкой G
A164: 09548-005 | B164: StoColor Dryonic G getönt (колер.) С1 | C164: DE | D164: фасад | E164: краска | F164: акрил | G164: 15 | H164: л | I164: Ведро | J164: 0.12 | K164: 0.4 | L164: л/м² | M164: =M163+68 -> 1315.846777 | N164: =M164*1.2 -> 1579.016132 | O164: 189.4819358 | P164: 23685.24198 | R164: =Q164*P164 -> 0 | S164: ● | T164: ● | U164: 24 | V164: 478.44 | W164: 792
A165: 09548-016 | B165: StoColor Dryonic S weiss (белая) | C165: DE | D165: фасад | E165: краска | F165: акрил | G165: 15 | H165: л | I165: Ведро | J165: 0.12 | K165: 0.4 | L165: л/м² | M165: 1706.985834 | N165: 2048.383001 | O165: 245.8059601 | P165: 30725.74501 | R165: 0 | U165: 24 | V165: 478.44 | W165: 792 | X165: Уникальный новый продукт! Краска с "эффектом сухого фасада" - "Сухая поверхность, несмотря ни на что". Изготовлена по технологии "Сан Блок"- гарантия от выгорания до 5-ти лет, даже для насыщенных тонов. Отлично колеруется во многие цвета. Низкий расход. Подходит для поверхностей почти любого типа. Колеровка некоторых цветов на головном предприятии (в Германии)
A166: 09548-015 | B166: StoColor Dryonic S getönt (колер.) C1 | C166: DE | D166: фасад | E166: краска | F166: акрил | G166: 15 | H166: л | I166: Ведро | J166: 0.12 | K166: 0.3 | L166: л/м² | M166: =M165+68 -> 1774.985834 | N166: 2129.983001 | O166: 255.5979601 | P166: 31949.74501 | R166: 0 | U166: 24 | V166: 478.44 | W166: 792
A167: 09548-018 | B167: StoColor Dryonic S weiss (белая) | C167: DE | D167: фасад | E167: краска | F167: акрил | G167: 5 | H167: л | I167: Ведро | J167: 0.12 | K167: 0.3 | L167: л/м² | M167: 1878.313431 | N167: 2253.976117 | O167: 270.477134 | P167: 11269.88058 | R167: 0 | U167: 60 | V167: 398.7 | W167: 1980
A168: 09548-017 | B168: StoColor Dryonic S getönt (колер.) C1 | C168: DE | D168: фасад | E168: краска | F168: акрил | G168: 5 | H168: л | I168: Ведро | J168: 0.12 | K168: 0.3 | L168: л/м² | M168: =M167+68 -> 1946.313431 | N168: 2335.576117 | O168: 280.269134 | P168: 11677.88058 | R168: 0 | U168: 60 | V168: 398.7 | W168: 1980
A169: 09548-024 | B169: StoColor Dryonic Wood weiss (белая) | C169: DE | D169: древесина | E169: краска | F169: акрил | G169: 10 | H169: л | I169: Ведро | J169: 0.12 | K169: 0.3 | L169: л/м² | M169: 1417.178769 | N169: 1700.614523 | O169: 204.0737427 | P169: 17006.14523 | R169: 0 | U169: 27 | V169: 358.83 | W169: 891 | X169: Уникальный новый продукт! Краска для дерева с "эффектом сухого фасада" - "Сухая поверхность, несмотря ни на что". Отлично колеруется во многие цвета. Низкий расход. Подходит для покраски деревянных поверхностей.
A170: 09548-023 | B170: StoColor Dryonic Wood getönt (колер.) C1 | C170: DE | D170: древесина | E170: краска | F170: акрил | G170: 10 | H170: л | I170: Ведро | J170: 0.12 | K170: 0.3 | L170: л/м² | M170: =M169+68 -> 1485.178769 | N170: 1782.214523 | O170: 213.8657427 | P170: 17822.14523 | R170: 0 | U170: 27 | V170: 358.83 | W170: 891
A171: 09548-035 | B171: StoColor Dryonic Wood weiss (белая) | C171: DE | D171: древесина | E171: краска | F171: акрил | G171: 2,5 | H171: л | I171: Ведро | J171: 0.12 | K171: 0.3 | L171: л/м² | M171: 1779.032454 | N171: 2134.838945 | O171: 256.1806734 | P171: 5337.097363 | R171: 0 | U171: 72 | V171: 239.256 | W171: 2376
A172: 09548-033 | B172: StoColor Dryonic Wood getönt (колер.) C1 | C172: DE | D172: древесина | E172: краска | F172: акрил | G172: 2,5 | H172: л | I172: Ведро | J172: 0.12 | K172: 0.3 | L172: л/м² | M172: =M171+68 -> 1847.032454 | N172: 2216.438945 | O172: 265.9726734 | P172: 5541.097363 | R172: 0 | U172: 72 | V172: 239.256 | W172: 2376
A173: 03206-064 | B173: StoColor Lotusan weiss (белая) | C173: DE | D173: фасад | E173: краска | F173: силикон/Лотос | G173: 12.5 | H173: л | I173: Ведро | J173: 0.16 | K173: 0.4 | L173: л/м² | M173: 903.6596576 | N173: 1084.391589 | O173: 173.5026543 | P173: 13554.89486 | R173: 0 | S173: ● | T173: ● | U173: 32 | V173: 628 | W173: 928 | X173: Уникальный продукт! Единственная в мире самоочищающаяся силиконовая краска с "эффектом лотоса". Очень низкий расход. Подходит для поверхности многих типов.
A174: 03206-063 | B174: StoColor Lotusan getönt (колер.) C1 | C174: DE | D174: фасад | E174: краска | F174: силикон/Лотос | G174: 12.5 | H174: л | I174: Ведро | J174: 0.16 | K174: 0.4 | L174: л/м² | M174: =M173+68 -> 971.6596576 | N174: 1165.991589 | O174: 186.5586543 | P174: 14574.89486 | R174: 0 | U174: 32 | V174: 628 | W174: 928
A175: 02939-001 | B175: StoColor Photosan weiss (белая) | C175: DE | D175: фасад | E175: краска | F175: акрил | G175: 15 | H175: л | I175: Ведро | J175: 0.15 | K175: 0.36 | L175: л/м² | M175: 1932.42 | N175: 2318.904 | O175: 347.8356 | P175: 34783.56 | R175: 0 | U175: 24 | V175: 550.8 | W175: 792 | X175: активная фасадная краска с очищающим действием. С функцией очищения воздуха. Рекомендована для покраски первой линии домов в мегаполисах. Высокая укрывистость и водоотталкивающая способность. Сохраняет структуру основания.
A176: 02939-002 | B176: StoColor Photosan getönt (колерованная) C1 | C176: DE | D176: фасад | E176: краска | F176: акрил | G176: 15 | H176: л | I176: Ведро | J176: 0.15 | K176: 0.36 | L176: л/м² | M176: =M175+68 -> 2000.42 | N176: 2400.504 | O176: 360.0756 | P176: 36007.56 | R176: 0 | U176: 24 | V176: 550.8 | W176: 792
A177: 08780-003 | B177: StoColor X-blaсk (колерованная) C1 | C177: DE | D177: фасад | E177: краска | F177: акрил | G177: 15 | H177: л | I177: Ведро | J177: 0.15 | K177: 0.36 | L177: л/м² | M177: 1977.36 | N177: 2372.832 | O177: 355.9248 | P177: 35592.48 | R177: 0 | U177: 24 | V177: 537.84 | W177: 792 | X177: специальная краска для насыщенных цветов, предотвращает чрезмерный нагрев фасада. Специально разработана для систем теплоизоляции. Поставляется под заказ и только колерованная.
A178: 08780-004 | B178: StoColor X-blaсk (колерованная) C1 | C178: DE | D178: фасад | E178: краска | F178: акрил | G178: 5 | H178: л | I178: Ведро | J178: 0.15 | K178: 0.36 | L178: л/м² | M178: =M177+68 -> 2045.36 | N178: 2454.432 | O178: 368.1648 | P178: 12272.16 | R178: 0 | U178: 60 | V178: 450.3 | W178: 1980
A179: 00207-014 | B179: StoColor Sil weiss (белая) | C179: DE | D179: фасад | E179: краска | F179: силикат | G179: 15 | H179: л | I179: Ведро | J179: 0.15 | K179: 0.4 | L179: л/м² | M179: 751.5364521 | N179: 901.8437425 | O179: 135.2765614 | P179: 13527.65614 | R179: 0 | U179: 24 | V179: 586.44 | W179: 744 | X179: дисперсионно-силикатная краска для минеральных поверхностей. Низкий расход.
A180: 00207-050 | B180: StoColor Sil getönt (колерованная) C1 | C180: DE | D180: фасад | E180: краска | F180: силикат | G180: 15 | H180: л | I180: Ведро | J180: 0.15 | K180: 0.4 | L180: л/м² | M180: =M179+68 -> 819.5364521 | N180: 983.4437425 | O180: 147.5165614 | P180: 14751.65614 | R180: 0 | U180: 24 | V180: 586.44 | W180: 744
A181: 09549-002 | B181: StoColor Solical (белая) | C181: DE | D181: фасад | E181: краска | F181: соль-силикат | G181: 15 | H181: л | I181: Ведро | J181: 0.15 | K181: 0.4 | L181: л/м² | M181: 966.9124311 | N181: 1160.294917 | O181: 174.0442376 | P181: 17404.42376 | R181: 0 | U181: 24 | V181: 586.44 | W181: 744 | X181: Уникальная краска на основе сольсиликата! Отлично противостоит атмосферным осадкам, очень высокая паропроницаемость, 100% адгезия к минеральным основаниям
A182: 09549-001 | B182: StoColor Solical (колерованная) C1 | C182: DE | D182: фасад | E182: краска | F182: соль-силикат | G182: 15 | H182: л | I182: Ведро | J182: 0.15 | K182: 0.4 | L182: л/м² | M182: =M181+68 -> 1034.912431 | N182: 1241.894917 | O182: 186.2842376 | P182: 18628.42376 | R182: 0 | U182: 24 | V182: 586.44 | W182: 744
A183: 09549-006 | B183: StoColor Solical G (белая) | C183: DE | D183: фасад | E183: краска | F183: соль-силикат | G183: 15 | H183: л | I183: Ведро | J183: 0.15 | K183: 0.4 | L183: л/м² | M183: 992.5912695 | N183: =M183*1.2 -> 1191.109523 | O183: 178.6664285 | P183: 17866.64285 | R183: =Q183*P183 -> 0 | U183: 24 | V183: 586.44 | W183: 744 | X183: Уникальная краска на основе сольсиликата! Отлично противостоит атмосферным осадкам, очень высокая паропроницаемость, 100% адгезия к минеральным основаниям. Усилена антигрибковой добавкой G
A184: 09549-005 | B184: StoColor Solical G (колерованная) С1 | C184: DE | D184: фасад | E184: краска | F184: соль-силикат | G184: 15 | H184: л | I184: Ведро | J184: 0.15 | K184: 0.4 | L184: л/м² | M184: =M183+68 -> 1060.591269 | N184: =M184*1.2 -> 1272.709523 | O184: 190.9064285 | P184: 19090.64285 | R184: =Q184*P184 -> 0 | U184: 24 | V184: 586.44 | W184: 744
A185: 00058-002 | B185: StoColor Solical Fill (белая) | C185: DE | D185: фасад | E185: структурная краска | F185: соль-силикат | G185: 25 | H185: л | I185: Ведро | J185: 0.3 | K185: 0.7 | L185: л/м² | M185: 573.5229236 | N185: 688.2275084 | O185: 206.4682525 | P185: 17205.68771 | R185: 0 | U185: 24 | V185: 616.32 | W185: 744 | X185: Уникальная структурная краска на основе сольсиликата! Отлично противостоит атмосферным осадкам, очень высокая паропроницаемость, 100% адгезия к минеральным основаниям
A186: 00058-001 | B186: StoColor Solical Fill (колерованная) C1 | C186: DE | D186: фасад | E186: структурная краска | F186: соль-силикат | G186: 25 | H186: л | I186: Ведро | J186: 0.3 | K186: 0.7 | L186: л/м² | M186: =M185+68 -> 641.5229236 | N186: 769.8275084 | O186: 230.9482525 | P186: 19245.68771 | R186: 0 | U186: 24 | V186: 616.32 | W186: 744
A187: 00248-001 | B187: StoColor Sil Lasura | C187: DE | D187: фасад | E187: лазурь | F187: силикат | G187: 10 | H187: л | I187: Канистра | J187: 0.1 | K187: 0.2 | L187: л/м² | M187: 532.6865218 | N187: 639.2238262 | O187: 63.92238262 | P187: 6392.238262 | R187: 0 | U187: 60 | V187: 635.4 | W187: 1680 | X187: дисперсионно - силикатная лазурь для нанесения лессирующего финишного покрытия.
A188: 14026_129 | B188: StoColor Neosil B weiss (белая) | C188: RU | D188: фасад | E188: краска | F188: акрил | G188: 15 | H188: л | I188: Ведро | J188: 0.16 | K188: 0.5 | L188: л/м² | M188: 388.2816 | N188: 465.93792 | O188: 74.5500672 | P188: 6989.0688 | R188: 0 | T188: ● | U188: 24 | V188: 574.8 | W188: 744 | X188: фасадная матовая краска на основе полимерных смол с высокой паропроницаемостью. Колеруется в тона группы С1
A189: 14026_229 | B189: StoColor Neosil B getönt (колерованная) C1 | C189: RU | D189: фасад | E189: краска | F189: акрил | G189: 15 | H189: л | I189: Ведро | J189: 0.16 | K189: 0.5 | L189: л/м² | M189: =M188+68 -> 456.2816 | N189: 547.53792 | O189: 87.6060672 | P189: 8213.0688 | R189: 0 | U189: 24 | V189: 574.8 | W189: 744
A190: 14026_130 | B190: StoColor Neosil B G | C190: RU | D190: фасад | E190: краска | F190: акрил | G190: 15 | H190: л | I190: Ведро | J190: 0.16 | K190: 0.5 | L190: л/м² | M190: 407.69568 | N190: =M190*1.2 -> 489.234816 | O190: 78.27757056 | P190: 7338.52224 | R190: =Q190*P190 -> 0 | U190: 24 | V190: 574.8 | W190: 744 | X190: фасадная матовая краска на основе полимерных смол с высокой паропроницаемостью с биоцидными добавками. Колеруется в тона группы С1
A191: 14026_230 | B191: StoColor Neosil B G (колерованная) С1 | C191: RU | D191: фасад | E191: краска | F191: акрил | G191: 15 | H191: л | I191: Ведро | J191: 0.16 | K191: 0.5 | L191: л/м² | M191: =M190+68 -> 475.69568 | N191: =M191*1.2 -> 570.834816 | O191: 91.33357056 | P191: 8562.52224 | R191: 0 | U191: 24 | V191: 574.8 | W191: 744
A192: 00230-003 | B192: StoColor S grob weiss (крупный наполнитель, белая) | C192: DE | D192: универсальный | E192: структурная краска | F192: акрил | G192: 25 | H192: л | I192: Ведро | J192: 0.3 | K192: 0.8 | L192: л/м² | M192: 396.6473615 | N192: 475.9768339 | O192: 142.7930502 | P192: 11899.42085 | R192: 0 | S192: ● | U192: 24 | V192: 616.2 | W192: 696 | X192: Уникальный продукт! Матовая наполненная дисперсионная краска с тонкой или грубой структурой. Позволяет создавать различные структуры, обладает прекрасными заполняющими свойствами.
A193: 00230-001 | B193: StoColor S grob getönt (крупный наполнитель, колерованная) | C193: DE | D193: универсальный | E193: структурная краска | F193: акрил | G193: 25 | H193: л | I193: Ведро | J193: 0.3 | K193: 0.8 | L193: л/м² | M193: 521.1541797 | N193: =M193*1.2 -> 625.3850157 | O193: =$N193*$J193 -> 187.6155047 | P193: =$N193*$G193 -> 15634.62539 | R193: 0 | U193: 24 | V193: 616.2 | W193: 696
A194: 00231-001 | B194: StoColor S fein weiss (мелкий наполнитель, белая) | C194: DE | D194: универсальный | E194: структурная краска | F194: акрил | G194: 25 | H194: л | I194: Ведро | J194: 0.3 | K194: 0.8 | L194: л/м² | M194: 396.9852532 | N194: 476.3823038 | O194: 142.9146912 | P194: 11909.5576 | R194: 0 | S194: ● | T194: ● | U194: 24 | V194: 616.2 | W194: 696
A195: 00231-004 | B195: StoColor S fein getönt (мелкий наполнитель, колерованная) | C195: DE | D195: универсальный | E195: структурная краска | F195: акрил | G195: 25 | H195: л | I195: Ведро | J195: 0.3 | K195: 0.8 | L195: л/м² | M195: 609.5304035 | N195: 731.4364842 | O195: 219.4309453 | P195: 18285.91211 | R195: =Q195*P195 -> 0 | U195: 24 | V195: 616.2 | W195: 696
A196: 00201-014 | B196: StoColor Maxicryl weiss (белая) | C196: DE | D196: фасад | E196: краска | F196: акрил | G196: 15 | H196: л | I196: Ведро | J196: 0.15 | K196: 0.4 | L196: л/м² | M196: 1015.542425 | N196: 1218.65091 | O196: 182.7976364 | P196: 18279.76364 | R196: 0 | U196: 24 | V196: 539.64 | W196: 792 | X196: универсальная матовая высокоукрывистая дисперсионная краска, применяется на всех типах оснований. Отлично подходит для поверхностей, подвергающихся высокой влажностной нагрузке, очень хорошая защита от дождя. Очень низкий расход.
A197: 00201-044 | B197: StoColor Maxicryl getönt (колерованная) C1 | C197: DE | D197: фасад | E197: краска | F197: акрил | G197: 15 | H197: л | I197: Ведро | J197: 0.15 | K197: 0.4 | L197: л/м² | M197: =M196+68 -> 1083.542425 | N197: 1300.25091 | O197: 195.0376364 | P197: 19503.76364 | R197: 0 | U197: 24 | V197: 539.64 | W197: 792
A198: 00201-009 | B198: StoColor Maxicryl weiss (белая) | C198: DE | D198: фасад | E198: краска | F198: акрил | G198: 5 | H198: л | I198: Ведро | J198: 0.15 | K198: 0.4 | L198: л/м² | M198: 1241.429375 | N198: 1489.71525 | O198: 223.4572874 | P198: 7448.576248 | R198: 0 | U198: 60 | V198: 449.7 | W198: 1980
A199: 00201-057 | B199: StoColor Maxicryl getönt (колерованная) C1 | C199: DE | D199: фасад | E199: краска | F199: акрил | G199: 5 | H199: л | I199: Ведро | J199: 0.15 | K199: 0.4 | L199: л/м² | M199: =M198+68 -> 1309.429375 | N199: 1571.31525 | O199: 235.6972874 | P199: 7856.576248 | R199: 0 | U199: 60 | V199: 449.7 | W199: 1980
A200: 00274-001 | B200: StoColor Fibrasil weiss (белая) | C200: DE | D200: фасад | E200: санирующая краска | F200: акрил | G200: 15 | H200: л | I200: Ведро | J200: 0.2 | K200: 0.6 | L200: л/м² | M200: 923.6918599 | N200: 1108.430232 | O200: 221.6860464 | P200: 16626.45348 | R200: 0 | U200: 24 | V200: 498.24 | W200: 792 | X200: матовая эластичная дисперсионная краска, усиленная полисилоксаном, особо подходит для перекрытия мелких трещин, создает небольшую структуру.
A201: 00274-007 | B201: StoColor Fibrasil getönt (колерованная) C1 | C201: DE | D201: фасад | E201: санирующая краска | F201: акрил | G201: 15 | H201: л | I201: Ведро | J201: 0.2 | K201: 0.6 | L201: л/м² | M201: =M200+68 -> 991.6918599 | N201: 1190.030232 | O201: 238.0060464 | P201: 17850.45348 | R201: 0 | U201: 24 | V201: 498.24 | W201: 792
... 100 more rows

Sheet 2. ИНТЕРЬЕР
A2: Прайс-лист Товаров Продуктовой группы раздела «Интерьер» Цены действительны c 01.10.2021 г.
A3: Артикул | B3: Наименование продукта | C3: Производство | D3: Область применения | E3: Вид материала | F3: Основа материала | G3: Класс влажного истирания | H3: Класс укрывистости | I3: Степень матовости | J3: Упаковка | M3: Расчетный расход продукта | P3: Цена БЕЗ учета НДС за единицу измерения | Q3: Цена с НДС за единицу измерения | R3: Цена с НДС за 1м² (при min расходе) | S3: Цена с НДС за упаковку | T3: Кол-во единиц товара | U3: Сумма заказа с НДС | V3: Наличие на складе | W3: Рекомендованный ассортимент | X3: Количество упаковок на паллете, шт. | Y3: Вес одного паллето-места (без палеты), кг. | Z3: Норма загрузки авто (20 т.) шт. | AA3: Краткое описание продукта
J4: к-во | K4: ед. | L4: вид упаковки | M4: от | N4: до | O4: еденица измерения
A5: 00861_012 | B5: StoPrim Solid | C5: RU | D5: универсальный | E5: грунт проникающий | F5: акрил | G5: н/д | H5: н/д | I5: н/д | J5: 5 | K5: л | L5: Канистра | M5: 0.02 | N5: 0.08 | O5: л/м² | P5: 495.4635 | Q5: =P5*1.2 -> 594.5562 | R5: =Q5*M5 -> 11.891124 | S5: =Q5*J5 -> 2972.781 | U5: =T5*S5 -> 0 | V5: ● | W5: ● | X5: 96 | Y5: 498.72 | Z5: 3168 | AA5: универсальная водорастворимая грунтовка - концентрат на основе акрилата с модифицирующими добавками. Разбавляется водой в соотношении 1:4. Глубоко проникает, хорошо укрепляет основание.
A6: 09609-001 | B6: StoPrim GT | C6: DE | D6: интерьер | E6: грунт проникающий | F6: акрил | G6: н/д | H6: н/д | I6: н/д | J6: 15 | K6: л | L6: Ведро | M6: 0.1 | N6: 0.3 | O6: л/м² | P6: 361.8552744 | Q6: 434.2263292 | R6: 43.42263292 | S6: 6513.394939 | U6: =T6*S6 -> 0 | X6: 24 | Y6: 439.2 | Z6: 792 | AA6: Уникальный продукт! Проникающая грунтовка с технологией "Гель-Технолоджи", не капает, не образует подтеков. Идеальна для нанесения валиком! Идеальна для сложных поверхностей с "косым" светом
A7: 00870-047 | B7: StoPrim Sol GT | C7: DE | D7: универсальный | E7: грунт проникающий | F7: силикат | G7: н/д | H7: н/д | I7: н/д | J7: 15 | K7: л | L7: Ведро | M7: 0.1 | N7: 0.6 | O7: л/м² | P7: 356.9072626 | Q7: 428.2887151 | R7: 42.82887151 | S7: 6424.330727 | U7: 0 | X7: 24 | Y7: 439.2 | Z7: 792 | AA7: водоразбавимая бесцветная грунтовка на силикатной основе, идеальна для минеральных и органических оснований. Гелевая консистенция минимизурующая образование капель
A8: 00870-006 | B8: StoPrim Silikat | C8: DE | D8: универсальный | E8: грунт проникающий | F8: силикат | G8: н/д | H8: н/д | I8: н/д | J8: 10 | K8: л | L8: Канистра | M8: 0.15 | N8: 0.6 | O8: л/м² | P8: 292.11 | Q8: 350.532 | R8: 52.5798 | S8: 3505.32 | U8: 0 | X8: 60 | Y8: 653.4 | Z8: 1680 | AA8: водоразбавимая бесцветная грунтовка на силикатной основе, идеальна для минеральных покрытий
A9: 00518-002 | B9: StoPrim Plex | C9: DE | D9: интерьер | E9: грунт проникающий | F9: акрил | G9: н/д | H9: н/д | I9: н/д | J9: 20 | K9: л | L9: Канистра | M9: 0.1 | N9: 0.4 | O9: л/м² | P9: 359.47 | Q9: 431.364 | R9: 43.1364 | S9: 8627.28 | U9: 0 | V9: ● | X9: 24 | Y9: 498.72 | Z9: 792 | AA9: универсальная грунтовка на акрилатной основе, не содержит растворителей и пластификаторов
A10: 00518-001 | B10: StoPrim Plex | C10: DE | D10: интерьер | E10: грунт проникающий | F10: акрил | G10: н/д | H10: н/д | I10: н/д | J10: 10 | K10: л | L10: Канистра | M10: 0.1 | N10: 0.4 | O10: л/м² | P10: 364.52 | Q10: 437.424 | R10: 43.7424 | S10: 4374.24 | U10: 0 | V10: ● | X10: 60 | Y10: 623.4 | Z10: 1740
A11: 00517-001 | B11: StoPrim Color weiss (белая) | C11: DE | D11: универсальный | E11: грунт адгезионный | F11: акрил | G11: н/д | H11: н/д | I11: н/д | J11: 15 | K11: л | L11: Ведро | M11: 0.2 | N11: 0.3 | O11: л/м² | P11: 587.1075609 | Q11: 704.5290731 | R11: 140.9058146 | S11: 10567.9361 | U11: 0 | X11: 24 | Y11: 519.84 | Z11: 792 | AA11: грунтовочная краска, не содержит растворителей и пластификаторов, при высыхании не выделяет вредных веществ
A12: 00517-008 | B12: StoPrim Color getönt (колерованная) | C12: DE | D12: универсальный | E12: грунт адгезионный | F12: акрил | G12: н/д | H12: н/д | I12: н/д | J12: 15 | K12: л | L12: Ведро | M12: 0.2 | N12: 0.3 | O12: л/м² | P12: =P11+34 -> 621.1075609 | Q12: 745.3290731 | R12: 149.0658146 | S12: 11179.9361 | U12: 0 | X12: 24 | Y12: 519.84 | Z12: 792
A13: 01304-005 | B13: StoPrim Isol | C13: DE | D13: универсальный | E13: грунт изолирующий | F13: акрил | G13: н/д | H13: н/д | I13: н/д | J13: 15 | K13: л | L13: Ведро | M13: 0.1 | N13: 0.4 | O13: л/м² | P13: 842.09 | Q13: 1010.508 | R13: 101.0508 | S13: 15157.62 | U13: 0 | X13: 24 | Y13: 441.36 | Z13: 792 | AA13: водоразбавимая изолирующая грунтовка на акрилатной основе
A14: 01304-006 | B14: StoPrim Isol | C14: DE | D14: универсальный | E14: грунт изолирующий | F14: акрил | G14: н/д | H14: н/д | I14: н/д | J14: 5 | K14: л | L14: Ведро | M14: 0.1 | N14: 0.4 | O14: л/м² | P14: 1016.240721 | Q14: 1219.488865 | R14: 121.9488865 | S14: 6097.444325 | U14: 0 | W14: ● | X14: 60 | Y14: 367.8 | Z14: 1980
A15: 00855-003 | B15: StoPrim LP | C15: DE | D15: универсальный | E15: грунт изолирующий | F15: растворитель | G15: н/д | H15: н/д | I15: н/д | J15: 12.5 | K15: л | L15: Ведро | M15: 0.13 | N15: 0.15 | O15: л/м² | P15: 1807.61607 | Q15: 2169.139285 | R15: 281.988107 | S15: 27114.24106 | U15: 0 | X15: 24 | Y15: 454.2 | Z15: 792 | AA15: изолирующая грунтовка, содержит растворитель
A16: 00872-001 | B16: StoPrep In natur (натурального цвета) | C16: DE | D16: интерьер | E16: грунт адгезионный | F16: акрил | G16: н/д | H16: н/д | I16: н/д | J16: 25 | K16: кг | L16: Ведро | M16: 0.18 | N16: 0.32 | O16: кг/м² | P16: 377.496 | Q16: 452.9952 | R16: 81.539136 | S16: 11324.88 | U16: 0 | X16: 24 | Y16: 616.2 | Z16: 696 | AA16: органическое предварительное и промежуточное покрытие, упрощает последующее нанесение штукатурных слоев, улучшает адгезию
A17: 00872-006 | B17: StoPrep In getönt (колерованное) | C17: DE | D17: интерьер | E17: грунт адгезионный | F17: акрил | G17: н/д | H17: н/д | I17: н/д | J17: 25 | K17: кг | L17: Ведро | M17: 0.18 | N17: 0.32 | O17: кг/м² | P17: =P16+34 -> 411.496 | Q17: 493.7952 | R17: 88.883136 | S17: 12344.88 | U17: 0 | X17: 24 | Y17: 616.2 | Z17: 696
A18: 00872-004 | B18: StoPrep In natur (натурального цвета) | C18: DE | D18: интерьер | E18: грунт адгезионный | F18: акрил | G18: н/д | H18: н/д | I18: н/д | J18: 8 | K18: кг | L18: Ведро | M18: 0.18 | N18: 0.32 | O18: кг/м² | P18: 535.32 | Q18: 642.384 | R18: 115.62912 | S18: 5139.072 | U18: 0 | X18: 60 | Y18: 495.36 | Z18: 1980
A19: 00872-005 | B19: StoPrep In getönt (колерованное) | C19: DE | D19: интерьер | E19: грунт адгезионный | F19: акрил | G19: н/д | H19: н/д | I19: н/д | J19: 8 | K19: кг | L19: Ведро | M19: 0.18 | N19: 0.32 | O19: кг/м² | P19: =P18+34 -> 569.32 | Q19: 683.184 | R19: 122.97312 | S19: 5465.472 | U19: 0 | X19: 60 | Y19: 495.36 | Z19: 1980
A20: 00884-001 | B20: StoPrep Contact | C20: DE | D20: универсальный | E20: грунт адгезионный | F20: акрил | G20: н/д | H20: н/д | I20: н/д | J20: 25 | K20: кг | L20: Ведро | M20: 0.2 | N20: 2 | O20: кг/м² | P20: 298.390365 | Q20: 358.068438 | R20: 71.6136876 | S20: 8951.71095 | U20: 0 | X20: 24 | Y20: 616.2 | Z20: 696 | AA20: "адгезионный мостик" для гладких оснований, может смешиваться с цементом
A21: 00749-018 | B21: StoLevell In XXL (мешок) | C21: DE | D21: интерьер | E21: шпатлевка | F21: акрил | G21: н/д | H21: н/д | I21: matt | J21: 25 | K21: кг | L21: Мешок | M21: 0.8 | N21: 3 | O21: кг/м² | P21: 287.7044565 | Q21: 345.2453478 | R21: 276.1962783 | S21: 8631.133696 | U21: 0 | X21: 36 | Y21: 903.6 | Z21: 720 | AA21: органическая заполняющая шпаклевочная масса для машинного и ручного нанесения
A22: 00749-019 | B22: StoLevell In XXL (ведро) | C22: DE | D22: интерьер | E22: шпатлевка | F22: акрил | G22: н/д | H22: н/д | I22: matt | J22: 25 | K22: кг | L22: Ведро | M22: 0.8 | N22: 3 | O22: кг/м² | P22: 338.3542835 | Q22: 406.0251402 | R22: 324.8201121 | S22: 10150.6285 | U22: 0 | X22: 24 | Y22: 614.4 | Z22: 696
A23: 00822-001 | B23: StoLevell in Resist | C23: DE | D23: интерьер | E23: шпатлевка | F23: акрил | G23: н/д | H23: н/д | I23: matt | J23: 25 | K23: кг | L23: Ведро | M23: 0.8 | N23: 3 | O23: кг/м² | P23: 336.6400189 | Q23: 403.9680227 | R23: 323.1744181 | S23: 10099.20057 | U23: 0 | X23: 24 | Y23: 616.2 | Z23: 696 | AA23: органическая шпаклевка для влажных помещений
A24: 00819-001 | B24: StoLevell in Sil | C24: DE | D24: интерьер | E24: шпатлевка | F24: силикат | G24: н/д | H24: н/д | I24: matt | J24: 25 | K24: кг | L24: Ведро | M24: 0.8 | N24: 3 | O24: кг/м² | P24: 355.5288994 | Q24: 426.6346792 | R24: 341.3077434 | S24: 10665.86698 | U24: 0 | X24: 24 | Y24: 616.2 | Z24: 696 | AA24: дисперсионная силикатная шпаклевка для минеральных и органических оснований, проста в применении, наносится вручную, легко шлифуется
A25: 01230-001 | B25: StoLevell In G | C25: DE | D25: интерьер | E25: шпатлевка | F25: акрил | G25: н/д | H25: н/д | I25: matt | J25: 25 | K25: кг | L25: Ведро | M25: 1.1 | N25: 5 | O25: кг/м² | P25: 300.3088289 | Q25: 360.3705947 | R25: 396.4076542 | S25: 9009.264868 | U25: 0 | X25: 24 | Y25: 616.2 | Z25: 696 | AA25: грубая органическая шпаклевка
A26: 08899-001 | B26: StoLevell Calce RP (мешок) | C26: DE | D26: интерьер | E26: штукатурка | F26: известь | G26: н/д | H26: н/д | I26: matt | J26: 25 | K26: кг | L26: Мешок | M26: 12 | N26: 24 | O26: кг/м² | P26: 222.2470302 | Q26: 266.6964362 | R26: 3200.357234 | S26: 6667.410905 | U26: 0 | X26: 36 | Y26: 903.6 | Z26: 720 | AA26: известковая штукатурка
A27: 09320-001 | B27: StoLevell Calce FS (мешок) | C27: DE | D27: интерьер | E27: шпатлевка | F27: известь | G27: н/д | H27: н/д | I27: matt | J27: 25 | K27: кг | L27: Мешок | M27: 4 | N27: 8 | O27: кг/м² | P27: 231.049687 | Q27: 277.2596244 | R27: 1109.038498 | S27: 6931.49061 | U27: 0 | X27: 36 | Y27: 903.6 | Z27: 720 | AA27: известковая финишная шпаклевка
A28: 01245-001 | B28: StoLevell In As | C28: DE | D28: интерьер | E28: шпатлевка | F28: акрил | G28: н/д | H28: н/д | I28: matt | J28: 25 | K28: кг | L28: Мешок | M28: 1 | N28: 5 | O28: кг/м² | P28: 285.9197254 | Q28: 343.1036705 | R28: 343.1036705 | S28: 8577.591763 | U28: 0 | X28: 40 | Y28: 1004 | Z28: 720 | AA28: органическая особотонкая готовая к применению шпаклевка, идеально подходит для нанесения методом безвоздушного напыления, а также при помощи валика или шпателя
A29: 01245-003 | B29: StoLevell In As | C29: DE | D29: интерьер | E29: шпатлевка | F29: акрил | G29: н/д | H29: н/д | I29: matt | J29: 25 | K29: кг | L29: Ведро | M29: 1 | N29: 5 | O29: кг/м² | P29: 337.9005383 | Q29: 405.4806459 | R29: 405.4806459 | S29: 10137.01615 | U29: 0 | X29: 24 | Y29: 616.2 | Z29: 696
A30: 08414-004 | B30: StoLevell In Repair | C30: DE | D30: древесина | E30: шпатлевка | F30: акрил | G30: н/д | H30: н/д | I30: matt | J30: 0,375 | K30: кг | L30: Туба | M30: 0.25 | N30: 0.4 | O30: кг/м² | P30: 473.1079837 | Q30: 567.7295804 | R30: 141.9323951 | S30: 212.8985927 | U30: 0 | X30: Н/Д | Y30: Н/Д | Z30: Н/Д | AA30: органическая шпаклевка для заполнения и выравнивания небольших площадей, подходит для древесины, бетона
A31: 02970-001 | B31: StoLevell In Fill | C31: DE | D31: интерьер | E31: шпатлевка | F31: гипс | G31: н/д | H31: н/д | I31: matt | J31: 15 | K31: кг | L31: Мешок | M31: 0.3 | N31: 30 | O31: кг/м² | P31: 253.3024087 | Q31: 303.9628904 | R31: 91.18886713 | S31: 4559.443357 | U31: 0 | X31: 48 | Y31: 722.88 | Z31: 1200 | AA31: минеральная (на основе гипса) шпаклевочная масса для выравнивания поверхности, заполнения трещин, швов
A32: 02970-002 | B32: StoLevell In Fill | C32: DE | D32: интерьер | E32: шпатлевка | F32: гипс | G32: н/д | H32: н/д | I32: matt | J32: 5 | K32: кг | L32: Мешок | M32: 0.3 | N32: 30 | O32: кг/м² | P32: 284.2770813 | Q32: 341.1324975 | R32: 102.3397493 | S32: 1705.662488 | U32: 0 | X32: 140 | Y32: 763 | Z32: 3360
A33: 01276-008 | B33: StoLevell In RS | C33: DE | D33: интерьер | E33: шпатлевка | F33: цемент | G33: н/д | H33: н/д | I33: matt | J33: 15 | K33: кг | L33: Мешок | M33: 0.5 | N33: 45 | O33: кг/м² | P33: 257.9282828 | Q33: 309.5139394 | R33: 154.7569697 | S33: 4642.709091 | U33: 0 | X33: 48 | Y33: 722.88 | Z33: 1200 | AA33: минеральная шпаклевка для заполнения монтажных швов бетонных плит перекрытий, шпаклевание бетона и т.п.
A34: 04346_120 | B34: StoReno feim | C34: RU | D34: универсальный | E34: шпаклевка | F34: цемент | G34: н/д | H34: н/д | J34: 18 | K34: кг | L34: Мешок | M34: 0.9 | N34: 0.9 | O34: кг/м131 | P34: 87.24 | Q34: =P34*1.2 -> 104.688 | R34: =Q34*M34 -> 94.2192 | S34: =Q34*J34 -> 1884.384 | U34: 0 | X34: 42 | Y34: 764 | Z34: 720 | AA34: Финишная шпаклеква минеральная усиленная
A35: 04346_121 | B35: StoReno | C35: RU | D35: универсальный | E35: шпаклевка | F35: цемент | G35: н/д | H35: н/д | J35: 25 | K35: кг | L35: Мешок | M35: 2 | N35: 2 | O35: кг/м132 | P35: 35.24 | Q35: 42.288 | R35: 84.576 | S35: 1057.2 | U35: 0 | X35: 36 | Y35: 903.6 | Z35: 720 | AA35: Финишная шпаклеква минеральная усиленная
A36: 01300-001 | B36: StoDecolit K 1,0 weiss (белая) | C36: DE | D36: интерьер | E36: декоративная штукатурка | F36: акрил | G36: н/д | H36: н/д | I36: matt | J36: 25 | K36: кг | L36: Ведро | M36: 2.1 | N36: 2.2 | O36: кг/м² | P36: 307.2158392 | Q36: 368.659007 | R36: 774.1839147 | S36: 9216.475176 | U36: 0 | X36: 24 | Y36: 616.2 | Z36: 696 | AA36: органическая финишная экологически чистая штукатурка для внутренних работ с царапанной структурой ("шуба")
A37: 01300-002 | B37: StoDecolit K 1,0 getönt (колерованная) C1 | C37: DE | D37: интерьер | E37: декоративная штукатурка | F37: акрил | G37: н/д | H37: н/д | I37: matt | J37: 25 | K37: кг | L37: Ведро | M37: 2.1 | N37: 2.2 | O37: кг/м² | P37: =P36+34 -> 341.2158392 | Q37: 409.459007 | R37: 859.8639147 | S37: 10236.47518 | U37: 0 | X37: 24 | Y37: 616.2 | Z37: 696
A38: 01301-001 | B38: StoDecolit K 1,5 weiss (белая) | C38: DE | D38: интерьер | E38: декоративная штукатурка | F38: акрил | G38: н/д | H38: н/д | I38: matt | J38: 25 | K38: кг | L38: Ведро | M38: 2.5 | N38: 2.6 | O38: кг/м² | P38: 307.2158392 | Q38: 368.659007 | R38: 921.6475176 | S38: 9216.475176 | U38: 0 | X38: 24 | Y38: 616.2 | Z38: 696
A39: 01301-002 | B39: StoDecolit K 1,5 getönt (колерованная) C1 | C39: DE | D39: интерьер | E39: декоративная штукатурка | F39: акрил | G39: н/д | H39: н/д | I39: matt | J39: 25 | K39: кг | L39: Ведро | M39: 2.5 | N39: 2.6 | O39: кг/м² | P39: =P38+34 -> 341.2158392 | Q39: 409.459007 | R39: 1023.647518 | S39: 10236.47518 | U39: 0 | X39: 24 | Y39: 616.2 | Z39: 696
A40: 01302-001 | B40: StoDecolit K 2,0 weiss (белая) | C40: DE | D40: интерьер | E40: декоративная штукатурка | F40: акрил | G40: н/д | H40: н/д | I40: matt | J40: 25 | K40: кг | L40: Ведро | M40: 3.7 | N40: 3.8 | O40: кг/м² | P40: 307.2158392 | Q40: 368.659007 | R40: 1364.038326 | S40: 9216.475176 | U40: 0 | X40: 24 | Y40: 616.2 | Z40: 696
A41: 01302-002 | B41: StoDecolit K 2,0 weiss (белая) | C41: DE | D41: интерьер | E41: декоративная штукатурка | F41: акрил | G41: н/д | H41: н/д | I41: matt | J41: 25 | K41: кг | L41: Ведро | M41: 3.7 | N41: 3.8 | O41: кг/м² | P41: 341.2158392 | Q41: 409.459007 | R41: 1514.998326 | S41: 10236.47518 | U41: 0 | X41: 24 | Y41: 616.2 | Z41: 696
A42: 01303-001 | B42: StoDecolit K 3,0 weiss (белая) | C42: DE | D42: интерьер | E42: декоративная штукатурка | F42: акрил | G42: н/д | H42: н/д | I42: matt | J42: 25 | K42: кг | L42: Ведро | M42: 4.7 | N42: 4.8 | O42: кг/м² | P42: 307.2158392 | Q42: 368.659007 | R42: 1732.697333 | S42: 9216.475176 | U42: 0 | X42: 24 | Y42: 616.2 | Z42: 696
A43: 01303-002 | B43: StoDecolit K 3,0 getönt (колерованная) C1 | C43: DE | D43: интерьер | E43: декоративная штукатурка | F43: акрил | G43: н/д | H43: н/д | I43: matt | J43: 25 | K43: кг | L43: Ведро | M43: 4.7 | N43: 4.8 | O43: кг/м² | P43: =P42+34 -> 341.2158392 | Q43: 409.459007 | R43: 1924.457333 | S43: 10236.47518 | U43: 0 | X43: 24 | Y43: 616.2 | Z43: 696
A44: 01311-001 | B44: StoDecolit R 1,5 weiss (белая) | C44: DE | D44: интерьер | E44: декоративная штукатурка | F44: акрил | G44: н/д | H44: н/д | I44: matt | J44: 25 | K44: кг | L44: Ведро | M44: 2.2 | N44: 2.3 | O44: кг/м² | P44: 307.2158392 | Q44: 368.659007 | R44: 811.0498154 | S44: 9216.475176 | U44: 0 | X44: 24 | Y44: 616.2 | Z44: 696 | AA44: органическая финишная экологически чистая штукатурка для внутренних работ, с бороздчатой структурой ("короед")
A45: 01311-002 | B45: StoDecolit R 1,5 getönt (колерованная) C1 | C45: DE | D45: интерьер | E45: декоративная штукатурка | F45: акрил | G45: н/д | H45: н/д | I45: matt | J45: 25 | K45: кг | L45: Ведро | M45: 2.2 | N45: 2.3 | O45: кг/м² | P45: =P44+34 -> 341.2158392 | Q45: 409.459007 | R45: 900.8098154 | S45: 10236.47518 | U45: 0 | X45: 24 | Y45: 616.2 | Z45: 696
A46: 01312-001 | B46: StoDecolit R 2,0 weiss (белая) | C46: DE | D46: интерьер | E46: декоративная штукатурка | F46: акрил | G46: н/д | H46: н/д | I46: matt | J46: 25 | K46: кг | L46: Ведро | M46: 2.9 | N46: 3 | O46: кг/м² | P46: 307.2158392 | Q46: 368.659007 | R46: 1069.11112 | S46: 9216.475176 | U46: 0 | X46: 24 | Y46: 616.2 | Z46: 696
A47: 01312-002 | B47: StoDecolit R 2,0 getönt (колерованная) C1 | C47: DE | D47: интерьер | E47: декоративная штукатурка | F47: акрил | G47: н/д | H47: н/д | I47: matt | J47: 25 | K47: кг | L47: Ведро | M47: 2.9 | N47: 3 | O47: кг/м² | P47: =P46+34 -> 341.2158392 | Q47: 409.459007 | R47: 1187.43112 | S47: 10236.47518 | U47: 0 | X47: 24 | Y47: 616.2 | Z47: 696
A48: 01313-001 | B48: StoDecolit R 3,0 weiss (белая) | C48: DE | D48: интерьер | E48: декоративная штукатурка | F48: акрил | G48: н/д | H48: н/д | I48: matt | J48: 25 | K48: кг | L48: Ведро | M48: 4.1 | N48: 4.2 | O48: кг/м² | P48: 307.2158392 | Q48: 368.659007 | R48: 1511.501929 | S48: 9216.475176 | U48: 0 | X48: 24 | Y48: 616.2 | Z48: 696
A49: 01313-002 | B49: StoDecolit R 3,0 getönt (колерованная) C1 | C49: DE | D49: интерьер | E49: декоративная штукатурка | F49: акрил | G49: н/д | H49: н/д | I49: matt | J49: 25 | K49: кг | L49: Ведро | M49: 4.1 | N49: 4.2 | O49: кг/м² | P49: =P48+34 -> 341.2158392 | Q49: 409.459007 | R49: 1678.781929 | S49: 10236.47518 | U49: 0 | X49: 24 | Y49: 616.2 | Z49: 696
A50: 01222-001 | B50: StoDecolit MP weiss (белая) | C50: DE | D50: интерьер | E50: декоративная штукатурка | F50: акрил | G50: н/д | H50: н/д | I50: matt | J50: 25 | K50: кг | L50: Ведро | M50: 1 | N50: 4.5 | O50: кг/м² | P50: 307.2158392 | Q50: 368.659007 | R50: 368.659007 | S50: 9216.475176 | U50: 0 | V50: ● | W50: ● | X50: 24 | Y50: 616.2 | Z50: 696 | AA50: органическая финишная экологически чистая штукатурка для внутренних работ с моделируемой структурой
A51: 01222-011 | B51: StoDecolit MP getönt (колерованная) C1 | C51: DE | D51: интерьер | E51: декоративная штукатурка | F51: акрил | G51: н/д | H51: н/д | I51: matt | J51: 25 | K51: кг | L51: Ведро | M51: 1 | N51: 4.5 | O51: кг/м² | P51: =P50+34 -> 341.2158392 | Q51: 409.459007 | R51: 409.459007 | S51: 10236.47518 | U51: 0 | X51: 24 | Y51: 616.2 | Z51: 696
A52: 09217-003 | B52: StoCalce Activ MP 1,0 (натуральный белый) | C52: DE | D52: интерьер | E52: декоративная штукатурка | F52: известь | G52: н/д | H52: н/д | I52: matt | J52: 25 | K52: кг | L52: Мешок | M52: 1.5 | N52: 4.5 | O52: кг/м² | P52: 239.2675167 | Q52: 287.1210201 | R52: 430.6815301 | S52: 7178.025501 | U52: 0 | X52: 36 | Y52: 902.7 | Z52: 720 | AA52: известковая моделируемая декоративная штукатурка. Регулирует микроклимат в помещении.
A53: 00180-023 | B53: Sto-Granit K 1,5 цвет 800 | C53: DE | D53: интерьер | E53: декоративная штукатурка | F53: акрил | G53: н/д | H53: н/д | I53: satinmatt | J53: 23 | K53: кг | L53: Ведро | M53: 3.5 | N53: 5 | O53: кг/м² | P53: 470.0779368 | Q53: 564.0935242 | R53: 1974.327335 | S53: 12974.15106 | U53: 0 | X53: 24 | Y53: 568.008 | Z53: 768 | AA53: органическая штукатурка из дробленого натурального камня, величина зерна 1,5 мм. Цвета в ассортименте, цвет и фактуру см. по номеру в каталоге или в образцах.
A54: 00180-024 | B54: Sto-Granit K 1,5 цвет 801 | C54: DE | D54: интерьер | E54: декоративная штукатурка | F54: акрил | G54: н/д | H54: н/д | I54: satinmatt | J54: 23 | K54: кг | L54: Ведро | M54: 3.5 | N54: 5 | O54: кг/м² | P54: 470.0779368 | Q54: 564.0935242 | R54: 1974.327335 | S54: 12974.15106 | U54: 0 | X54: 24 | Y54: 568.008 | Z54: 768
A55: 00180-029 | B55: Sto-Granit K 1,5 цвет 802 | C55: DE | D55: интерьер | E55: декоративная штукатурка | F55: акрил | G55: н/д | H55: н/д | I55: satinmatt | J55: 23 | K55: кг | L55: Ведро | M55: 3.5 | N55: 5 | O55: кг/м² | P55: 470.0779368 | Q55: 564.0935242 | R55: 1974.327335 | S55: 12974.15106 | U55: 0 | X55: 24 | Y55: 568.008 | Z55: 768
A56: 00180-025 | B56: Sto-Granit K 1,5 цвет 803 | C56: DE | D56: интерьер | E56: декоративная штукатурка | F56: акрил | G56: н/д | H56: н/д | I56: satinmatt | J56: 23 | K56: кг | L56: Ведро | M56: 3.5 | N56: 5 | O56: кг/м² | P56: 470.0779368 | Q56: 564.0935242 | R56: 1974.327335 | S56: 12974.15106 | U56: 0 | X56: 24 | Y56: 568.008 | Z56: 768
A57: 00180-030 | B57: Sto-Granit K 1,5 цвет 804 | C57: DE | D57: интерьер | E57: декоративная штукатурка | F57: акрил | G57: н/д | H57: н/д | I57: satinmatt | J57: 23 | K57: кг | L57: Ведро | M57: 3.5 | N57: 5 | O57: кг/м² | P57: 580.3695399 | Q57: 696.4434479 | R57: 2437.552067 | S57: 16018.1993 | U57: 0 | X57: 24 | Y57: 568.008 | Z57: 768
A58: 00180-031 | B58: Sto-Granit K 1,5 цвет 808 | C58: DE | D58: интерьер | E58: декоративная штукатурка | F58: акрил | G58: н/д | H58: н/д | I58: satinmatt | J58: 23 | K58: кг | L58: Ведро | M58: 3.5 | N58: 5 | O58: кг/м² | P58: 470.0779368 | Q58: 564.0935242 | R58: 1974.327335 | S58: 12974.15106 | U58: 0 | X58: 24 | Y58: 568.008 | Z58: 768
A59: 00180-032 | B59: Sto-Granit K 1,5 цвет 812 | C59: DE | D59: интерьер | E59: декоративная штукатурка | F59: акрил | G59: н/д | H59: н/д | I59: satinmatt | J59: 23 | K59: кг | L59: Ведро | M59: 3.5 | N59: 5 | O59: кг/м² | P59: 658.4476867 | Q59: 790.1372241 | R59: 2765.480284 | S59: 18173.15615 | U59: 0 | X59: 24 | Y59: 568.008 | Z59: 768
A60: 00180-033 | B60: Sto-Granit K 1,5 цвет 813 | C60: DE | D60: интерьер | E60: декоративная штукатурка | F60: акрил | G60: н/д | H60: н/д | I60: satinmatt | J60: 23 | K60: кг | L60: Ведро | M60: 3.5 | N60: 5 | O60: кг/м² | P60: 796.1335259 | Q60: 955.3602311 | R60: 3343.760809 | S60: 21973.28531 | U60: 0 | X60: 24 | Y60: 568.008 | Z60: 768
A61: 00180-027 | B61: Sto-Granit K 1,5 цвет 821 | C61: DE | D61: интерьер | E61: декоративная штукатурка | F61: акрил | G61: н/д | H61: н/д | I61: satinmatt | J61: 23 | K61: кг | L61: Ведро | M61: 3.5 | N61: 5 | O61: кг/м² | P61: 470.0779368 | Q61: 564.0935242 | R61: 1974.327335 | S61: 12974.15106 | U61: 0 | X61: 24 | Y61: 568.008 | Z61: 768
A62: 00180-028 | B62: Sto-Granit K 1,5 цвет 824 | C62: DE | D62: интерьер | E62: декоративная штукатурка | F62: акрил | G62: н/д | H62: н/д | I62: satinmatt | J62: 23 | K62: кг | L62: Ведро | M62: 3.5 | N62: 5 | O62: кг/м² | P62: 470.0779368 | Q62: 564.0935242 | R62: 1974.327335 | S62: 12974.15106 | U62: 0 | X62: 24 | Y62: 568.008 | Z62: 768
A63: 09378-002 | B63: StoColor Supermatt weiss (белый) | C63: DE | D63: интерьер | E63: краска | F63: силикон | G63: 1 | H63: 2 | I63: stumpfmatt | J63: 15 | K63: л | L63: Ведро | M63: 0.12 | N63: 0.3 | O63: л/м² | P63: 798.4776505 | Q63: 958.1731806 | R63: 114.9807817 | S63: 14372.59771 | U63: 0 | V63: ● | X63: 24 | Y63: 572.16 | Z63: 744 | AA63: экстремально матовая силиконовая краска для внутренних работ. Идеально подходит для больших площадей, не "полосит"
A64: 09378-001 | B64: StoColor Supermatt getönt (колерованная) C1 | C64: DE | D64: интерьер | E64: краска | F64: силикон | G64: 1 | H64: 2 | I64: stumpfmatt | J64: 15 | K64: л | L64: Ведро | M64: 0.12 | N64: 0.3 | O64: л/м² | P64: =P63+68 -> 866.4776505 | Q64: 1039.773181 | R64: 124.7727817 | S64: 15596.59771 | U64: 0 | X64: 24 | Y64: 572.16 | Z64: 744
A65: 09378-004 | B65: StoColor Supermatt weiss (белый) | C65: DE | D65: интерьер | E65: краска | F65: силикон | G65: 1 | H65: 2 | I65: stumpfmatt | J65: 5 | K65: л | L65: Ведро | M65: 0.12 | N65: 0.3 | O65: л/м² | P65: 1112.522154 | Q65: 1335.026585 | R65: 160.2031902 | S65: 6675.132926 | U65: 0 | X65: 60 | Y65: 479.7 | Z65: 1980
A66: 09378-003 | B66: StoColor Supermatt getönt (колерованная) C1 | C66: DE | D66: интерьер | E66: краска | F66: силикон | G66: 1 | H66: 2 | I66: stumpfmatt | J66: 5 | K66: л | L66: Ведро | M66: 0.12 | N66: 0.3 | O66: л/м² | P66: =P65+68 -> 1180.522154 | Q66: =P66*1.2 -> 1416.626585 | R66: =Q66*M66 -> 169.9951902 | S66: =Q66*J66 -> 7083.132926 | U66: 0 | X66: 60 | Y66: 479.7 | Z66: 1980
A67: 00097-002 | B67: StoColor Titanium weiss (белая) | C67: DE | D67: интерьер | E67: краска | F67: акрил | G67: 1 | H67: 1 | I67: matt | J67: 15 | K67: л | L67: Ведро | M67: 0.14 | N67: 0.34 | O67: л/м² | P67: 984.1613772 | Q67: 1180.993653 | R67: 165.3391114 | S67: 17714.90479 | U67: =T67*S67 -> 0 | V67: ● | X67: 24 | Y67: 554.04 | Z67: 768 | AA67: особо устойчивая дисперсионная краска. ослепительно белая, глубоко матовая, тонкослойная. Имеет сертификат TÜV как безвредный продукт. Колеруется в широкий спектр цветов, класс укрывистости - 1.
A68: 00097-004 | B68: StoColor Titanium getönt (колерованная) C1 | C68: DE | D68: интерьер | E68: краска | F68: акрил | G68: 1 | H68: н/д | I68: matt | J68: 15 | K68: л | L68: Ведро | M68: 0.14 | N68: 0.34 | O68: л/м² | P68: =P67+68 -> 1052.161377 | Q68: 1262.593653 | R68: 176.7631114 | S68: 18938.90479 | U68: 0 | X68: 24 | Y68: 554.04 | Z68: 768
A69: 00097-001 | B69: StoColor Titanium weiss (белая) | C69: DE | D69: интерьер | E69: краска | F69: акрил | G69: 1 | H69: 1 | I69: matt | J69: 10 | K69: л | L69: Ведро | M69: 0.14 | N69: 0.34 | O69: л/м² | P69: 1100.121356 | Q69: 1320.145628 | R69: 184.8203879 | S69: 13201.45628 | U69: 0 | V69: ● | X69: 27 | Y69: 416.07 | Z69: 891
A70: 00097-003 | B70: StoColor Titanium getönt (колерованная) C1 | C70: DE | D70: интерьер | E70: краска | F70: акрил | G70: 1 | H70: н/д | I70: matt | J70: 10 | K70: л | L70: Ведро | M70: 0.14 | N70: 0.34 | O70: л/м² | P70: =P69+68 -> 1168.121356 | Q70: 1401.745628 | R70: 196.2443879 | S70: 14017.45628 | U70: 0 | X70: 27 | Y70: 416.07 | Z70: 891
A71: 00097-020 | B71: StoColor Titanium ASE getönt (колерованная) PG02 | C71: DE | D71: интерьер | E71: краска | F71: акрил | G71: 1 | H71: н/д | I71: matt | J71: 15 | K71: л | L71: Ведро | M71: 0.14 | N71: 0.34 | O71: л/м² | P71: 1246.121482 | Q71: 1495.345779 | R71: 209.348409 | S71: 22430.18668 | U71: 0 | X71: 24 | Y71: 554.04 | Z71: 768 | AA71: специальная дисперсионная краска для насыщенных тонов со сниженным "эффектом письма". При колеровке в пастельные тона обладает свойствами матовой, хорошо моющейся краски
A72: 00097-021 | B72: StoColor Titanium ASE getönt (колерованная) PG02 | C72: DE | D72: интерьер | E72: краска | F72: акрил | G72: 1 | H72: н/д | I72: matt | J72: 5 | K72: л | L72: Ведро | M72: 0.14 | N72: 0.34 | O72: л/м² | P72: 1415.877539 | Q72: 1699.053047 | R72: 237.8674266 | S72: 8495.265234 | U72: 0 | W72: ● | X72: 60 | Y72: 462.3 | Z72: 1980
A73: 00024-001 | B73: StoColor Opticryl Matt weiss (белая) | C73: DE | D73: интерьер | E73: краска | F73: акрил | G73: 1 | H73: 2 | I73: matt | J73: 15 | K73: л | L73: Ведро | M73: 0.13 | N73: 0.3 | O73: л/м² | P73: 645.4444891 | Q73: 774.5333869 | R73: 100.6893403 | S73: 11618.0008 | U73: 0 | V73: ● | X73: 24 | Y73: 559.44 | Z73: 768 | AA73: Opticryl Matt. Серия акриловых дисперсионных красок. Устойчивы к механическим воздействиям, имеют сертификат TÜV как безвредный продукт. Очень тонкая структура, идеально подходят для окрашивания рельефной поверхности, колеруются в широкий спектр цветов. Матовая краска из серии латексных дисперсионных красок Opticryl. Тонкослойная (не забивает структуру), не содержит эмиссий и растворителей, класс укрывистости - 2.
A74: 00024-002 | B74: StoColor Opticryl Matt getönt (колерованная) С1 | C74: DE | D74: интерьер | E74: краска | F74: акрил | G74: 1 | H74: н/д | I74: matt | J74: 15 | K74: л | L74: Ведро | M74: 0.13 | N74: 0.3 | O74: л/м² | P74: 713.4444891 | Q74: 856.1333869 | R74: 111.2973403 | S74: 12842.0008 | U74: 0 | X74: 24 | Y74: 559.44 | Z74: 768
A75: 00024-005 | B75: StoColor Opticryl Matt weiss (белая) | C75: DE | D75: интерьер | E75: краска | F75: акрил | G75: 1 | H75: 2 | I75: matt | J75: 10 | K75: л | L75: Ведро | M75: 0.13 | N75: 0.3 | O75: л/м² | P75: 711.5753075 | Q75: 853.8903691 | R75: 111.005748 | S75: 8538.903691 | U75: 0 | V75: ● | W75: ● | X75: 27 | Y75: 420.12 | Z75: 891
A76: 00024-008 | B76: StoColor Opticryl Matt getönt (колерованная) С1 | C76: DE | D76: интерьер | E76: краска | F76: акрил | G76: 1 | H76: н/д | I76: matt | J76: 10 | K76: л | L76: Ведро | M76: 0.13 | N76: 0.3 | O76: л/м² | P76: 779.5753075 | Q76: 935.4903691 | R76: 121.613748 | S76: 9354.903691 | U76: 0 | X76: 27 | Y76: 420.12 | Z76: 891
A77: 00024-004 | B77: StoColor Opticryl Matt weiss (белая) | C77: DE | D77: интерьер | E77: краска | F77: акрил | G77: 1 | H77: 2 | I77: matt | J77: 5 | K77: л | L77: Ведро | M77: 0.13 | N77: 0.3 | O77: л/м² | P77: 790.5336229 | Q77: 948.6403475 | R77: 123.3232452 | S77: 4743.201738 | U77: 0 | X77: 60 | Y77: 468.3 | Z77: 1980
A78: 00024-007 | B78: StoColor Opticryl Matt getönt (колерованная) С1 | C78: DE | D78: интерьер | E78: краска | F78: акрил | G78: 1 | H78: н/д | I78: matt | J78: 5 | K78: л | L78: Ведро | M78: 0.13 | N78: 0.3 | O78: л/м² | P78: 858.5336229 | Q78: 1030.240348 | R78: 133.9312452 | S78: 5151.201738 | U78: 0 | X78: 60 | Y78: 468.3 | Z78: 1980
A79: 00024-003 | B79: StoColor Opticryl Matt weiss (белая) | C79: DE | D79: интерьер | E79: краска | F79: акрил | G79: 1 | H79: 2 | I79: matt | J79: 2,5 | K79: л | L79: Ведро | M79: 0.13 | N79: 0.3 | O79: л/м² | P79: 1028.285654 | Q79: 1233.942784 | R79: 160.412562 | S79: 3084.856961 | U79: 0 | X79: 72 | Y79: 285.336 | Z79: 2376
A80: 00024-006 | B80: StoColor Opticryl Matt getönt (колерованная) С1 | C80: DE | D80: интерьер | E80: краска | F80: акрил | G80: 1 | H80: н/д | I80: matt | J80: 2,5 | K80: л | L80: Ведро | M80: 0.13 | N80: 0.3 | O80: л/м² | P80: 1096.285654 | Q80: 1315.542784 | R80: 171.020562 | S80: 3288.856961 | U80: 0 | X80: 72 | Y80: 285.336 | Z80: 2376
A81: 00026-001 | B81: Sto Color Opticryl Satinmatt weiss (белая) | C81: DE | D81: интерьер | E81: краска | F81: акрил | G81: 1 | H81: 2 | I81: satinmatt | J81: 15 | K81: л | L81: Ведро | M81: 0.13 | N81: 0.3 | O81: л/м² | P81: 745.8920401 | Q81: 895.0704481 | R81: 116.3591583 | S81: 13426.05672 | U81: 0 | V81: ● | X81: 24 | Y81: 518.04 | Z81: 792 | AA81: Opticryl Satinmatt. Шелковисто-матовая краска, из серии латексных дисперсионных красок Opticryl. Тонкослойная (не забивает структуру), не содержит эмиссий и растворителей, класс укрывистости - 2.
A82: 00026-002 | B82: StoColor Opticryl Satinmatt getönt (колерованная) С1 | C82: DE | D82: интерьер | E82: краска | F82: акрил | G82: 1 | H82: н/д | I82: satinmatt | J82: 15 | K82: л | L82: Ведро | M82: 0.13 | N82: 0.3 | O82: л/м² | P82: 813.8920401 | Q82: 976.6704481 | R82: 126.9671583 | S82: 14650.05672 | U82: 0 | X82: 24 | Y82: 518.04 | Z82: 792
A83: 00026-005 | B83: StoColor Opticryl Satinmatt weiss (белая) | C83: DE | D83: интерьер | E83: краска | F83: акрил | G83: 1 | H83: 2 | I83: satinmatt | J83: 10 | K83: л | L83: Ведро | M83: 0.13 | N83: 0.3 | O83: л/м² | P83: 796.734346 | Q83: 956.0812152 | R83: 124.290558 | S83: 9560.812152 | U83: 0 | V83: ● | W83: ● | X83: 27 | Y83: 389.07 | Z83: 891
A84: 00026-008 | B84: StoColor Opticryl Satinmatt getönt (колерованная) С1 | C84: DE | D84: интерьер | E84: краска | F84: акрил | G84: 1 | H84: н/д | I84: satinmatt | J84: 10 | K84: л | L84: Ведро | M84: 0.13 | N84: 0.3 | O84: л/м² | P84: 864.734346 | Q84: 1037.681215 | R84: 134.898558 | S84: 10376.81215 | U84: 0 | X84: 27 | Y84: 389.07 | Z84: 891
A85: 00026-004 | B85: StoColor Opticryl Satinmatt weiss (белая) | C85: DE | D85: интерьер | E85: краска | F85: акрил | G85: 1 | H85: 2 | I85: satinmatt | J85: 5 | K85: л | L85: Ведро | M85: 0.13 | N85: 0.3 | O85: л/м² | P85: 866.7779411 | Q85: 1040.133529 | R85: 135.2173588 | S85: 5200.667647 | U85: 0 | X85: 60 | Y85: 433.8 | Z85: 1980
A86: 00026-007 | B86: StoColor Opticryl Satinmatt getönt (колерованная) С1 | C86: DE | D86: интерьер | E86: краска | F86: акрил | G86: 1 | H86: н/д | I86: satinmatt | J86: 5 | K86: л | L86: Ведро | M86: 0.13 | N86: 0.3 | O86: л/м² | P86: 934.7779411 | Q86: 1121.733529 | R86: 145.8253588 | S86: 5608.667647 | U86: 0 | X86: 60 | Y86: 433.8 | Z86: 1980
A87: 00026-003 | B87: StoColor Opticryl Satinmatt weiss (белая) | C87: DE | D87: интерьер | E87: краска | F87: акрил | G87: 1 | H87: 2 | I87: satinmatt | J87: 2,5 | K87: л | L87: Ведро | M87: 0.13 | N87: 0.3 | O87: л/м² | P87: 1106.138643 | Q87: 1327.366372 | R87: 172.5576283 | S87: 3318.415929 | U87: 0 | W87: ● | X87: 72 | Y87: 264.6 | Z87: 2376
A88: 00026-006 | B88: StoColor Opticryl Satinmatt getönt (колерованная) С1 | C88: DE | D88: интерьер | E88: краска | F88: акрил | G88: 1 | H88: н/д | I88: satinmatt | J88: 2,5 | K88: л | L88: Ведро | M88: 0.13 | N88: 0.3 | O88: л/м² | P88: 1174.138643 | Q88: 1408.966372 | R88: 183.1656283 | S88: 3522.415929 | U88: 0 | X88: 72 | Y88: 264.6 | Z88: 2376
A89: 00028-001 | B89: StoColor Opticryl Satin weiss (белая) | C89: DE | D89: интерьер | E89: краска | F89: акрил | G89: 1 | H89: 2 | I89: satin | J89: 15 | K89: л | L89: Ведро | M89: 0.13 | N89: 0.3 | O89: л/м² | P89: 1114.512 | Q89: 1337.4144 | R89: 173.863872 | S89: 20061.216 | U89: 0 | X89: 24 | Y89: 541.44 | Z89: 792 | AA89: Opticryl Satin. Шелковисто-глянцевая краска, из серии латексных дисперсионных красок Opticryl. Тонкослойная (не забивает структуру), не содержит эмиссий и растворителей, класс укрывистости - 2. Отлично подходит для поверхностей, подвергающихся интенсивной чистке.
A90: 00028-002 | B90: StoColor Opticryl Satin getönt (колерованная) С1 | C90: DE | D90: интерьер | E90: краска | F90: акрил | G90: 1 | H90: н/д | I90: satin | J90: 15 | K90: л | L90: Ведро | M90: 0.13 | N90: 0.3 | O90: л/м² | P90: 1182.512 | Q90: 1419.0144 | R90: 184.471872 | S90: 21285.216 | U90: 0 | X90: 24 | Y90: 541.44 | Z90: 792
A91: 00028-005 | B91: StoColor Opticryl Satin weiss (белая) | C91: DE | D91: интерьер | E91: краска | F91: акрил | G91: 1 | H91: 2 | I91: satin | J91: 10 | K91: л | L91: Ведро | M91: 0.13 | N91: 0.3 | O91: л/м² | P91: 1205.705517 | Q91: 1446.846621 | R91: 188.0900607 | S91: 14468.46621 | U91: 0 | X91: 27 | Y91: 406.62 | Z91: 891
A92: 00028-008 | B92: StoColor Opticryl Satin getönt (колерованная) С1 | C92: DE | D92: интерьер | E92: краска | F92: акрил | G92: 1 | H92: н/д | I92: satin | J92: 10 | K92: л | L92: Ведро | M92: 0.13 | N92: 0.3 | O92: л/м² | P92: 1273.705517 | Q92: 1528.446621 | R92: 198.6980607 | S92: 15284.46621 | U92: 0 | X92: 27 | Y92: 406.62 | Z92: 891
A93: 00028-004 | B93: StoColor Opticryl Satin weiss (белая) | C93: DE | D93: интерьер | E93: краска | F93: акрил | G93: 1 | H93: 2 | I93: satin | J93: 5 | K93: л | L93: Ведро | M93: 0.13 | N93: 0.3 | O93: л/м² | P93: 1284.998973 | Q93: 1541.998767 | R93: 200.4598397 | S93: 7709.993836 | U93: 0 | X93: 60 | Y93: 451.8 | Z93: 1980
A94: 00028-007 | B94: StoColor Opticryl Satin getönt (колерованная) С1 | C94: DE | D94: интерьер | E94: краска | F94: акрил | G94: 1 | H94: н/д | I94: satin | J94: 5 | K94: л | L94: Ведро | M94: 0.13 | N94: 0.3 | O94: л/м² | P94: 1352.998973 | Q94: 1623.598767 | R94: 211.0678397 | S94: 8117.993836 | U94: 0 | X94: 60 | Y94: 451.8 | Z94: 1980
A95: 00028-003 | B95: StoColor Opticryl Satin weiss (белая) | C95: DE | D95: интерьер | E95: краска | F95: акрил | G95: 1 | H95: 2 | I95: satin | J95: 2,5 | K95: л | L95: Ведро | M95: 0.13 | N95: 0.3 | O95: л/м² | P95: 1570.676003 | Q95: 1884.811204 | R95: 245.0254565 | S95: 4712.02801 | U95: 0 | X95: 72 | Y95: 276.336 | Z95: 2376
A96: 00028-006 | B96: StoColor Opticryl Satin getönt (колерованная) С1 | C96: DE | D96: интерьер | E96: краска | F96: акрил | G96: 1 | H96: н/д | I96: satin | J96: 2,5 | K96: л | L96: Ведро | M96: 0.13 | N96: 0.3 | O96: л/м² | P96: 1638.676003 | Q96: 1966.411204 | R96: 255.6334565 | S96: 4916.02801 | U96: 0 | X96: 72 | Y96: 276.336 | Z96: 2376
A97: 00030-001 | B97: StoColor Opticryl Gloss weiss (белая) | C97: DE | D97: интерьер | E97: краска | F97: акрил | G97: 1 | H97: 2 | I97: gloss | J97: 15 | K97: л | L97: Ведро | M97: 0.13 | N97: 0.3 | O97: л/м² | P97: 1294.272 | Q97: 1553.1264 | R97: 201.906432 | S97: 23296.896 | U97: 0 | X97: 24 | Y97: 503.64 | Z97: 792 | AA97: Opticryl Gloss. Глянцевая краска из серии латексных дисперсионных красок Opticryl. Тонкослойная (не забивает структуру), не содержит эмиссий и растворителей, класс укрывистости - 2. Подходит для экстремально нагружаемых поверхностей.
A98: 00030-002 | B98: StoColor Opticryl Gloss getönt (колерованная) С1 | C98: DE | D98: интерьер | E98: краска | F98: акрил | G98: 1 | H98: н/д | I98: gloss | J98: 15 | K98: л | L98: Ведро | M98: 0.13 | N98: 0.3 | O98: л/м² | P98: 1362.272 | Q98: 1634.7264 | R98: 212.514432 | S98: 24520.896 | U98: 0 | X98: 24 | Y98: 503.64 | Z98: 792
A99: 00030-005 | B99: StoColor Opticryl Gloss weiss (белая) | C99: DE | D99: интерьер | E99: краска | F99: акрил | G99: 1 | H99: 2 | I99: gloss | J99: 10 | K99: л | L99: Ведро | M99: 0.13 | N99: 0.3 | O99: л/м² | P99: 1330.224 | Q99: 1596.2688 | R99: 207.514944 | S99: 15962.688 | U99: 0 | X99: 27 | Y99: 378.27 | Z99: 891
A100: 00030-008 | B100: StoColor Opticryl Gloss getönt (колерованная) С1 | C100: DE | D100: интерьер | E100: краска | F100: акрил | G100: 1 | H100: н/д | I100: gloss | J100: 10 | K100: л | L100: Ведро | M100: 0.13 | N100: 0.3 | O100: л/м² | P100: 1398.224 | Q100: 1677.8688 | R100: 218.122944 | S100: 16778.688 | U100: 0 | X100: 27 | Y100: 378.27 | Z100: 891
A101: 00030-004 | B101: StoColor Opticryl Gloss weiss (белая) | C101: DE | D101: интерьер | E101: краска | F101: акрил | G101: 1 | H101: 2 | I101: gloss | J101: 5 | K101: л | L101: Ведро | M101: 0.13 | N101: 0.3 | O101: л/м² | P101: 1388.691245 | Q101: 1666.429494 | R101: 216.6358343 | S101: 8332.147472 | U101: 0 | X101: 60 | Y101: 420.3 | Z101: 1980
A102: 00030-007 | B102: StoColor Opticryl Gloss getönt (колерованная) С1 | C102: DE | D102: интерьер | E102: краска | F102: акрил | G102: 1 | H102: н/д | I102: gloss | J102: 5 | K102: л | L102: Ведро | M102: 0.13 | N102: 0.3 | O102: л/м² | P102: 1456.691245 | Q102: 1748.029494 | R102: 227.2438343 | S102: 8740.147472 | U102: 0 | X102: 60 | Y102: 420.3 | Z102: 1980
A103: 00030-003 | B103: StoColor Opticryl Gloss weiss (белая) | C103: DE | D103: интерьер | E103: краска | F103: акрил | G103: 1 | H103: 2 | I103: gloss | J103: 2,5 | K103: л | L103: Ведро | M103: 0.13 | N103: 0.3 | O103: л/м² | P103: 1670.815793 | Q103: 2004.978952 | R103: 260.6472638 | S103: 5012.44738 | U103: 0 | X103: 72 | Y103: 257.4 | Z103: 2376
A104: 00030-006 | B104: StoColor Opticryl Gloss getönt (колерованная) С1 | C104: DE | D104: интерьер | E104: краска | F104: акрил | G104: 1 | H104: н/д | I104: gloss | J104: 2,5 | K104: л | L104: Ведро | M104: 0.13 | N104: 0.3 | O104: л/м² | P104: 1738.815793 | Q104: 2086.578952 | R104: 271.2552638 | S104: 5216.44738 | U104: 0 | X104: 72 | Y104: 257.4 | Z104: 2376
A105: 08011-004 | B105: StoColor Rapid Satin weiss (белая) | C105: DE | D105: интерьер | E105: краска | F105: акрил | G105: 1 | H105: 1 | I105: satin | J105: 15 | K105: л | L105: Ведро | M105: 0.13 | N105: 0.3 | O105: л/м² | P105: 913.6295401 | Q105: 1096.355448 | R105: 142.5262083 | S105: 16445.33172 | U105: 0 | X105: 24 | Y105: 534.96 | Z105: 792 | AA105: проверенная на отсутствие вредных примесей, дисперсионная шелковисто-глянцевая краска с высокой укрывистостью. Однослойная, очень высокая степень белизны. Устойчива к мытью, не содержит растворителей и пластификаторов, с очень слабой эммисией вредных веществ, имеет сертификат TÜV как безвредный продукт. Не содержит субстанций, способствующих образованию "черных пятен" (отложение копоти и пыли на стенах).
A106: 08011-009 | B106: StoColor Rapid Satin getönt (колерованная) C1 | C106: DE | D106: интерьер | E106: краска | F106: акрил | G106: 1 | H106: н/д | I106: satin | J106: 15 | K106: л | L106: Ведро | M106: 0.13 | N106: 0.3 | O106: л/м² | P106: 981.6295401 | Q106: 1177.955448 | R106: 153.1342083 | S106: 17669.33172 | U106: 0 | X106: 24 | Y106: 534.96 | Z106: 792
A107: 08011-003 | B107: StoColor Rapid Satin weiss (белая) | C107: DE | D107: интерьер | E107: краска | F107: акрил | G107: 1 | H107: 1 | I107: satin | J107: 10 | K107: л | L107: Ведро | M107: 0.13 | N107: 0.3 | O107: л/м² | P107: 1005.547371 | Q107: 1206.656845 | R107: 156.8653899 | S107: 12066.56845 | U107: 0 | X107: 27 | Y107: 401.76 | Z107: 891
A108: 08011-008 | B108: StoColor Rapid Satin getönt (колерованная) C1 | C108: DE | D108: интерьер | E108: краска | F108: акрил | G108: 1 | H108: н/д | I108: satin | J108: 10 | K108: л | L108: Ведро | M108: 0.13 | N108: 0.3 | O108: л/м² | P108: 1073.547371 | Q108: 1288.256845 | R108: 167.4733899 | S108: 12882.56845 | U108: 0 | X108: 27 | Y108: 401.76 | Z108: 891
A109: 08011-002 | B109: StoColor Rapid Satin weiss (белая) | C109: DE | D109: интерьер | E109: краска | F109: акрил | G109: 1 | H109: 1 | I109: satin | J109: 5 | K109: л | L109: Ведро | M109: 0.13 | N109: 0.3 | O109: л/м² | P109: 1118.803116 | Q109: 1342.563739 | R109: 174.5332861 | S109: 6712.818696 | U109: 0 | X109: 60 | Y109: 446.4 | Z109: 1980
A110: 08011-007 | B110: StoColor Rapid Satin getönt (колерованная) C1 | C110: DE | D110: интерьер | E110: краска | F110: акрил | G110: 1 | H110: н/д | I110: satin | J110: 5 | K110: л | L110: Ведро | M110: 0.13 | N110: 0.3 | O110: л/м² | P110: 1186.803116 | Q110: 1424.163739 | R110: 185.1412861 | S110: 7120.818696 | U110: 0 | X110: 60 | Y110: 446.4 | Z110: 1980
A111: 08109-004 | B111: StoColor Rapid Ultramatt weiss (белая) | C111: DE | D111: интерьер | E111: краска | F111: акрил | G111: 2 | H111: 1 | I111: stumpfmatt | J111: 15 | K111: л | L111: Ведро | M111: 0.13 | N111: 0.3 | O111: л/м² | P111: 659.0813579 | Q111: 790.8976294 | R111: 102.8166918 | S111: 11863.46444 | U111: 0 | V111: ● | W111: ● | X111: 24 | Y111: 552.24 | Z111: 792 | AA111: дисперсионная краска для сложных поверхностей с добавлением силиконовой эмульсии, с увеличенным временем высыхания. Предназначена для окрашивания сложноосвещенных поверхностей ("косой свет"). Глубоко матовая, имеет ограниченный спектр колеровки, высокая степень белизны. Имеет сертификат TÜV как безвредный продукт, класс укрывистости -1.
A112: 08109-008 | B112: StoColor Rapid Ultramatt getönt (колерованная) С 1 | C112: DE | D112: интерьер | E112: краска | F112: акрил | G112: 2 | H112: 1 | I112: stumpfmatt | J112: 15 | K112: л | L112: Ведро | M112: 0.13 | N112: 0.3 | O112: л/м² | P112: 727.0813579 | Q112: 872.4976294 | R112: 113.4246918 | S112: 13087.46444 | U112: 0 | X112: 24 | Y112: 552.24 | Z112: 792
A113: 08109-003 | B113: StoColor Rapid Ultramatt weiss (белая) | C113: DE | D113: интерьер | E113: краска | F113: акрил | G113: 2 | H113: 1 | I113: stumpfmatt | J113: 10 | K113: л | L113: Ведро | M113: 0.13 | N113: 0.3 | O113: л/м² | P113: 701.4606598 | Q113: 841.7527918 | R113: 109.4278629 | S113: 8417.527918 | U113: 0 | V113: ● | X113: 27 | Y113: 414.72 | Z113: 891
A114: 08109-007 | B114: StoColor Rapid Ultramatt getönt (колерованная) С 1 | C114: DE | D114: интерьер | E114: краска | F114: акрил | G114: 2 | H114: 1 | I114: stumpfmatt | J114: 10 | K114: л | L114: Ведро | M114: 0.13 | N114: 0.3 | O114: л/м² | P114: 769.4606598 | Q114: 923.3527918 | R114: 120.0358629 | S114: 9233.527918 | U114: 0 | X114: 27 | Y114: 414.72 | Z114: 891
A115: 08109-002 | B115: StoColor Rapid Ultramatt weiss (белая) | C115: DE | D115: интерьер | E115: краска | F115: акрил | G115: 2 | H115: 1 | I115: stumpfmatt | J115: 5 | K115: л | L115: Ведро | M115: 0.13 | N115: 0.3 | O115: л/м² | P115: 825.5701016 | Q115: 990.6841219 | R115: 128.7889358 | S115: 4953.420609 | U115: 0 | V115: ● | W115: ● | X115: 60 | Y115: 460.8 | Z115: 1980
A116: 08109-006 | B116: StoColor Rapid Ultramatt getönt (колерованная) С 1 | C116: DE | D116: интерьер | E116: краска | F116: акрил | G116: 2 | H116: 1 | I116: stumpfmatt | J116: 5 | K116: л | L116: Ведро | M116: 0.13 | N116: 0.3 | O116: л/м² | P116: 893.5701016 | Q116: 1072.284122 | R116: 139.3969358 | S116: 5361.420609 | U116: 0 | X116: 60 | Y116: 460.8 | Z116: 1980
A117: 08109-001 | B117: StoColor Rapid Ultramatt weiss (белая) | C117: DE | D117: интерьер | E117: краска | F117: акрил | G117: 2 | H117: 1 | I117: stumpfmatt | J117: 2,5 | K117: л | L117: Ведро | M117: 0.13 | N117: 0.3 | O117: л/м² | P117: 1271.608206 | Q117: 1525.929847 | R117: 198.3708801 | S117: 3814.824618 | U117: 0 | X117: 72 | Y117: 277.2 | Z117: 2376
A118: 08109-005 | B118: StoColor Rapid Ultramatt getönt (колерованная) С 1 | C118: DE | D118: интерьер | E118: краска | F118: акрил | G118: 2 | H118: 1 | I118: stumpfmatt | J118: 2,5 | K118: л | L118: Ведро | M118: 0.13 | N118: 0.3 | O118: л/м² | P118: 1339.608206 | Q118: 1607.529847 | R118: 208.9788801 | S118: 4018.824618 | U118: 0 | X118: 72 | Y118: 277.2 | Z118: 2376
A119: 00199-004 | B119: StoColor Sil Premium weiß | C119: DE | D119: интерьер | E119: краска | F119: силикат | G119: 1 | H119: 1 | I119: stumpfmatt | J119: 15 | K119: л | L119: Ведро | M119: 0.12 | N119: 0.28 | O119: л/м² | P119: 742.4088 | Q119: 890.89056 | R119: 106.9068672 | S119: 13363.3584 | U119: 0 | X119: 24 | Y119: 559.44 | Z119: 768 | AA119: Уникальный продукт! Силикатная краска имеющая 1-й класс влажного истирания и укрывистости. Натуральный материал, не содержит пластификаторов и вредных добавок, хорошо подходит для людей, страдающих аллергическими реакциями.
A120: 00199-003 | B120: StoColor Sil Premium getönt (колерованная) С 1 | C120: DE | D120: интерьер | E120: краска | F120: силикат | G120: 1 | H120: н/д | I120: stumpfmatt | J120: 15 | L120: Ведро | M120: 0.12 | N120: 0.28 | O120: л/м² | P120: =P119+68 -> 810.4088 | Q120: 972.49056 | R120: 116.6988672 | S120: 14587.3584 | U120: 0 | X120: 24 | Y120: 559.44 | Z120: 768
A121: 00199-010 | B121: StoColor Sil Premium weiß | C121: DE | D121: интерьер | E121: краска | F121: силикат | G121: 1 | H121: 1 | I121: stumpfmatt | J121: 5 | L121: Ведро | M121: 0.12 | N121: 0.28 | O121: л/м² | P121: 892.2485705 | Q121: 1070.698285 | R121: 128.4837942 | S121: 5353.491423 | U121: 0 | X121: 60 | Y121: 466.2 | Z121: 1980
A122: 00199-009 | B122: StoColor Sil Premium getönt (колерованная) С 1 | C122: DE | D122: интерьер | E122: краска | F122: силикат | G122: 1 | H122: н/д | I122: stumpfmatt | J122: 5 | L122: Ведро | M122: 0.12 | N122: 0.28 | O122: л/м² | P122: =P121+68 -> 960.2485705 | Q122: 1152.298285 | R122: 138.2757942 | S122: 5761.491423 | U122: 0 | X122: 60 | Y122: 466.2 | Z122: 1980
A123: 09547-004 | B123: StoColor Sil Comfort weiss (белая) | C123: DE | D123: интерьер | E123: краска | F123: силикат | G123: 2 | H123: 2 | I123: matt | J123: 15 | K123: л | L123: Ведро | M123: 0.13 | N123: 0.3 | O123: л/м² | P123: 684.7082479 | Q123: 821.6498974 | R123: 106.8144867 | S123: 12324.74846 | U123: 0 | X123: 24 | Y123: 559.44 | Z123: 768 | AA123: высококачественная силикатная краска для внутренних работ
A124: 09547-003 | B124: StoColor Sil Comfort getönt (колерованная) С 1 | C124: DE | D124: интерьер | E124: краска | F124: силикат | G124: 2 | H124: н/д | I124: matt | J124: 15 | K124: л | L124: Ведро | M124: 0.13 | N124: 0.3 | O124: л/м² | P124: =P123+68 -> 752.7082479 | Q124: 903.2498974 | R124: 117.4224867 | S124: 13548.74846 | U124: 0 | X124: 24 | Y124: 559.44 | Z124: 768
A125: 00206-006 | B125: StoColor Sil In weiss (белая) | C125: DE | D125: интерьер | E125: краска | F125: силикат | G125: 2 | H125: 1 | I125: matt | J125: 15 | K125: л | L125: Ведро | M125: 0.12 | N125: 0.28 | O125: л/м² | P125: 693.7405605 | Q125: 832.4886726 | R125: 99.89864071 | S125: 12487.33009 | U125: 0 | X125: 24 | Y125: 572.04 | Z125: 744 | AA125: силикатная краска для внутренних работ. Абсолютно экологически чистый, натуральный материал, имеет сертификат TÜV как безвредный продукт и сертификат Nature plus как особо натуральный продукт. Имеет высокую степень белизны и глубоко матовую поверхность, ограниченный спектр по колеровке.
A126: 00206-044 | B126: StoColor Sil In getönt (колерованная) C1 | C126: DE | D126: интерьер | E126: краска | F126: силикат | G126: 2 | H126: н/д | I126: matt | J126: 15 | K126: л | L126: Ведро | M126: 0.12 | N126: 0.28 | O126: л/м² | P126: =P125+68 -> 761.7405605 | Q126: 914.0886726 | R126: 109.6906407 | S126: 13711.33009 | U126: 0 | X126: 24 | Y126: 572.04 | Z126: 744
A127: 00206-004 | B127: StoColor Sil In weiss (белая) | C127: DE | D127: интерьер | E127: краска | F127: силикат | G127: 2 | H127: 1 | I127: matt | J127: 10 | K127: л | L127: Ведро | M127: 0.12 | N127: 0.28 | O127: л/м² | P127: 743.4302726 | Q127: 892.1163271 | R127: 107.0539593 | S127: 8921.163271 | U127: 0 | X127: 27 | Y127: 429.57 | Z127: 891
A128: 00206-052 | B128: StoColor Sil In getönt (колерованная) C1 | C128: DE | D128: интерьер | E128: краска | F128: силикат | G128: 2 | H128: н/д | I128: matt | J128: 10 | K128: л | L128: Ведро | M128: 0.12 | N128: 0.28 | O128: л/м² | P128: =P127+68 -> 811.4302726 | Q128: 973.7163271 | R128: 116.8459593 | S128: 9737.163271 | U128: 0 | X128: 27 | Y128: 429.57 | Z128: 891
A129: 00206-012 | B129: StoColor Sil In weiss (белая) | C129: DE | D129: интерьер | E129: краска | F129: силикат | G129: 2 | H129: 1 | I129: matt | J129: 5 | K129: л | L129: Ведро | M129: 0.12 | N129: 0.28 | O129: л/м² | P129: 906.2909306 | Q129: 1087.549117 | R129: 130.505894 | S129: 5437.745584 | U129: 0 | X129: 60 | Y129: 477.3 | Z129: 1980
A130: 00206-057 | B130: StoColor Sil In getönt (колерованная) C1 | C130: DE | D130: интерьер | E130: краска | F130: силикат | G130: 2 | H130: н/д | I130: matt | J130: 5 | K130: л | L130: Ведро | M130: 0.12 | N130: 0.28 | O130: л/м² | P130: =P129+68 -> 974.2909306 | Q130: =P130*1.2 -> 1169.149117 | R130: =Q130*M130 -> 140.297894 | S130: =Q130*J130 -> 5845.745584 | U130: 0 | X130: 60 | Y130: 477.3 | Z130: 1980
A131: 00206-075 | B131: StoColor Sil In weiss (белая) | C131: DE | D131: интерьер | E131: краска | F131: силикат | G131: 2 | H131: 1 | I131: matt | J131: 2,5 | K131: л | L131: Ведро | M131: 0.12 | N131: 0.28 | O131: л/м² | P131: 1216.233346 | Q131: 1459.480015 | R131: 175.1376018 | S131: 3648.700038 | U131: =T131*S131 -> 0 | X131: 72 | Y131: 286.38 | Z131: 2376
A132: 00206-086 | B132: StoColor Sil In getönt (колерованная) C1 | C132: DE | D132: интерьер | E132: краска | F132: силикат | G132: 2 | H132: н/д | I132: matt | J132: 2,5 | K132: л | L132: Ведро | M132: 0.12 | N132: 0.28 | O132: л/м² | P132: =P131+68 -> 1284.233346 | Q132: 1541.080015 | R132: 184.9296018 | S132: 3852.700038 | U132: 0 | X132: 72 | Y132: 286.38 | Z132: 2376
A133: 00039-001 | B133: StoColor Basic weiss (белая) | C133: DE | D133: интерьер | E133: краска | F133: акрил | G133: 3 | H133: 2 | I133: matt | J133: 15 | K133: л | L133: Ведро | M133: 0.12 | N133: 0.28 | O133: л/м² | P133: 398.9415447 | Q133: 478.7298537 | R133: 57.44758244 | S133: 7180.947805 | U133: 0 | V133: ● | W133: ● | X133: 24 | Y133: 566.64 | Z133: 768 | AA133: не содержащая вредных веществ матовая органическая дисперсионная краска с высокой степенью белизны. Хорошая укрывистость. Не содержит растворителей и пластификаторов, характеризуется крайне низкой эмиссией вредных веществ. Имеет сертификат TÜV, не содержит субстанций, вызывающих эффект потемнения.
A134: 00039-006 | B134: StoColor Basic getönt (колерованная) С1 | C134: DE | D134: интерьер | E134: краска | F134: акрил | G134: 3 | H134: н/д | I134: matt | J134: 15 | K134: л | L134: Ведро | M134: 0.12 | N134: 0.28 | O134: л/м² | P134: =P133+68 -> 466.9415447 | Q134: 560.3298537 | R134: 67.23958244 | S134: 8404.947805 | U134: 0 | X134: 24 | Y134: 566.64 | Z134: 768
A135: 00039-002 | B135: StoColor Basic weiss (белая) | C135: DE | D135: интерьер | E135: краска | F135: акрил | G135: 3 | H135: 2 | I135: matt | J135: 10 | K135: л | L135: Ведро | M135: 0.12 | N135: 0.28 | O135: л/м² | P135: 438.0185881 | Q135: 525.6223057 | R135: 63.07467669 | S135: 5256.223057 | U135: 0 | V135: ● | X135: 27 | Y135: 425.52 | Z135: 891
A136: 00039-007 | B136: StoColor Basic getönt (колерованная) С1 | C136: DE | D136: интерьер | E136: краска | F136: акрил | G136: 3 | H136: н/д | I136: matt | J136: 10 | K136: л | L136: Ведро | M136: 0.12 | N136: 0.28 | O136: л/м² | P136: =P135+68 -> 506.0185881 | Q136: 607.2223057 | R136: 72.86667669 | S136: 6072.223057 | U136: 0 | X136: 27 | Y136: 425.52 | Z136: 891
A137: 00229-007 | B137: StoColor Rapid weiss (белая) | C137: DE | D137: интерьер | E137: краска | F137: акрил | G137: 2 | H137: 1 | I137: matt | J137: 15 | K137: л | L137: Ведро | M137: 0.13 | N137: 0.3 | O137: л/м² | P137: 721.8501505 | Q137: 866.2201806 | R137: 112.6086235 | S137: 12993.30271 | U137: 0 | X137: 24 | Y137: 540 | Z137: 792 | AA137: проверенная на отсутствие вредных примесей, дисперсионная краска с высокой укрывистостью. Однослойная дисперсионная краска, очень высокая степень белизны. Устойчива к мытью, не содержит растворителей и пластификаторов, с очень слабой эммисией вредных веществ, имеет сертификат TÜV как безвредный продукт, не содержит субстанций , способствующих образованию "черных пятен" (отложение копоти и пыли на стенах).
A138: 00229-046 | B138: StoColor Rapid getönt (колерованная) С 1 | C138: DE | D138: интерьер | E138: краска | F138: акрил | G138: 2 | H138: н/д | I138: matt | J138: 15 | K138: л | L138: Ведро | M138: 0.13 | N138: 0.3 | O138: л/м² | P138: 789.8501505 | Q138: 947.8201806 | R138: 123.2166235 | S138: 14217.30271 | U138: 0 | X138: 24 | Y138: 540 | Z138: 792
A139: 00229-006 | B139: StoColor Rapid weiss (белая) | C139: DE | D139: интерьер | E139: краска | F139: акрил | G139: 2 | H139: 1 | I139: matt | J139: 10 | K139: л | L139: Ведро | M139: 0.13 | N139: 0.3 | O139: л/м² | P139: 749.0980751 | Q139: 898.9176901 | R139: 116.8592997 | S139: 8989.176901 | U139: 0 | X139: 27 | Y139: 405.54 | Z139: 891
A140: 00229-047 | B140: StoColor Rapid getönt (колерованная) С 1 | C140: DE | D140: интерьер | E140: краска | F140: акрил | G140: 2 | H140: н/д | I140: matt | J140: 10 | K140: л | L140: Ведро | M140: 0.13 | N140: 0.3 | O140: л/м² | P140: 817.0980751 | Q140: 980.5176901 | R140: 127.4672997 | S140: 9805.176901 | U140: 0 | X140: 27 | Y140: 405.54 | Z140: 891
A141: 00229-005 | B141: StoColor Rapid weiss (белая) | C141: DE | D141: интерьер | E141: краска | F141: акрил | G141: 2 | H141: 1 | I141: matt | J141: 5 | K141: л | L141: Ведро | M141: 0.13 | N141: 0.3 | O141: л/м² | P141: 875.8602313 | Q141: 1051.032278 | R141: 136.6341961 | S141: 5255.161388 | U141: 0 | X141: 60 | Y141: 450.6 | Z141: 1980
A142: 00229-086 | B142: StoColor Rapid getönt (колерованная) С 1 | C142: DE | D142: интерьер | E142: краска | F142: акрил | G142: 2 | H142: н/д | I142: matt | J142: 5 | K142: л | L142: Ведро | M142: 0.13 | N142: 0.3 | O142: л/м² | P142: 943.8602313 | Q142: 1132.632278 | R142: 147.2421961 | S142: 5663.161388 | U142: 0 | X142: 60 | Y142: 450.6 | Z142: 1980
A143: 00229-004 | B143: StoColor Rapid weiss (белая) | C143: DE | D143: интерьер | E143: краска | F143: акрил | G143: 2 | H143: 1 | I143: matt | J143: 2,5 | K143: л | L143: Ведро | M143: 0.13 | N143: 0.3 | O143: л/м² | P143: 1158.487489 | Q143: 1390.184987 | R143: 180.7240483 | S143: 3475.462468 | U143: 0 | X143: 72 | Y143: 270.36 | Z143: 2376
A144: 00229-087 | B144: StoColor Rapid getönt (колерованная) С 1 | C144: DE | D144: интерьер | E144: краска | F144: акрил | G144: 2 | H144: н/д | I144: matt | J144: 2,5 | K144: л | L144: Ведро | M144: 0.13 | N144: 0.3 | O144: л/м² | P144: 1226.487489 | Q144: 1471.784987 | R144: 191.3320483 | S144: 3679.462468 | U144: 0 | X144: 72 | Y144: 270.36 | Z144: 2376
A145: 00237-024 | B145: StoColor In weiss (белая) | C145: DE | D145: интерьер | E145: краска | F145: акрил | G145: 3 | H145: 1 | I145: matt | J145: 15 | K145: л | L145: Ведро | M145: 0.13 | N145: 0.3 | O145: л/м² | P145: 438.618401 | Q145: 526.3420813 | R145: 68.42447056 | S145: 7895.131219 | U145: 0 | V145: ● | X145: 24 | Y145: 541.44 | Z145: 792 | AA145: универсальная дисперсионная матовая краска. Широкий спектр колеровки, имеет сертификат TÜV как безвредный продукт. Легко наносится, класс укрывистости - 2.
A146: 00237-082 | B146: StoColor In getönt (колерованная) С 1 | C146: DE | D146: интерьер | E146: краска | F146: акрил | G146: 3 | H146: н/д | I146: matt | J146: 15 | K146: л | L146: Ведро | M146: 0.13 | N146: 0.3 | O146: л/м² | P146: =P145+68 -> 506.618401 | Q146: 607.9420813 | R146: 79.03247056 | S146: 9119.131219 | U146: 0 | X146: 24 | Y146: 541.44 | Z146: 792
A147: 00237-022 | B147: StoColor In weiss (белая) | C147: DE | D147: интерьер | E147: краска | F147: акрил | G147: 3 | H147: 1 | I147: matt | J147: 10 | K147: л | L147: Ведро | M147: 0.13 | N147: 0.3 | O147: л/м² | P147: 481.1513404 | Q147: 577.3816085 | R147: 75.05960911 | S147: 5773.816085 | U147: 0 | X147: 27 | Y147: 406.62 | Z147: 891
A148: 00237-081 | B148: StoColor In getönt (колерованная) С 1 | C148: DE | D148: интерьер | E148: краска | F148: акрил | G148: 3 | H148: н/д | I148: matt | J148: 10 | K148: л | L148: Ведро | M148: 0.13 | N148: 0.3 | O148: л/м² | P148: =P147+68 -> 549.1513404 | Q148: 658.9816085 | R148: 85.66760911 | S148: 6589.816085 | U148: 0 | X148: 27 | Y148: 406.62 | Z148: 891
A149: 00237-020 | B149: StoColor In weiss (белая) | C149: DE | D149: интерьер | E149: краска | F149: акрил | G149: 3 | H149: 1 | I149: matt | J149: 5 | K149: л | L149: Ведро | M149: 0.13 | N149: 0.3 | O149: л/м² | P149: 520.9567891 | Q149: 625.148147 | R149: 81.2692591 | S149: 3125.740735 | U149: 0 | X149: 60 | Y149: 451.8 | Z149: 1980
A150: 00237-086 | B150: StoColor In getönt (колерованная) С 1 | C150: DE | D150: интерьер | E150: краска | F150: акрил | G150: 3 | H150: н/д | I150: matt | J150: 5 | K150: л | L150: Ведро | M150: 0.13 | N150: 0.3 | O150: л/м² | P150: =P149+68 -> 588.9567891 | Q150: 706.748147 | R150: 91.8772591 | S150: 3533.740735 | U150: 0 | X150: 60 | Y150: 451.8 | Z150: 1980
A151: 00237-018 | B151: StoColor In weiss (белая) | C151: DE | D151: интерьер | E151: краска | F151: акрил | G151: 3 | H151: 1 | I151: matt | J151: 2,5 | K151: л | L151: Ведро | M151: 0.13 | N151: 0.3 | O151: л/м² | P151: 1031.527227 | Q151: 1237.832672 | R151: 160.9182474 | S151: 3094.581681 | U151: 0 | X151: 72 | Y151: 271.08 | Z151: 2376
A152: 00237-093 | B152: StoColor In getönt (колерованная) С 1 | C152: DE | D152: интерьер | E152: краска | F152: акрил | G152: 3 | H152: н/д | I152: matt | J152: 2,5 | K152: л | L152: Ведро | M152: 0.13 | N152: 0.3 | O152: л/м² | P152: =P151+68 -> 1099.527227 | Q152: 1319.432672 | R152: 171.5262474 | S152: 3298.581681 | U152: 0 | X152: 72 | Y152: 271.08 | Z152: 2376
A153: 00292-001 | B153: StoColor Sil Mineral weiss (белая) | C153: DE | D153: интерьер | E153: краска | F153: силикат | G153: 3 | H153: 2 | I153: stumpfmatt | J153: 15 | K153: л | L153: Ведро | M153: 0.17 | N153: 0.34 | O153: л/м² | P153: 459.0597388 | Q153: 550.8716866 | R153: 93.64818672 | S153: 8263.075299 | U153: 0 | X153: 24 | Y153: 582.84 | Z153: 744 | AA153: экологически чистая, силикатная краска. Имеет сертификат TÜV как безвредный продукт. Предназначена для людей, особо ценящих экологическую чистоту в доме. Материал колеруется в ограниченный диапазон цветов, не содержит растворителей и пластификаторов, эмиссий вредных веществ и субстанций, вызывающих эффект потемнения.
A154: 00292-011 | B154: StoColor Sil Mineral getönt (колерованная) С 1 | C154: DE | D154: интерьер | E154: краска | F154: силикат | G154: 3 | H154: н/д | I154: stumpfmatt | J154: 15 | K154: л | L154: Ведро | M154: 0.17 | N154: 0.34 | O154: л/м² | P154: =P153+68 -> 527.0597388 | Q154: 632.4716866 | R154: 107.5201867 | S154: 9487.075299 | U154: 0 | X154: 24 | Y154: 582.84 | Z154: 744
A155: 00292-019 | B155: StoColor Sil Mineral weiss (белая) | C155: DE | D155: интерьер | E155: краска | F155: силикат | G155: 3 | H155: 2 | I155: stumpfmatt | J155: 10 | K155: л | L155: Ведро | M155: 0.17 | N155: 0.34 | O155: л/м² | P155: 581.8039614 | Q155: 698.1647537 | R155: 118.6880081 | S155: 6981.647537 | U155: 0 | X155: 27 | Y155: 438.48 | Z155: 891
A156: 00292-020 | B156: StoColor Sil Mineral getönt (колерованная) С 1 | C156: DE | D156: интерьер | E156: краска | F156: силикат | G156: 3 | H156: н/д | I156: stumpfmatt | J156: 10 | K156: л | L156: Ведро | M156: 0.17 | N156: 0.34 | O156: л/м² | P156: =P155+68 -> 649.8039614 | Q156: 779.7647537 | R156: 132.5600081 | S156: 7797.647537 | U156: 0 | X156: 27 | Y156: 438.48 | Z156: 891
A157: 00292-025 | B157: StoColor Sil Mineral weiss (белая) | C157: DE | D157: интерьер | E157: краска | F157: силикат | G157: 3 | H157: 2 | I157: stumpfmatt | J157: 5 | K157: л | L157: Ведро | M157: 0.17 | N157: 0.34 | O157: л/м² | P157: 678.529095 | Q157: 814.234914 | R157: 138.4199354 | S157: 4071.17457 | U157: 0 | X157: 60 | Y157: 487.2 | Z157: 1980
A158: 00292-026 | B158: Sto Color Sil Mineral getönt (колерованная) С 1 | C158: DE | D158: интерьер | E158: краска | F158: силикат | G158: 3 | H158: н/д | I158: stumpfmatt | J158: 5 | K158: л | L158: Ведро | M158: 0.17 | N158: 0.34 | O158: л/м² | P158: =P157+68 -> 746.529095 | Q158: 895.834914 | R158: 152.2919354 | S158: 4479.17457 | U158: 0 | X158: 60 | Y158: 487.2 | Z158: 1980
A159: 00247-001 | B159: StoColor Calcetura natur (натуральный цвет) | C159: DE | D159: интерьер | E159: краска | F159: известь | G159: 3 | H159: 3 | I159: stumpfmatt | J159: 20 | K159: кг | L159: Ведро | M159: 0.2 | N159: 0.6 | O159: кг/м² | P159: 311.584 | Q159: 373.9008 | R159: 74.78016 | S159: 7478.016 | U159: 0 | X159: 24 | Y159: 495.84 | Z159: 792 | AA159: усиленная клеем известковая краска, минеральная, устойчивая к мытью. Хорошая укрывистость, высокая степень белизны, не содержит консервантов, натурально-белая.
A160: 02990-001 | B160: StoColor Climasan weiss (белая) | C160: DE | D160: интерьер | E160: краска | F160: акрил | G160: 2 | H160: 1 | I160: stumpfmatt | J160: 15 | K160: л | L160: Ведро | M160: 0.14 | N160: 0.34 | O160: л/м² | P160: 1617.880956 | Q160: 1941.457147 | R160: 271.8040006 | S160: 29121.85721 | U160: 0 | X160: 24 | Y160: 522.36 | Z160: 792 | AA160: активная краска для внутренних работ, очищающая воздух под воздействием света. Фотокаталитический принцип действия обеспечивает устранение из воздуха вредных веществ и неприятных запахов. Краска имеет матовую поверхность, обладает высокой степенью укрывитости и наносится в один слой. Не содержит растворителей и пластификаторов, характеризуется крайне низкой эмиссией вредных веществ. Имеет сертификат TÜV, не содержит субстанций, вызывающих эффект потемнения.
A161: 02990-004 | B161: StoColor Climasan getönt (колерованная) С1 | C161: DE | D161: интерьер | E161: краска | F161: акрил | G161: 2 | H161: н/д | I161: stumpfmatt | J161: 15 | K161: л | L161: Ведро | M161: 0.14 | N161: 0.34 | O161: л/м² | P161: =P160+68 -> 1685.880956 | Q161: 2023.057147 | R161: 283.2280006 | S161: 30345.85721 | U161: 0 | X161: 24 | Y161: 522.36 | Z161: 792
A162: 02990-007 | B162: StoColor Climasan weiss (белая) | C162: DE | D162: интерьер | E162: краска | F162: акрил | G162: 2 | H162: 1 | I162: stumpfmatt | J162: 5 | K162: л | L162: Ведро | M162: 0.14 | N162: 0.34 | O162: л/м² | P162: 1852.688133 | Q162: 2223.22576 | R162: 311.2516064 | S162: 11116.1288 | U162: 0 | X162: 60 | Y162: 437.4 | Z162: 1980
A163: 02990-008 | B163: StoColor Climasan getönt (колерованная) С1 | C163: DE | D163: интерьер | E163: краска | F163: акрил | G163: 2 | H163: н/д | I163: stumpfmatt | J163: 5 | K163: л | L163: Ведро | M163: 0.14 | N163: 0.34 | O163: л/м² | P163: =P162+68 -> 1920.688133 | Q163: 2304.82576 | R163: 322.6756064 | S163: 11524.1288 | U163: 0 | X163: 60 | Y163: 437.4 | Z163: 1980
A164: 00080/001 | B164: StoColor Puran Satin weiss (белая), комплект из 2-х компонентов | C164: DE | D164: интерьер | E164: краска | F164: полиуретан | G164: 1 | H164: 2 | I164: satin | J164: 16.5 | K164: кг | L164: Комплект | M164: 0.15 | N164: 0.4 | O164: кг/м² | P164: 1509.984 | Q164: 1811.9808 | R164: 271.79712 | S164: 29897.6832 | U164: 0 | V164: ● | W164: ● | X164: 24 | Y164: 420.552 | Z164: 792 | AA164: двухкомпонентная полиуретановая краска с шелковисто-матовой поверхностью, может подвергаться обработке дезактивирующими и дезинфицирующими веществами, 1-й класс устойчивости к влажному истиранию по евростандарту EN 13300. Подходит для использования в медицинских и других общественных заведениях
A165: 00080/002 | B165: StoColor Puran Satin getönt (колерованная) С1, комплект из 2-х компонентов | C165: DE | D165: интерьер | E165: краска | F165: полиуретан | G165: 1 | H165: н/д | I165: satin | J165: 16.5 | K165: кг | L165: Комплект | M165: 0.15 | N165: 0.4 | O165: кг/м² | P165: =P164+68 -> 1577.984 | Q165: 1893.5808 | R165: 284.03712 | S165: 31244.0832 | U165: 0 | X165: 24 | Y165: 420.552 | Z165: 792
A166: 00200-011 | B166: StoColor Isol weiss (белая) | C166: DE | D166: интерьер | E166: краска изолирующая | F166: растворитель | G166: 2 | H166: 2 | I166: matt | J166: 12.5 | K166: л | L166: Ведро | M166: 0.13 | N166: 0.3 | O166: л/м² | P166: 2305.935529 | Q166: 2767.122634 | R166: 359.7259425 | S166: 34589.03293 | U166: 0 | X166: 24 | Y166: 452.7 | Z166: 792 | AA166: матовая изолирующая краска на основе растворителя, 2-й класс укрывистости, 2-й класс устойчивости к влажному истиранию, высокая степень белизны, хорошая укрывистость, со слабым внутренним напряжением. Для нанесения на проблемные основания (например, пятна от никотина, копоти, воды)
A167: 00200-012 | B167: StoColor Isol getönt (колерованная) С1 | C167: DE | D167: интерьер | E167: краска изолирующая | F167: растворитель | G167: 2 | H167: н/д | I167: matt | J167: 12.5 | K167: л | L167: Ведро | M167: 0.13 | N167: 0.3 | O167: л/м² | P167: =P166+68 -> 2373.935529 | Q167: 2848.722634 | R167: 370.3339425 | S167: 35609.03293 | U167: 0 | X167: 24 | Y167: 452.7 | Z167: 792
A168: 00289-001 | B168: StoColor Isol W weiss (белая) | C168: DE | D168: интерьер | E168: краска изолирующая | F168: акрил | G168: 1 | H168: 2 | I168: matt | J168: 15 | K168: л | L168: Ведро | M168: 0.13 | N168: 0.3 | O168: л/м² | P168: 963.2318128 | Q168: 1155.878175 | R168: 150.2641628 | S168: 17338.17263 | U168: 0 | X168: 24 | Y168: 476.64 | Z168: 792 | AA168: водная, изолирующая дисперсионная краска. Высокая степень белизны, 2-й класс влажного истирания, хорошая укрывистость, со слабым внутренним напряжением. Для нанесения на проблемные основания (например, пятна от никотина, копоти, места, пораженные лигнином)
A169: 00289-013 | B169: StoColor Isol W getönt (колерованная) С1 | C169: DE | D169: интерьер | E169: краска изолирующая | F169: акрил | G169: 1 | H169: н/д | I169: matt | J169: 15 | K169: л | L169: Ведро | M169: 0.13 | N169: 0.3 | O169: л/м² | P169: =P168+68 -> 1031.231813 | Q169: 1237.478175 | R169: 160.8721628 | S169: 18562.17263 | U169: 0 | X169: 24 | Y169: 476.64 | Z169: 792
A170: 00289-004 | B170: StoColor Isol W weiss (белая) | C170: DE | D170: интерьер | E170: краска изолирующая | F170: акрил | G170: 1 | H170: 2 | I170: matt | J170: 5 | K170: л | L170: Ведро | M170: 0.13 | N170: 0.3 | O170: л/м² | P170: 1151.497347 | Q170: 1381.796816 | R170: 179.6335861 | S170: 6908.98408 | U170: 0 | X170: 60 | Y170: 399.3 | Z170: 1980
A171: 00289-026 | B171: StoColor Isol W getönt (колерованная) С1 | C171: DE | D171: интерьер | E171: краска изолирующая | F171: акрил | G171: 1 | H171: н/д | I171: matt | J171: 5 | K171: л | L171: Ведро | M171: 0.13 | N171: 0.3 | O171: л/м² | P171: 1219.497347 | Q171: 1463.396816 | R171: 190.2415861 | S171: 7316.98408 | U171: 0 | X171: 60 | Y171: 399.3 | Z171: 1980
A172: 00300-001 | B172: StoLook Decor Fine 1 мм weiss (белое) | C172: DE | D172: интерьер | E172: краска структурная | F172: акрил | G172: н/д | H172: н/д | I172: matt | J172: 21 | K172: кг | L172: Ведро | M172: 0.7 | N172: 0.9 | O172: кг/м² | P172: 293.608 | Q172: 352.3296 | R172: 246.63072 | S172: 7398.9216 | U172: 0 | X172: 24 | Y172: 520.128 | Z172: 792 | AA172: мелкозернистое структурное покрытие, наносится методом набрызга
A173: 00300-007 | B173: StoLook Decor Fine 1 мм getönt (колерованное) | C173: DE | D173: интерьер | E173: краска структурная | F173: акрил | G173: н/д | H173: н/д | I173: matt | J173: 21 | K173: кг | L173: Ведро | M173: 0.7 | N173: 0.9 | O173: кг/м² | P173: =P172+68 -> 361.608 | Q173: 433.9296 | R173: 303.75072 | S173: 9112.5216 | U173: 0 | X173: 24 | Y173: 520.128 | Z173: 792
A174: 00302-001 | B174: StoLook Decor Medium 1,5 мм weiss (белое) | C174: DE | D174: интерьер | E174: краска структурная | F174: акрил | G174: н/д | H174: н/д | I174: matt | J174: 21 | K174: кг | L174: Ведро | M174: 0.8 | N174: 1 | O174: кг/м² | P174: 305.592 | Q174: 366.7104 | R174: 293.36832 | S174: 7700.9184 | U174: 0 | X174: 24 | Y174: 520.128 | Z174: 792 | AA174: среднезернистое структурное покрытие, наносится методом набрызга
A175: 00302-005 | B175: StoLook Decor Medium 1,5 мм getönt (колерованное) | C175: DE | D175: интерьер | E175: краска структурная | F175: акрил | G175: н/д | H175: н/д | I175: matt | J175: 21 | K175: кг | L175: Ведро | M175: 0.8 | N175: 1 | O175: кг/м² | P175: =P174+68 -> 373.592 | Q175: 448.3104 | R175: 358.64832 | S175: 9414.5184 | U175: 0 | X175: 24 | Y175: 520.128 | Z175: 792
A176: 00735-017 | B176: StoLook Decor Perl weiss (белое) | C176: DE | D176: интерьер | E176: краска структурная | F176: акрил | G176: н/д | H176: н/д | I176: matt | J176: 16 | K176: кг | L176: Ведро | M176: 0.8 | N176: 1 | O176: кг/м² | P176: 317.3756799 | Q176: 380.8508159 | R176: 304.6806527 | S176: 6093.613054 | U176: 0 | X176: 24 | Y176: 400.128 | Z176: 792 | AA176: матовое покрытие с эффектом "рассыпавшихся шариков", наносится методом набрызга
A177: 00282-001 | B177: StoLook Struktur F weiss (белое) | C177: DE | D177: интерьер | E177: краска структурная | F177: акрил | G177: н/д | H177: н/д | I177: matt | J177: 20 | K177: кг | L177: Ведро | M177: 0.3 | N177: 1.5 | O177: кг/м² | P177: 419.44 | Q177: 503.328 | R177: 150.9984 | S177: 10066.56 | U177: 0 | X177: 24 | Y177: 495.84 | Z177: 792 | AA177: структурная краска с мелким наполнителем, подходит для создания различных декоративных покрытий различным инструментом, 2-й класс устойчивости к влажному истиранию (EN 13300)
A178: 00282-002 | B178: StoLook Struktur F getönt (колерованное) | C178: DE | D178: интерьер | E178: краска структурная | F178: акрил | G178: н/д | H178: н/д | I178: matt | J178: 20 | K178: кг | L178: Ведро | M178: 0.3 | N178: 1.5 | O178: кг/м² | P178: =P177+68 -> 487.44 | Q178: 584.928 | R178: 175.4784 | S178: 11698.56 | U178: 0 | X178: 24 | Y178: 495.84 | Z178: 792
A179: 00282-005 | B179: StoLook Struktur F weiss (белое) | C179: DE | D179: интерьер | E179: краска структурная | F179: акрил | G179: н/д | H179: н/д | I179: matt | J179: 10 | K179: кг | L179: Ведро | M179: 0.3 | N179: 1.5 | O179: кг/м² | P179: 480.6832902 | Q179: 576.8199482 | R179: 173.0459845 | S179: 5768.199482 | U179: 0 | X179: 27 | Y179: 282.42 | Z179: 792
A180: 00282-006 | B180: StoLook Struktur F getönt (колерованное) | C180: DE | D180: интерьер | E180: краска структурная | F180: акрил | G180: н/д | H180: н/д | I180: matt | J180: 10 | K180: кг | L180: Ведро | M180: 0.3 | N180: 1.5 | O180: кг/м² | P180: =P179+68 -> 548.6832902 | Q180: 658.4199482 | R180: 197.5259845 | S180: 6584.199482 | U180: 0 | X180: 27 | Y180: 282.42 | Z180: 792
A181: 00571-001 | B181: StoLook Struktur G weiss (белое) | C181: DE | D181: интерьер | E181: краска структурная | F181: акрил | G181: н/д | H181: н/д | I181: matt | J181: 20 | K181: кг | L181: Ведро | M181: 0.4 | N181: 1.5 | O181: кг/м² | P181: 407.456 | Q181: 488.9472 | R181: 195.57888 | S181: 9778.944 | U181: 0 | X181: 24 | Y181: 495.84 | Z181: 792 | AA181: структурная краска с крупным наполнителем, подходит для создания различных декоративных покрытий различным инстументом, 2-й класс устойчивости к влажному истиранию (EN 13300)
A182: 00571-002 | B182: StoLook Struktur G getönt (колерованное) | C182: DE | D182: интерьер | E182: краска структурная | F182: акрил | G182: н/д | H182: н/д | I182: matt | J182: 20 | K182: кг | L182: Ведро | M182: 0.4 | N182: 1.5 | O182: кг/м² | P182: =P181+68 -> 475.456 | Q182: 570.5472 | R182: 228.21888 | S182: 11410.944 | U182: 0 | X182: 24 | Y182: 495.84 | Z182: 792
A183: 00317-001 | B183: StoLook Diamant | C183: DE | D183: интерьер | E183: лазурь | F183: акрил | G183: 2 | H183: transparent | I183: matt | J183: 5 | K183: л | L183: Ведро | M183: 0.12 | N183: 0.3 | O183: л/м² | P183: 1314.893448 | Q183: 1577.872138 | R183: 189.3446565 | S183: 7889.360689 | U183: 0 | X183: 60 | Y183: 318.3 | Z183: 1980 | AA183: прозрачное дисперс. покрытие с мелкими от-ражающими слюдяными хлопьями, 2-й класс устойчивости к влажному истиранию (EN 13300)
A184: 00319-011 | B184: StoColor Metallic natur (серебристого цвета) 37800М | C184: DE | D184: универсальный | E184: краска металлик | F184: акрил | G184: н/д | H184: н/д | I184: satin | J184: 10 | K184: л | L184: Ведро | M184: 0.1 | N184: 0.3 | O184: л/м² | P184: 1431.704171 | Q184: 1718.045005 | R184: 171.8045005 | S184: 17180.45005 | U184: 0 | V184: ● | X184: 27 | Y184: 310.77 | Z184: 891 | AA184: декоративное водоразбавимое финишное покрытие (краска) с эффектом "металлик" для наружных и внутренних работ
A185: 00319-004 | B185: StoColor Metallic getönt (колерованная, серебристая) C1 | C185: DE | D185: универсальный | E185: краска металлик | F185: акрил | G185: н/д | H185: н/д | I185: satin | J185: 10 | K185: л | L185: Ведро | M185: 0.1 | N185: 0.3 | O185: л/м² | P185: =P184+68 -> 1499.704171 | Q185: 1799.645005 | R185: 179.9645005 | S185: 17996.45005 | U185: 0 | X185: 27 | Y185: 310.77 | Z185: 891
A186: 00319-010 | B186: StoColor Metallic natur (серебристого цвета) 37800М | C186: DE | D186: универсальный | E186: краска металлик | F186: акрил | G186: н/д | H186: н/д | I186: satin | J186: 5 | K186: л | L186: Ведро | M186: 0.1 | N186: 0.3 | O186: л/м² | P186: 1563.78357 | Q186: 1876.540285 | R186: 187.6540285 | S186: 9382.701423 | U186: 0 | V186: ● | W186: ● | X186: 60 | Y186: 345.3 | Z186: 1980
A187: 00319-003 | B187: StoColor Metallic getönt (колерованная, серебристая) C1 | C187: DE | D187: универсальный | E187: краска металлик | F187: акрил | G187: н/д | H187: н/д | I187: satin | J187: 5 | K187: л | L187: Ведро | M187: 0.1 | N187: 0.3 | O187: л/м² | P187: =P186+68 -> 1631.78357 | Q187: 1958.140285 | R187: 195.8140285 | S187: 9790.701423 | U187: 0 | X187: 60 | Y187: 345.3 | Z187: 1980
A188: 00319-025 | B188: StoColor Metallic natur (золотистого цвета) 37820М | C188: DE | D188: универсальный | E188: краска металлик | F188: акрил | G188: н/д | H188: н/д | I188: satin | J188: 10 | K188: л | L188: Ведро | M188: 0.1 | N188: 0.3 | O188: л/м² | P188: 3231.596391 | Q188: 3877.91567 | R188: 387.791567 | S188: 38779.1567 | U188: 0 | X188: 27 | Y188: 307.8 | Z188: 891
A189: 00319-104 | B189: StoColor Metallic getönt (колерованная, золотистая) C1 | C189: DE | D189: универсальный | E189: краска металлик | F189: акрил | G189: н/д | H189: н/д | I189: satin | J189: 10 | K189: л | L189: Ведро | M189: 0.1 | N189: 0.3 | O189: л/м² | P189: =P188+68 -> 3299.596391 | Q189: =P189*1.2 -> 3959.51567 | R189: =Q189*M189 -> 395.951567 | S189: =Q189*J189 -> 39595.1567 | U189: 0 | X189: 27 | Y189: 307.8 | Z189: 891
A190: 00319-024 | B190: StoColor Metallic natur (золотистого цвета) 37820М | C190: DE | D190: универсальный | E190: краска металлик | F190: акрил | G190: н/д | H190: н/д | I190: satin | J190: 5 | K190: л | L190: Ведро | M190: 0.1 | N190: 0.3 | O190: л/м² | P190: 3318.175441 | Q190: 3981.810529 | R190: 398.1810529 | S190: 19909.05265 | U190: =T190*S190 -> 0 | X190: 60 | Y190: 342 | Z190: 1980
A191: 00319-103 | B191: StoColor Metallic getönt (колерованная, золотистая) C1 | C191: DE | D191: универсальный | E191: краска металлик | F191: акрил | G191: н/д | H191: н/д | I191: satin | J191: 5 | K191: л | L191: Ведро | M191: 0.1 | N191: 0.3 | O191: л/м² | P191: =P190+68 -> 3386.175441 | Q191: 4063.410529 | R191: 406.3410529 | S191: 20317.05265 | U191: 0 | X191: 60 | Y191: 342 | Z191: 1980
A192: 15003-189 | B192: StoCryl BF 700 Metallic (база, серебристая) | C192: DE | D192: полы | E192: краска металлик | F192: акрил | G192: н/д | H192: н/д | I192: satinmatt | J192: 5 | K192: л | L192: Ведро | M192: 0.2 | N192: 0.4 | O192: л/м² | P192: 2374.693955 | Q192: 2849.632746 | R192: 569.9265492 | S192: 14248.16373 | U192: 0 | X192: 60 | Y192: 408.3 | Z192: 1980 | AA192: однокомпонентное, эффектное покрытие. Может наноситься в различных техниках, придает металлический блеск. Колеруется в ограниченный спектр цветов по вееру StoColor Metallic
A193: 00044-122 | B193: StoCryl BF 700 Metallic (колерованная, серебристая) C1 | C193: DE | D193: полы | E193: краска металлик | F193: акрил | G193: н/д | H193: н/д | I193: satinmatt | J193: 5 | K193: л | L193: Ведро | M193: 0.2 | N193: 0.4 | O193: л/м² | P193: =P192+68 -> 2442.693955 | Q193: 2931.232746 | R193: 586.2465492 | S193: 14656.16373 | U193: 0 | X193: 60 | Y193: 408.3 | Z193: 1980
A194: 15003-188 | B194: StoCryl BF 700 Metallic (база, золотистая) | C194: DE | D194: полы | E194: краска металлик | F194: акрил | G194: н/д | H194: н/д | I194: satinmatt | J194: 5 | K194: л | L194: Ведро | M194: 0.2 | N194: 0.4 | O194: л/м² | P194: 4038.607504 | Q194: 4846.329005 | R194: 969.265801 | S194: 24231.64502 | U194: 0 | X194: 60 | Y194: 408.3 | Z194: 1980 | AA194: однокомпонентное, эффектное покрытие. Может наноситься в различных техниках, придает металлический блеск. Колеруется в ограниченный спектр цветов по вееру StoColor Metallic
A195: 00044-022 | B195: StoCryl BF 700 Metallic (колерованная, золотистая) C1 | C195: DE | D195: полы | E195: краска металлик | F195: акрил | G195: н/д | H195: н/д | I195: satinmatt | J195: 5 | K195: л | L195: Ведро | M195: 0.2 | N195: 0.4 | O195: л/м² | P195: =P194+68 -> 4106.607504 | Q195: 4927.929005 | R195: 985.585801 | S195: 24639.64502 | U195: 0 | X195: 60 | Y195: 408.3 | Z195: 1980
A196: 00081-001 | B196: StoCryl BF 750 | C196: DE | D196: полы | E196: лак | F196: акрил | G196: н/д | H196: transparent | I196: gloss | J196: 2,5 | K196: л | L196: Ведро | M196: 0.1 | N196: 0.2 | O196: л/м² | P196: 2385.568573 | Q196: 2862.682288 | R196: 286.2682288 | S196: 7156.70572 | U196: 0 | X196: 72 | Y196: 198 | Z196: 2376 | AA196: однокомпонентный, глянцевый лак, применяется как запечатывающий слой для материала StoCryl BF 700 metallic, а также для других материалов (как напольных, так и настенных)
A197: 00081-002 | B197: StoCryl BF 750 | C197: DE | D197: полы | E197: лак | F197: акрил | G197: н/д | H197: transparent | I197: gloss | J197: 5 | K197: л | L197: Ведро | M197: 0.1 | N197: 0.2 | O197: л/м² | P197: 2202.075686 | Q197: 2642.490823 | R197: 264.2490823 | S197: 13212.45412 | U197: 0 | X197: 60 | Y197: 329.7 | Z197: 1980
A198: 00330-ххх | B198: StoLook Piccolo, Grundprogramm (основная программа) | C198: DE | D198: интерьер | E198: декоративное покрытие | F198: акрил | G198: н/д | H198: н/д | I198: matt | J198: 12,5 | K198: кг | L198: Ведро | M198: 0.3 | N198: 0.8 | O198: кг/м² | P198: 1517.95 | Q198: 1821.54 | R198: 546.462 | S198: 22769.25 | U198: 0 | X198: 36 | Y198: 466.668 | Z198: 1188 | AA198: Уникальный продукт! Готовое к применению шелковисто-матовое покрытие с цветными чипсами, необходим грунт в цвет дизайна. Цвет и фактуру см. в каталоге или на образцах (приложение)
A199: 01326-009 | B199: StoCalce Fondo naturweiss (натур. бел.) | C199: DE | D199: интерьер | E199: декоративное покрытие | F199: известь | G199: н/д | H199: н/д | I199: matt | J199: 25 | K199: кг | L199: Ведро | M199: 0.5 | N199: 1.5 | O199: кг/м² | P199: 575.232 | Q199: 690.2784 | R199: 345.1392 | S199: 17256.96 | U199: 0 | X199: 24 | Y199: 616.2 | Z199: 696 | AA199: минеральная декоративная известковая шпаклевка на основе извести, используется также для выравнивания основания под StoCalce Marmorino, StoCalce Veneziano, StoCalce Effetto
A200: 01326-008 | B200: StoCalce Fondo getönt (колеров.) | C200: DE | D200: интерьер | E200: декоративное покрытие | F200: известь | G200: н/д | H200: н/д | I200: matt | J200: 25 | K200: кг | L200: Ведро | M200: 0.5 | N200: 1.5 | O200: кг/м² | P200: =P199+34 -> 609.232 | Q200: 731.0784 | R200: 365.5392 | S200: 18276.96 | U200: 0 | X200: 24 | Y200: 616.2 | Z200: 696
A201: 01323-009 | B201: StoCalce Effetto naturweiss (натур. бел.) | C201: DE | D201: интерьер | E201: декоративное покрытие | F201: известь | G201: н/д | H201: н/д | I201: matt | J201: 25 | K201: кг | L201: Ведро | M201: 0.8 | N201: 1.5 | O201: кг/м² | P201: 790.944 | Q201: 949.1328 | R201: 759.30624 | S201: 23728.32 | U201: 0 | X201: 24 | Y201: 616.2 | Z201: 696 | AA201: минеральная декоративная известковая шпаклевка с вкраплениями цветного слюдяного пигмента для создания эффекта золотистого мерцания
... 35 more rows

Sheet 3. STOMIX
A1: Прайс-лист Товаров Продуктовой группы раздела «Stomix» Цены действительны c 01.10.2021 г.
A3: Артикул | B3: Наименование продукта | C3: Произ-водство | D3: Область применения | E3: Вид материала | F3: Цветовая гамма | G3: Упаковка | J3: Расчетный расход продукта | M3: Цена БЕЗ учета НДС за единицу измерения | N3: Цена с НДС за единицу измерения | O3: Цена с НДС за 1м² (при min расходе) | P3: Цена с НДС за упаковку | Q3: Кол-во единиц товара | R3: Сумма заказа с НДС | S3: Наличие на складе | T3: Количество упаковок на паллете, шт. | U3: Вес одного паллето-места (без палеты), кг. | V3: Норма загрузки авто (20 т.) шт. | W3: Краткое описание продукта
G4: кол-во | H4: ед. изм. | I4: вид упак. | J4: от | K4: до | L4: ед. изм.
A5: 66502_001 | B5: Грунтовка проникающая универсальная EH концентрат | C5: RU | D5: фасад | E5: Грунтовки | G5: 15 | H5: кг | I5: ведро | J5: 0.04 | K5: 0.07 | L5: кг/м² | M5: 430.836 | N5: =M5*1.2 -> 517.0032 | O5: =SUM(J5*N5) -> 20.680128 | P5: =N5*G5 -> 7755.048 | R5: =Q5*P5 -> 0 | S5: ● | T5: 24 | U5: 376.8 | V5: 792 | W5: воднодисперсионная грунтовка для обработки сильновпитывающих оснований
A6: 66503_009 | B6: Грунтовка адгезионная HC-4, белая | C6: RU | D6: фасад | E6: Грунтовки | F6: вся | G6: 24 | H6: кг | I6: ведро | J6: 0.19 | K6: 0.35 | L6: кг/м² | M6: 167.118 | N6: =M6*1.2 -> 200.5416 | O6: =SUM(J6*N6) -> 38.102904 | P6: =N6*G6 -> 4812.9984 | R6: =Q6*P6 -> 0 | S6: ● | T6: 24 | U6: 592.8 | V6: 744 | W6: воднодисперсионая адгезионная грунтовка
A7: 66503_010 | B7: Грунтовка адгезионная HC-4 (колерованная С1) | C7: RU | D7: фасад | E7: Грунтовки | F7: вся | G7: 24 | H7: кг | I7: ведро | J7: 0.19 | K7: 0.35 | L7: кг/м² | M7: =M6+34 -> 201.118 | N7: =M7*1.2 -> 241.3416 | O7: =SUM(J7*N7) -> 45.854904 | P7: =N7*G7 -> 5792.1984 | R7: 0 | T7: 24 | U7: 592.8 | V7: 744
A8: 61130 | B8: ALFADEKOR F | C8: RU | D8: фасад | E8: Декоративные штукатурки: органические | F8: 35 | G8: 25 | H8: кг | I8: ведро | J8: 3.5 | K8: 4 | L8: кг/м² | M8: 398.67 | N8: =M8*1.2 -> 478.404 | O8: =SUM(J8*N8) -> 1674.414 | P8: =N8*G8 -> 11960.1 | R8: =Q8*P8 -> 0 | T8: 24 | U8: 616.8 | V8: 696 | W8: воднодисперсионная мозаичная штукатурка- мелкозернистая
A9: 61140 | B9: ALFADEKOR G 114, 200, 201,206,207,208,209,210,214,222 | C9: RU | D9: фасад | E9: Декоративные штукатурки: органические | F9: 35 | G9: 25 | H9: кг | I9: ведро | J9: 5.5 | K9: 6 | L9: кг/м² | M9: 420.6976931 | N9: 504.8372317 | O9: 2776.604775 | P9: 12620.93079 | R9: 0 | T9: 24 | U9: 616.8 | V9: 696 | W9: воднодисперсионная мозаичная штукатурка - крупнозернистая, материал соответствует StoSuperlit из основного ассортимента Sto
A10: 61140 | B10: ALFADEKOR G 102,104,105,106,107,108,109,110,111,115,116,118,119,120,211,213,215,216,217 | C10: RU | D10: фасад | E10: Декоративные штукатурки: органические | F10: 35 | G10: 25 | H10: кг | I10: ведро | J10: 5.5 | K10: 6 | L10: кг/м² | M10: 420.6976931 | N10: 504.8372317 | O10: 2776.604775 | P10: 12620.93079 | R10: 0 | T10: 24 | U10: 616.8 | V10: 696
A11: 61140 | B11: ALFADEKOR G 122,123,212,218 | C11: RU | D11: фасад | E11: Декоративные штукатурки: органические | F11: 35 | G11: 25 | H11: кг | I11: ведро | J11: 5.5 | K11: 6 | L11: кг/м² | M11: 420.6976931 | N11: 504.8372317 | O11: 2776.604775 | P11: 12620.93079 | R11: 0 | T11: 24 | U11: 616.8 | V11: 696
A12: 61140 | B12: ALFADEKOR G 205,219,221 | C12: RU | D12: фасад | E12: Декоративные штукатурки: органические | F12: 35 | G12: 25 | H12: кг | I12: ведро | J12: 5.5 | K12: 6 | L12: кг/м² | M12: 420.6976931 | N12: 504.8372317 | O12: 2776.604775 | P12: 12620.93079 | R12: 0 | T12: 24 | U12: 616.8 | V12: 696
A13: 61140 | B13: ALFADEKOR G 202,204,121,125,203,220 | C13: RU | D13: фасад | E13: Декоративные штукатурки: органические | F13: 35 | G13: 25 | H13: кг | I13: ведро | J13: 5.5 | K13: 6 | L13: кг/м² | M13: 420.6976931 | N13: 504.8372317 | O13: 2776.604775 | P13: 12620.93079 | R13: 0 | T13: 24 | U13: 616.8 | V13: 696
A14: 61150 | B14: ALFADEKOR S 401,403,404,406,408,412 | C14: RU | D14: фасад | E14: Декоративные штукатурки: органические | F14: 12 | G14: 25 | H14: кг | I14: ведро | J14: 3.5 | K14: 6 | L14: кг/м² | M14: 420.6976931 | N14: 504.8372317 | O14: 1766.930311 | P14: 5500 | R14: 0 | T14: 24 | U14: 616.8 | V14: 696 | W14: воднодисперсионная мозаичная штукатурка- для нанесения распылением
A15: 61150 | B15: ALFADEKOR S 402,405,407,409,410,411 | C15: RU | D15: фасад | E15: Декоративные штукатурки: органические | F15: 12 | G15: 25 | H15: кг | I15: ведро | J15: 3.5 | K15: 6 | L15: кг/м² | M15: 420.6976931 | N15: 504.8372317 | O15: 1766.930311 | P15: 5750 | R15: 0 | T15: 24 | U15: 616.8 | V15: 696 | W15: воднодисперсионная мозаичная штукатурка- для нанесения распылением
A16: 61081_007 | B16: BETADEKOR SAF10, белая | C16: RU | D16: фасад | E16: Декоративные штукатурки: органические | F16: вся | G16: 25 | H16: кг | I16: ведро | J16: 2.6 | K16: 2.7 | L16: кг/м² | M16: 138.264 | N16: =M16*1.2 -> 165.9168 | O16: =SUM(J16*N16) -> 431.38368 | P16: 5750 | R16: 0 | T16: 24 | U16: 616.8 | V16: 696 | W16: воднодисперсионная силикон-акрилатная штукатурка с шероховатой структурой (шуба) для наружних и внутренних работ.
A17: 61081_006 | B17: BETADEKOR SAF10, (колерованная С1) | C17: RU | D17: фасад | E17: Декоративные штукатурки: органические | F17: вся | G17: 25 | H17: кг | I17: ведро | J17: 2.6 | K17: 2.7 | L17: кг/м² | M17: 172.264 | N17: 206.7168 | O17: 537.46368 | P17: 5750 | R17: 0 | T17: 24 | U17: 616.8 | V17: 696
A18: 61082_007 | B18: BETADEKOR SAF15, белая | C18: RU | D18: фасад | E18: Декоративные штукатурки: органические | F18: вся | G18: 25 | H18: кг | I18: ведро | J18: 2.6 | K18: 2.7 | L18: кг/м² | M18: 138.264 | N18: 165.9168 | O18: 431.38368 | P18: =N18*G18 -> 4147.92 | R18: 0 | S18: ● | T18: 24 | U18: 616.8 | V18: 696
A19: 61082_008 | B19: BETADEKOR SAF15, (колерованная С1) | C19: RU | D19: фасад | E19: Декоративные штукатурки: органические | F19: вся | G19: 25 | H19: кг | I19: ведро | J19: 2.6 | K19: 2.7 | L19: кг/м² | M19: 172.264 | N19: 206.7168 | O19: 537.46368 | P19: 5167.92 | R19: 0 | T19: 24 | U19: 616.8 | V19: 696
A20: 61083_007 | B20: BETADEKOR SAF20, белая | C20: RU | D20: фасад | E20: Декоративные штукатурки: органические | F20: вся | G20: 25 | H20: кг | I20: ведро | J20: 3.2 | K20: 3.3 | L20: кг/м² | M20: 138.264 | N20: 165.9168 | O20: 530.93376 | P20: 4147.92 | R20: 0 | S20: ● | T20: 24 | U20: 616.8 | V20: 696
A21: 61083_008 | B21: BETADEKOR SAF20, (колерованная С1) | C21: RU | D21: фасад | E21: Декоративные штукатурки: органические | F21: вся | G21: 25 | H21: кг | I21: ведро | J21: 3.2 | K21: 3.3 | L21: кг/м² | M21: 172.264 | N21: 206.7168 | O21: 661.49376 | P21: 5167.92 | R21: 0 | T21: 24 | U21: 616.8 | V21: 696
A22: 61086_009 | B22: BETADEKOR SAD20, белая | C22: RU | D22: фасад | E22: Декоративные штукатурки: органические | F22: вся | G22: 25 | H22: кг | I22: ведро | J22: 2.7 | K22: 2.8 | L22: кг/м² | M22: 138.264 | N22: 165.9168 | O22: 447.97536 | P22: 4147.92 | R22: 0 | S22: ● | T22: 24 | U22: 616.8 | V22: 696 | W22: воднодисперсионная силикон-акрилатная штукатурка с бороздчатой структурой (короед) для наружних и внутренних работ
A23: 61086_010 | B23: BETADEKOR SAD20, (колерованная С1) | C23: RU | D23: фасад | E23: Декоративные штукатурки: органические | F23: вся | G23: 25 | H23: кг | I23: ведро | J23: 2.7 | K23: 2.8 | L23: кг/м² | M23: 172.264 | N23: 206.7168 | O23: 558.13536 | P23: 5167.92 | R23: 0 | T23: 24 | U23: 616.8 | V23: 696
A24: 61061_001 | B24: BETADEKOR SIF10, белая | C24: RU | D24: фасад | E24: Декоративные штукатурки: органические | F24: вся | G24: 25 | H24: кг | I24: ведро | J24: 2.6 | K24: 2.7 | L24: кг/м² | M24: 159.0015 | N24: 190.8018 | O24: 496.08468 | P24: 4770.045 | R24: 0 | S24: ● | T24: 24 | U24: 616.8 | V24: 696 | W24: воднодисперсионная силиконовая штукатурка (повышенное содержание силиконовых дисперсий) с шероховатой структурой (шуба)
A25: 61061_002 | B25: BETADEKOR SIF10, (колерованная С1) | C25: RU | D25: фасад | E25: Декоративные штукатурки: органические | F25: вся | G25: 25 | H25: кг | I25: ведро | J25: 2.6 | K25: 2.7 | L25: кг/м² | M25: 193.0015 | N25: 231.6018 | O25: 602.16468 | P25: 5790.045 | R25: 0 | T25: 24 | U25: 616.8 | V25: 696
A26: 61062_006 | B26: BETADEKOR SIF15, белая | C26: RU | D26: фасад | E26: Декоративные штукатурки: органические | F26: вся | G26: 25 | H26: кг | I26: ведро | J26: 2.6 | K26: 2.7 | L26: кг/м² | M26: 159.0015 | N26: 190.8018 | O26: 496.08468 | P26: 4770.045 | R26: 0 | S26: ● | T26: 24 | U26: 616.8 | V26: 696
A27: 61062_007 | B27: BETADEKOR SIF15, (колерованная С1) | C27: RU | D27: фасад | E27: Декоративные штукатурки: органические | F27: вся | G27: 25 | H27: кг | I27: ведро | J27: 2.6 | K27: 2.7 | L27: кг/м² | M27: 193.0015 | N27: 231.6018 | O27: 602.16468 | P27: 5790.045 | R27: 0 | T27: 24 | U27: 616.8 | V27: 696
A28: 61063_006 | B28: BETADEKOR SIF20, белая | C28: RU | D28: фасад | E28: Декоративные штукатурки: органические | F28: вся | G28: 25 | H28: кг | I28: ведро | J28: 3.2 | K28: 3.3 | L28: кг/м² | M28: 159.0015 | N28: 190.8018 | O28: 610.56576 | P28: 4770.045 | R28: 0 | S28: ● | T28: 24 | U28: 616.8 | V28: 696
A29: 61063_007 | B29: BETADEKOR SIF20, (колерованная С1) | C29: RU | D29: фасад | E29: Декоративные штукатурки: органические | F29: вся | G29: 25 | H29: кг | I29: ведро | J29: 3.2 | K29: 3.3 | L29: кг/м² | M29: 193.0015 | N29: 231.6018 | O29: 741.12576 | P29: 5790.045 | R29: 0 | T29: 24 | U29: 616.8 | V29: 696
A30: 61053_006 | B30: BETADEKOR SID20, белая | C30: RU | D30: фасад | E30: Декоративные штукатурки: органические | F30: вся | G30: 25 | H30: кг | I30: ведро | J30: 2.7 | K30: 2.8 | L30: кг/м² | M30: 159.0015 | N30: 190.8018 | O30: 515.16486 | P30: 4770.045 | R30: 0 | S30: ● | T30: 24 | U30: 616.8 | V30: 696 | W30: воднодисперсионная силиконовая штукатурка (повышенное содержание силиконовых дисперсий) с бороздчатой структурой (короед)
A31: 61053_007 | B31: BETADEKOR SID20, (колерованная С1) | C31: RU | D31: фасад | E31: Декоративные штукатурки: органические | F31: вся | G31: 25 | H31: кг | I31: ведро | J31: 2.7 | K31: 2.8 | L31: кг/м² | M31: 193.0015 | N31: 231.6018 | O31: 625.32486 | P31: 5790.045 | R31: 0 | T31: 24 | U31: 616.8 | V31: 696
A32: 61041_015 | B32: Штукатурка BETADEKOR SF15 | C32: RU | D32: фасад | E32: Декоративные штукатурки: минеральные | F32: белый | G32: 25 | H32: кг | I32: мешок | J32: 2.3 | K32: 2.4 | L32: кг/м² | M32: 42.84 | N32: =M32*1.2 -> 51.408 | O32: =SUM(J32*N32) -> 118.2384 | P32: =N32*G32 -> 1285.2 | R32: 0 | S32: ● | T32: 42 | U32: 1054.2 | V32: 756 | W32: сухая минеральная штукатурка на основе белого цемента с шероховатой структурой (шуба) для наружних и внутренних работ
A33: 61043_020 | B33: Штукатурка BETADEKOR SF20 | C33: RU | D33: фасад | E33: Декоративные штукатурки: минеральные | F33: белый | G33: 25 | H33: кг | I33: мешок | J33: 2.4 | K33: 2.5 | L33: кг/м² | M33: 42.84 | N33: =M33*1.2 -> 51.408 | O33: =SUM(J33*N33) -> 123.3792 | P33: =N33*G33 -> 1285.2 | R33: 0 | S33: ● | T33: 42 | U33: 1054.2 | V33: 756
A34: 61030_015 | B34: Штукатурка BETADEKOR SD15 | C34: RU | D34: фасад | E34: Декоративные штукатурки: минеральные | F34: белый | G34: 25 | H34: кг | I34: мешок | J34: 2.6 | K34: 2.7 | L34: кг/м² | M34: 42.84 | N34: =M34*1.2 -> 51.408 | O34: =SUM(J34*N34) -> 133.6608 | P34: =N34*G34 -> 1285.2 | R34: 0 | T34: 42 | U34: 1054.2 | V34: 756
A35: 61032_020 | B35: Штукатурка BETADEKOR SD20 | C35: RU | D35: фасад | E35: Декоративные штукатурки: минеральные | F35: белый | G35: 25 | H35: кг | I35: мешок | J35: 2.6 | K35: 2.7 | L35: кг/м² | M35: 42.84 | N35: =M35*1.2 -> 51.408 | O35: =SUM(J35*N35) -> 133.6608 | P35: =N35*G35 -> 1285.2 | R35: 0 | S35: ● | T35: 42 | U35: 1054.2 | V35: 756 | W35: сухая минеральная штукатурка на основе белого цемента с бороздчатой структурой (короед) для наружних и внутренних работ
A36: 66004_019 | B36: GAMADEKOR - F, белая | C36: RU | D36: фасад | E36: Краски фасадные универсальные | G36: 15 | H36: л | I36: ведро | J36: 0.16 | K36: 0.32 | L36: л/м² | M36: 337.6361739 | N36: =M36*1.2 -> 405.1634087 | O36: =SUM(J36*N36) -> 64.82614539 | P36: =N36*G36 -> 6077.45113 | R36: 0 | S36: ● | T36: 24 | U36: 572.4 | V36: 768 | W36: фасадная краска с высоким показателем паропроницаемости. Матовая. Колеруется в светлые тона. Единица измерения - литры.
A37: 66004_119 | B37: GAMADEKOR - F, (колерованная С1) | C37: RU | D37: фасад | E37: Краски фасадные универсальные | G37: 15 | H37: л | I37: ведро | J37: 0.16 | K37: 0.32 | L37: л/м² | M37: 405.6361739 | N37: 486.7634087 | O37: 77.88214539 | P37: 7301.45113 | R37: 0 | T37: 24 | U37: 576 | V37: 768
A38: 66004-123 | B38: GAMADEKOR - F, G белая | C38: RU | D38: фасад | E38: Краски фасадные универсальные | G38: 15 | H38: л | I38: ведро | J38: 0.16 | K38: 0.32 | L38: л/м² | M38: 354.5179826 | N38: =M38*1.2 -> 425.4215791 | O38: =SUM(J38*N38) -> 68.06745266 | P38: =N38*G38 -> 6381.323687 | R38: =Q38*P38 -> 0 | T38: 24 | U38: 572.4 | V38: 768 | W38: фасадная краска с высоким показателем паропроницаемости. Матовая. С биоцидными добавками. Колеруется в светлые тона. Единица измерения - литры.
A39: 66004-120 | B39: GAMADEKOR - F, G (колерованная С1) | C39: RU | D39: фасад | E39: Краски фасадные универсальные | G39: 15 | H39: л | I39: ведро | J39: 0.16 | K39: 0.32 | L39: л/м² | M39: 422.5179826 | N39: 507.0215791 | O39: 81.12345266 | P39: 7605.323687 | R39: 0 | T39: 24 | U39: 576 | V39: 768
A40: 00278-141 | B40: GAMADEKOR - SA, белая | C40: RU | D40: фасад | E40: Краски фасадные универсальные | F40: вся | G40: 15 | H40: л | I40: ведро | J40: 0.2 | K40: 0.5 | L40: л/м² | M40: 574.39 | N40: 689.268 | O40: 137.8536 | P40: 10339.02 | R40: 0 | S40: ● | T40: 24 | U40: 572.04 | V40: 768 | W40: силиконовая краска с высокой паропрницаемостью и укрывистостью. Большой выбор цветов. Единица измерения - литры.
A41: 00278-140 | B41: GAMADEKOR - SA, (колерованная С1) | C41: RU | D41: фасад | E41: Краски фасадные универсальные | F41: вся | G41: 15 | H41: л | I41: ведро | J41: 0.2 | K41: 0.5 | L41: л/м² | M41: =M40+68 -> 642.39 | N41: 770.868 | O41: 154.1736 | P41: 11563.02 | R41: 0 | T41: 24 | U41: 572.04 | V41: 768
A42: 05415-165 | B42: GAMADEKOR - SA, база А | C42: RU | D42: фасад | E42: Краски фасадные универсальные | F42: вся | G42: 15 | H42: л | I42: ведро | J42: 0.2 | K42: 0.5 | L42: л/м² | M42: 554.02 | N42: 664.824 | O42: 132.9648 | P42: 9972.36 | R42: 0 | S42: ● | T42: 24 | U42: 557.64 | V42: 768
A43: 05415-166 | B43: GAMADEKOR - SA, база B | C43: RU | D43: фасад | E43: Краски фасадные универсальные | F43: вся | G43: 15 | H43: л | I43: ведро | J43: 0.2 | K43: 0.5 | L43: л/м² | M43: 504.06 | N43: 604.872 | O43: 120.9744 | P43: 9073.08 | R43: 0 | S43: ● | T43: 24 | U43: 541.44 | V43: 792
A44: 05415-167 | B44: GAMADEKOR - SA, база OT | C44: RU | D44: фасад | E44: Краски фасадные универсальные | F44: вся | G44: 14.5 | H44: л | I44: ведро | J44: 0.2 | K44: 0.5 | L44: л/м² | M44: 477.54 | N44: 573.048 | O44: 114.6096 | P44: 8309.196 | R44: 0 | S44: ● | T44: 24 | U44: 515.52 | V44: 792
A45: 66301_001 | B45: Клеевой состав ALFAFIX S2 | C45: RU | D45: фасад | E45: Клей и армирующие массы | F45: серый | G45: 25 | H45: кг | I45: мешок | J45: 3 | K45: 10 | L45: кг/м² | M45: 23.5935 | N45: =M45*1.2 -> 28.3122 | O45: =SUM(J45*N45) -> 84.9366 | P45: =N45*G45 -> 707.805 | R45: 0 | S45: ● | T45: 42 | U45: 1054.2 | V45: 756 | W45: клей минеральный для приклеивания теплоизоляционных плит
A46: 66302_001 | B46: Клеевой и армирующий состав ALFAFIX S1 | C46: RU | D46: фасад | E46: Клей и армирующие массы | F46: серый | G46: 25 | H46: кг | I46: мешок | J46: 3 | K46: 10 | L46: кг/м² | M46: 25.641 | N46: =M46*1.2 -> 30.7692 | O46: =SUM(J46*N46) -> 92.3076 | P46: =N46*G46 -> 769.23 | R46: 0 | S46: ● | T46: 42 | U46: 1054.2 | V46: 756 | W46: клей минеральный для создания базового армированного слоя и приклеивания теплоизоляционных плит
A47: 66305_001 | B47: Клеевой и армирующий состав ALFAFIX S11 | C47: RU | D47: фасад | E47: Клей и армирующие массы | F47: серый | G47: 25 | H47: кг | I47: мешок | J47: 2.7 | K47: 10 | L47: кг/м² | M47: 36.8655 | N47: =M47*1.2 -> 44.2386 | O47: =SUM(J47*N47) -> 119.44422 | P47: =N47*G47 -> 1105.965 | R47: 0 | T47: 42 | U47: 1054.2 | V47: 756 | W47: клей минеральный эластичный для создания базового слоя и приклеивания теплоизоляционных плит на нестабильные основания
A48: 66310_001 | B48: Клеевой состав BETAFIX Flex | C48: RU | D48: фасад | E48: Клей и армирующие массы | F48: серый | G48: 25 | H48: кг | I48: мешок | J48: 1.5 | K48: 8 | L48: кг/м² | M48: 43.827 | N48: =M48*1.2 -> 52.5924 | O48: =SUM(J48*N48) -> 78.8886 | P48: =N48*G48 -> 1314.81 | R48: 0 | T48: 42 | U48: 1054.2 | V48: 756 | W48: клей минеральный с высокой эластичностью для облицовочных материалов
A49: 66311_001 | B49: Клеевой состав BETAFIX Basic | C49: RU | D49: фасад | E49: Клей и армирующие массы | F49: серый | G49: 25 | H49: кг | I49: мешок | J49: 1.5 | K49: 8 | L49: кг/м² | M49: 26.901 | N49: =M49*1.2 -> 32.2812 | O49: =SUM(J49*N49) -> 48.4218 | P49: =N49*G49 -> 807.03 | R49: 0 | T49: 42 | U49: 1054.2 | V49: 756 | W49: клей минеральный с высокой эластичностью для облицовочных материалов
A50: 66802_001 | B50: ALFAFORM SCB шпаклевка белая | D50: фасад | E50: Шпаклевка | F50: белый | G50: 18 | H50: кг | I50: мешок | J50: 0.9 | K50: 0.9 | L50: кг/м² | M50: 75.86 | N50: =M50*1.2 -> 91.032 | O50: =SUM(J50*N50) -> 81.9288 | P50: =N50*G50 -> 1638.576 | R50: =Q50*P50 -> 0 | T50: 42 | U50: 764 | V50: 720 | W50: Финишная шпаклеква минеральная усиленная
A51: 66801_001 | B51: ALFAFORM SCA шпаклевка выравнивающая | D51: фасад | E51: Шпаклевка | F51: серый | G51: 25 | H51: кг | I51: мешок | J51: 2 | K51: 2 | L51: кг/м² | M51: 30.64 | N51: 36.768 | O51: 73.536 | P51: 919.2 | R51: 0 | T51: 42 | U51: 1054.2 | V51: 756 | W51: Финишная шпаклеква минеральная усиленная
A52: 520110-01 | B52: Сетка фасадная с логотипом STOMIX | C52: RU | D52: фасад | E52: Комплектующие: сетки армирующие и дополнительные элементы*** | G52: 50 | H52: м | I52: рулон | J52: 1 | K52: 1.1 | L52: мп/м² | M52: 127.1 | N52: =M52*1.2 -> 152.52 | O52: =SUM(J52*N52) -> 152.52 | P52: 7626 | R52: 0 | S52: ● | T52: 35 | U52: 339.5 | V52: 1120 | W52: Сетка для армирования из стекловолокна со щелочестойкой пропиткой.
A53: 512153 | B53: Уголок ПВХ с стеклосеткой 10х15 с логотипом STOMIX | C53: RU | D53: фасад | E53: Комплектующие: сетки армирующие и дополнительные элементы*** | G53: 2.5 | H53: м | I53: коробка | M53: 64.9 | N53: =M53*1.2 -> 77.88 | P53: 194.7 | R53: 0 | S53: ● | T53: 2000 | U53: 440 | V53: 30000 | W53: профиль для формирования углов 90 град.
A54: *** | B54: Дополнительно перечень и цены комплектующих в ассортименте STO в разделе Фасады. | R54: 0

Sheet 4. Базы
A1: Прайс-лист Товаров Продуктовой группы раздела «Материалы для колерования» (Базы) Цены действительны c 01.10.2021 г.
A2: Артикул | B2: Наименование продукта | C2: Упаковка | F2: Цена БЕЗ учета НДС за единицу измерения | G2: Цена с НДС за единицу измерения | H2: Цена с НДС за упаковку | I2: Кол-во единиц товара | J2: Сумма заказа с НДС | K2: Наличие на складе | L2: Количество упаковок на паллете, шт. | M2: Вес одного паллето-места (без палеты), кг. | N2: норма загрузки авто (20 т.) шт.
C3: к-во | D3: ед. | E3: вид упаковки
A4: 05374-053 | B4: PUTZGRUND OT | C4: 22.5 | D4: кг | E4: Ведро | F4: 311.4951416 | G4: =F4*1.2 -> 373.7941699 | H4: =G4*C4 -> 8410.368823 | J4: =I4*H4 -> 0 | L4: 24 | M4: 548.88 | N4: 792
A5: 05374-051 | B5: PUTZGRUND HALBTITAN | C5: 23 | D5: кг | E5: Ведро | F5: 320.7387186 | G5: 384.8864623 | H5: 8852.388632 | J5: =I5*H5 -> 0 | K5: ● | L5: 24 | M5: 568.008 | N5: 768
A6: 05825-012 | B6: STOLIT K 1,0 OT | C6: 25 | D6: кг | E6: Ведро | F6: 397.076907 | G6: 476.4922884 | H6: 11912.30721 | J6: 0 | L6: 24 | M6: 616.2 | N6: 696
A7: 05826-019 | B7: STOLIT K 1,5 O T | C7: 25 | D7: кг | E7: Ведро | F7: 375.5382706 | G7: 450.6459248 | H7: 11266.14812 | J7: 0 | L7: 24 | M7: 616.2 | N7: 696
A8: 05827-019 | B8: STOLIT K 2,0 O T | C8: 25 | D8: кг | E8: Ведро | F8: 343.52136 | G8: 412.225632 | H8: 10305.6408 | J8: 0 | L8: 24 | M8: 616.2 | N8: 696
A9: 05829-021 | B9: STOLIT K 3,0 O T | C9: 25 | D9: кг | E9: Ведро | F9: 308.3702636 | G9: 370.0443164 | H9: 9251.107909 | J9: 0 | L9: 24 | M9: 616.2 | N9: 696
A10: 05830-010 | B10: STOLIT K 6,0 O T | C10: 25 | D10: кг | E10: Ведро | F10: 514.3728494 | G10: 617.2474193 | H10: 15431.18548 | J10: 0 | L10: 24 | M10: 616.2 | N10: 696
A11: 05831-016 | B11: STOLIT R 1,5 O T | C11: 25 | D11: кг | E11: Ведро | F11: 362.2616972 | G11: 434.7140367 | H11: 10867.85092 | J11: 0 | L11: 24 | M11: 616.2 | N11: 696
A12: 05832-016 | B12: STOLIT R 2,0 O T | C12: 25 | D12: кг | E12: Ведро | F12: 356.73372 | G12: 428.080464 | H12: 10702.0116 | J12: 0 | L12: 24 | M12: 616.2 | N12: 696
A13: 05834-016 | B13: STOLIT R 3,0 O T | C13: 25 | D13: кг | E13: Ведро | F13: 672.41475 | G13: 806.8977 | H13: 20172.4425 | J13: 0 | L13: 24 | M13: 616.2 | N13: 696
A14: 05835-010 | B14: STOLIT R 6,0 O T | C14: 25 | D14: кг | E14: Ведро | F14: 958.5211378 | G14: 1150.225365 | H14: 28755.63413 | J14: 0 | L14: 24 | M14: 616.2 | N14: 696
A15: 05822-013 | B15: STOLIT MP O T | C15: 25 | D15: кг | E15: Ведро | F15: 356.8207881 | G15: 428.1849457 | H15: 10704.62364 | J15: 0 | L15: 24 | M15: 616.2 | N15: 696
A16: 15828-002 | B16: STOLIT MILANO O T | C16: 25 | D16: кг | E16: Ведро | F16: 330.309 | G16: 396.3708 | H16: 9909.27 | J16: 0 | L16: 24 | M16: 616.2 | N16: 696
A17: 15727-004 | B17: STOLIT Effect O T | C17: 25 | D17: кг | E17: Ведро | F17: 965.2082007 | G17: 1158.249841 | H17: 28956.24602 | J17: 0 | L17: 24 | M17: 616.2 | N17: 696
A18: 05415-148 | B18: BASIS A SVJ Jumbosil | C18: 15 | D18: л | E18: Ведро | F18: 531.7315346 | G18: 638.0778415 | H18: 9571.167622 | J18: 0 | K18: ● | L18: 24 | M18: 557.64 | N18: 768
A19: 05415-153 | B19: BASIS B SVJ Jumbosil | C19: 15 | D19: л | E19: Ведро | F19: 487.5662359 | G19: 585.0794831 | H19: 8776.192246 | J19: 0 | K19: ● | L19: 24 | M19: 541.44 | N19: 792
A20: 05415-156 | B20: BASIS O T SVJ Jumbosil | C20: 14.5 | D20: л | E20: Ведро | F20: 457.7008161 | G20: 549.2409794 | H20: 7963.994201 | J20: 0 | K20: ● | L20: 24 | M20: 515.28 | N20: 792
A21: 15096_026 | B21: ВASIS A NEOSIL B | C21: 15 | D21: л | E21: Ведро | F21: 388.2816 | G21: 465.93792 | H21: 6989.0688 | J21: 0 | K21: ● | L21: 24 | M21: 557.64 | N21: 768
A22: 15096_027 | B22: ВASIS B NEOSIL B | C22: 15 | D22: л | E22: Ведро | F22: 388.2816 | G22: 465.93792 | H22: 6989.0688 | J22: 0 | K22: ● | L22: 24 | M22: 541.44 | N22: 792
A23: 15096_028 | B23: ВASIS OT NEOSIL B | C23: 14.5 | D23: л | E23: Ведро | F23: 388.2816 | G23: 465.93792 | H23: 6756.09984 | J23: 0 | K23: ● | L23: 24 | M23: 515.28 | N23: 792
A24: 15096_226 | B24: ВASIS A NEOSIL B G | C24: 15 | D24: л | E24: Ведро | F24: 456.6191616 | G24: =F24*1.2 -> 547.9429939 | H24: =G24*C24 -> 8219.144909 | J24: 0 | L24: 24 | M24: 515.28 | N24: 792
A25: 15096_227 | B25: ВASIS B NEOSIL B G | C25: 15 | D25: л | E25: Ведро | F25: 456.6191616 | G25: 547.9429939 | H25: 8219.144909 | J25: 0 | L25: 24 | M25: 515.28 | N25: 792
A26: 15096_228 | B26: ВASIS OT NEOSIL B G | C26: 14.5 | D26: л | E26: Ведро | F26: 456.6191616 | G26: 547.9429939 | H26: 7945.173412 | J26: 0 | L26: 24 | M26: 515.28 | N26: 792
A27: 66004_121 | B27: GAMADEKOR F BASIS A | C27: 15 | D27: л | E27: Ведро | F27: 337.6361739 | G27: 405.1634087 | H27: 6077.45113 | J27: 0 | L27: 24 | M27: 515.28 | N27: 792
A28: 66004_122 | B28: GAMADEKOR F BASIS B | C28: 15 | D28: л | E28: Ведро | F28: 337.6361739 | G28: 405.1634087 | H28: 6077.45113 | J28: 0 | L28: 24 | M28: 515.28 | N28: 792
A29: 66004_023 | B29: GAMADEKOR F BASIS OT | C29: 14.5 | D29: л | E29: Ведро | F29: 337.6361739 | G29: 405.1634087 | H29: 5874.869426 | J29: 0 | L29: 24 | M29: 515.28 | N29: 792
A30: 05960-027 | B30: MAXICRYL BASIS A | C30: 15 | D30: л | E30: Ведро | F30: 1030.56408 | G30: 1236.676896 | H30: 18550.15344 | J30: 0 | L30: 24 | M30: 536.04 | N30: 792
A31: 05960-031 | B31: MAXICRYL BASIS B | C31: 15 | D31: л | E31: Ведро | F31: 898.44048 | G31: 1078.128576 | H31: 16171.92864 | J31: 0 | L31: 24 | M31: 530.64 | N31: 792
A32: 05960-023 | B32: MAXICRYL O T | C32: 14.5 | D32: л | E32: Ведро | F32: 845.59104 | G32: 1014.709248 | H32: 14713.2841 | J32: 0 | L32: 24 | M32: 511.92 | N32: 792
A33: 05355-009 | B33: FIBRASIL BASIS A | C33: 15 | D33: л | E33: Ведро | F33: 990.927 | G33: 1189.1124 | H33: 17836.686 | J33: 0 | L33: 24 | M33: 514.44 | N33: 792
A34: 05355-011 | B34: FIBRASIL BASIS B | C34: 15 | D34: л | E34: Ведро | F34: 911.65284 | G34: 1093.983408 | H34: 16409.75112 | J34: 0 | L34: 24 | M34: 509.76 | N34: 792
A35: 05355-007 | B35: FIBRASIL O T 14,5 L EIM D/E/F/ | C35: 14.5 | D35: л | E35: Ведро | F35: 858.8034 | G35: 1030.56408 | H35: 14943.17916 | J35: 0 | L35: 24 | M35: 473.64 | N35: 792
A36: 05425-013 | B36: STO COLOR TOP BASIS A | C36: 15 | D36: л | E36: Ведро | F36: 1083.41352 | G36: 1300.096224 | H36: 19501.44336 | J36: 0 | K36: ● | L36: 24 | M36: 510.84 | N36: 792
A37: 05425-015 | B37: STO COLOR TOP BASIS B | C37: 15 | D37: л | E37: Ведро | F37: 977.71464 | G37: 1173.257568 | H37: 17598.86352 | J37: 0 | K37: ● | L37: 24 | M37: 507.24 | N37: 792
A38: 05425-012 | B38: STO COLOR TOP BASIS OT | C38: 14.5 | D38: л | E38: Ведро | F38: 832.37868 | G38: 998.854416 | H38: 14483.38903 | J38: 0 | K38: ● | L38: 24 | M38: 501.84 | N38: 792
A39: 05877-010 | B39: Color S GROB OT BASIS | C39: 25 | D39: кг | E39: Ведро | F39: 479.1720119 | G39: =F39*1.2 -> 575.0064143 | H39: =G39*C39 -> 14375.16036 | J39: 0 | L39: 24 | M39: 616.2 | N39: 696
A40: 05876-010 | B40: Color S FEIN OT BASIS | C40: 25 | D40: кг | E40: Ведро | F40: 519.2566273 | G40: 623.1079527 | H40: 15577.69882 | J40: 0 | K40: ● | L40: 24 | M40: 616.2 | N40: 696
A41: 05876-019 | B41: Color S FEIN A BASIS | C41: 25 | D41: кг | E41: Ведро | F41: 769.119914 | G41: 922.9438968 | H41: 23073.59742 | J41: 0 | K41: ● | L41: 24 | M41: 616.2 | N41: 696
A42: 05902-103 | B42: BASIS A SILCO IQ | C42: 15 | D42: л | E42: Ведро | F42: 837.56925 | G42: 1005.0831 | H42: 15076.2465 | J42: 0 | L42: 24 | M42: 561.84 | N42: 768
A43: 05902-105 | B43: BASIS B SILCO IQ | C43: 15 | D43: л | E43: Ведро | F43: 754.992 | G43: 905.9904 | H43: 13589.856 | J43: 0 | L43: 24 | M43: 557.52 | N43: 768
A44: 05902-101 | B44: BASIS OT SILCO IQ | C44: 14.5 | D44: л | E44: Ведро | F44: 719.60175 | G44: 863.5221 | H44: 12521.07045 | J44: 0 | L44: 24 | M44: 552.96 | N44: 768
A45: 05454-058 | B45: BASIS OT SILCO G IQ | C45: 14.5 | D45: л | E45: Ведро | F45: 790.38225 | G45: 948.4587 | H45: 13752.65115 | J45: 0 | L45: 24 | M45: 552.96 | N45: 768
A46: 05883-021 | B46: BASIS A LCRB / COLOR LASTIC | C46: 15 | D46: л | E46: Ведро | F46: 940.998422 | G46: 1129.198106 | H46: 16937.9716 | J46: 0 | L46: 24 | M46: 491.04 | N46: 792
A47: 05883-018 | B47: BASIS B LCRB / COLOR LASTIC | C47: 15 | D47: л | E47: Ведро | F47: 887.4023272 | G47: 1064.882793 | H47: 15973.24189 | J47: 0 | L47: 24 | M47: 473.4 | N47: 792
A48: 05883-014 | B48: BASIS RB OT / COLOR LASTIC | C48: 14.5 | D48: л | E48: Ведро | F48: 880.9752217 | G48: 1057.170266 | H48: 15328.96886 | J48: 0 | L48: 24 | M48: 444.048 | N48: 792
A49: 15319-007 | B49: SILCO ELAST BASIS A | C49: 15 | D49: л | E49: Ведро | F49: 1244.781236 | G49: 1493.737483 | H49: 22406.06225 | J49: 0 | L49: 24 | M49: 539.28 | N49: 792
A50: 15319-005 | B50: SILCO ELAST BASIS OT | C50: 14.5 | D50: л | E50: Ведро | F50: 1156.0815 | G50: 1387.2978 | H50: 20115.8181 | J50: 0 | L50: 24 | M50: 539.28 | N50: 792
A51: 15003-015 | B51: BASIS A DRYONIC | C51: 15 | D51: л | E51: Ведро | F51: 1144.390641 | G51: 1373.26877 | H51: 20599.03155 | J51: 0 | K51: ● | L51: 24 | M51: 456.84 | N51: 792
A52: 15003-016 | B52: BASIS B DRYONIC | C52: 15 | D52: л | E52: Ведро | F52: 1080.802495 | G52: 1296.962994 | H52: 19454.4449 | J52: 0 | K52: ● | L52: 24 | M52: 430.2 | N52: 792
A53: 15003-014 | B53: DRYONIC O T | C53: 14.5 | D53: л | E53: Ведро | F53: 986.4239105 | G53: 1183.708693 | H53: 17163.77604 | J53: 0 | K53: ● | L53: 24 | M53: 411 | N53: 792
A54: 15003-044 | B54: DRYONIC S Basis A | C54: 15 | D54: л | E54: Ведро | F54: 1598.206516 | G54: 1917.847819 | H54: 28767.71728 | J54: 0 | L54: 24 | M54: 456.84 | N54: 792
A55: 15003-045 | B55: DRYONIC S Basis B | C55: 15 | D55: л | E55: Ведро | F55: 1500.382495 | G55: 1800.458994 | H55: 27006.8849 | J55: 0 | L55: 24 | M55: 430.2 | N55: 792
A56: 15003-046 | B56: DRYONIC S Basis OT | C56: 14.5 | D56: л | E56: Ведро | F56: 1398.199715 | G56: 1677.839658 | H56: 24328.67504 | J56: 0 | L56: 24 | M56: 411 | N56: 792
A57: 15003-048 | B57: DRYONIC S Basis A | C57: 5 | D57: л | E57: Ведро | F57: 1574.022158 | G57: =F57*1.2 -> 1888.826589 | H57: =G57*C57 -> 9444.132947 | J57: 0 | L57: 60 | M57: 463.8 | N57: 1980
A58: 15003-049 | B58: DRYONIC S Basis B | C58: 5 | D58: л | E58: Ведро | F58: 1624.527735 | G58: 1949.433282 | H58: 9747.166408 | J58: 0 | L58: 60 | M58: 457.8 | N58: 1980
A59: 15003-051 | B59: DRYONIC S Basis OT | C59: 4.85 | D59: л | E59: Ведро | F59: 803.4898441 | G59: 964.1878129 | H59: 4676.310892 | J59: 0 | L59: 60 | M59: 376.26 | N59: 1980
A60: 15003-133 | B60: DRYONIC WOOD Basis A | C60: 10 | D60: л | E60: Ведро | F60: 1378.235517 | G60: =F60*1.2 -> 1653.882621 | H60: =G60*C60 -> 16538.82621 | J60: 0 | L60: 27 | M60: 336.96 | N60: 891
A61: 15003-134 | B61: DRYONIC WOOD Basis B | C61: 10 | D61: л | E61: Ведро | F61: 1336.007895 | G61: 1603.209474 | H61: 16032.09474 | J61: 0 | L61: 27 | M61: 328.59 | N61: 891
A62: 15003-111 | B62: DRYONIC WOOD Basis OT | C62: 9.7 | D62: л | E62: Ведро | F62: 1309.42079 | G62: 1571.304948 | H62: 15241.658 | J62: 0 | L62: 27 | M62: 313.227 | N62: 891
A63: 15101-161 | B63: BASIS A LOTUSAN IQ | C63: 12.5 | D63: л | E63: Ведро | F63: 884.75625 | G63: 1061.7075 | H63: 13271.34375 | J63: 0 | K63: ● | L63: 32 | M63: 613.6 | N63: 928
A64: 15101-163 | B64: BASIS B LOTUSAN IQ | C64: 12.5 | D64: л | E64: Ведро | F64: 813.97575 | G64: 976.7709 | H64: 12209.63625 | J64: 0 | K64: ● | L64: 32 | M64: 595.2 | N64: 960
A65: 15101-159 | B65: BASIS OT LOTUSAN IQ | C65: 12.1 | D65: л | E65: Ведро | F65: 766.78875 | G65: 920.1465 | H65: 11133.77265 | J65: 0 | K65: ● | L65: 32 | M65: 565.312 | N65: 1024
A66: 05007-025 | B66: SIL BASIS A | C66: 15 | D66: л | E66: Ведро | F66: 670.4119885 | G66: 804.4943862 | H66: 12067.41579 | J66: 0 | L66: 24 | M66: 581.76 | N66: 744
A67: 05007-034 | B67: SIL BASIS B | C67: 15 | D67: л | E67: Ведро | F67: 660.618 | G67: 792.7416 | H67: 11891.124 | J67: 0 | L67: 24 | M67: 579.36 | N67: 744
A68: 05076-013 | B68: StoAQUA TOP SATIN OT | C68: 5 | D68: л | E68: Банка | F68: 1708.347644 | G68: 2050.017173 | H68: 10250.08586 | J68: 0 | L68: 60 | M68: 339.3 | N68: 1980
A69: 05076-012 | B69: StoAQUA TOP SATIN OT | C69: 2.5 | D69: л | E69: Банка | F69: 1574.022158 | G69: 1888.826589 | H69: 4722.066473 | J69: 0 | K69: ● | L69: 160 | M69: 452.48 | N69: 5280
A70: 05082-024 | B70: StoAQUA TOP IN OT | C70: 2.5 | D70: л | E70: Банка | F70: 1624.527735 | G70: 1949.433282 | H70: 4873.583204 | J70: 0 | L70: 160 | M70: 454.08 | N70: 5280
A71: 05850-008 | B71: DECOLIT K 1,0 OT | C71: 25 | D71: кг | E71: Ведро | F71: 912.3394944 | G71: 1094.807393 | H71: 27370.18483 | J71: 0 | L71: 24 | M71: 616.2 | N71: 696
A72: 05851-009 | B72: DECOLIT K 1,5 OT | C72: 25 | D72: кг | E72: Ведро | F72: 632.5525869 | G72: 759.0631043 | H72: 18976.57761 | J72: =I72*H72 -> 0 | L72: 24 | M72: 616.2 | N72: 696
A73: 05852-009 | B73: DECOLIT K 2,0 OT | C73: 25 | D73: кг | E73: Ведро | F73: 913.0963126 | G73: 1095.715575 | H73: 27392.88938 | J73: 0 | L73: 24 | M73: 616.2 | N73: 696
A74: 05856-010 | B74: DECOLIT R 1,5 OT | C74: 25 | D74: кг | E74: Ведро | F74: 916.2148441 | G74: 1099.457813 | H74: 27486.44532 | J74: 0 | L74: 24 | M74: 616.2 | N74: 696
A75: 05857-009 | B75: DECOLIT R 2,0 OT | C75: 25 | D75: кг | E75: Ведро | F75: 848.9713126 | G75: 1018.765575 | H75: 25469.13938 | J75: 0 | L75: 24 | M75: 616.2 | N75: 696
A76: 05187-007 | B76: DECOLIT MP OT | C76: 25 | D76: кг | E76: Ведро | F76: 918.5450888 | G76: 1102.254107 | H76: 27556.35266 | J76: 0 | L76: 24 | M76: 616.2 | N76: 696
A77: 15993-006 | B77: BASIS OT TITANIUM ASE | C77: 4.85 | D77: л | E77: Ведро | F77: 990.1893334 | G77: 1188.2272 | H77: 5762.90192 | J77: 0 | L77: 60 | M77: 382.2 | N77: 1980
A78: 15993-007 | B78: BASIS OT TITANIUM ASE | C78: 14.5 | D78: л | E78: Ведро | F78: 809.9041728 | G78: 971.8850073 | H78: 14092.33261 | J78: 0 | K78: ● | L78: 24 | M78: 454.56 | N78: 792
A79: 15993-010 | B79: BASIS A TITANIUM ASE | C79: 5 | D79: л | E79: Ведро | F79: 1042.725581 | G79: 1251.270697 | H79: 6256.353486 | J79: 0 | L79: 60 | M79: 441.6 | N79: 1980
A80: 15993-011 | B80: BASIS A TITANIUM ASE | C80: 15 | D80: л | E80: Ведро | F80: 863.885659 | G80: 1036.662791 | H80: 15549.94186 | J80: 0 | K80: ● | L80: 24 | M80: 527.04 | N80: 792
A81: 15993-013 | B81: BASIS B TITANIUM ASE | C81: 5 | D81: л | E81: Ведро | F81: 998.2778537 | G81: 1197.933424 | H81: 5989.667122 | J81: 0 | L81: 60 | M81: 411.6 | N81: 1980
A82: 15993-014 | B82: BASIS B TITANIUM ASE | C82: 15 | D82: л | E82: Ведро | F82: 825.8803268 | G82: 991.0563922 | H82: 14865.84588 | J82: 0 | K82: ● | L82: 24 | M82: 491.04 | N82: 792
A83: 15964-004 | B83: INNEN MATT O T | C83: 14.5 | D83: л | E83: Ведро | F83: 443.5281258 | G83: 532.2337509 | H83: 7717.389388 | J83: 0 | K83: ● | L83: 24 | M83: 527.568 | N83: 792
A84: 15964-005 | B84: BASIS A INNEN MATT | C84: 15 | D84: л | E84: Ведро | F84: 677.4447269 | G84: 812.9336723 | H84: 12194.00508 | J84: 0 | K84: ● | L84: 24 | M84: 554.04 | N84: 768
A85: 15964-006 | B85: BASIS B INNEN MATT | C85: 15 | D85: л | E85: Ведро | F85: 545.8317556 | G85: 654.9981067 | H85: 9824.971601 | J85: 0 | K85: ● | L85: 24 | M85: 545.04 | N85: 792
A86: 15964-007 | B86: INNEN MATT O T | C86: 2.4 | D86: л | E86: Ведро | F86: 934.9099418 | G86: 1121.89193 | H86: 2692.540632 | J86: 0 | L86: 72 | M86: 267.48 | N86: 2376
A87: 15964-008 | B87: INNEN MATT O T | C87: 4.85 | D87: л | E87: Ведро | F87: 638.5600051 | G87: 766.2720061 | H87: 3716.41923 | J87: 0 | L87: 60 | M87: 443.22 | N87: 1980
A88: 15964-009 | B88: INNEN MATT O T | C88: 9.7 | D88: л | E88: Ведро | F88: 555.5309846 | G88: 666.6371816 | H88: 6466.380661 | J88: 0 | K88: ● | L88: 27 | M88: 397.575 | N88: 891
A89: 15964-010 | B89: BASIS A INNEN MATT | C89: 2.5 | D89: л | E89: Ведро | F89: 1105.560635 | G89: 1326.672762 | H89: 3316.681905 | J89: 0 | L89: 72 | M89: 282.6 | N89: 2376
A90: 15964-011 | B90: BASIS A INNEN MATT | C90: 5 | D90: л | E90: Ведро | F90: 726.310205 | G90: 871.5722461 | H90: 4357.86123 | J90: 0 | L90: 60 | M90: 463.8 | N90: 1980
A91: 15964-012 | B91: BASIS A INNEN MATT | C91: 10 | D91: л | E91: Ведро | F91: 740.0183785 | G91: 888.0220542 | H91: 8880.220542 | J91: 0 | K91: ● | L91: 27 | M91: 416.07 | N91: 891
A92: 15964-013 | B92: BASIS B INNEN MATT | C92: 2.5 | D92: л | E92: Ведро | F92: 989.1027373 | G92: =F92*1.2 -> 1186.923285 | H92: =G92*C92 -> 2967.308212 | J92: 0 | L92: 72 | M92: 242.136 | N92: 2376
A93: 15964-014 | B93: BASIS B INNEN MATT | C93: 5 | D93: л | E93: Ведро | F93: 708.8395351 | G93: 850.6074421 | H93: 4253.03721 | J93: 0 | L93: 60 | M93: 457.8 | N93: 1980
A94: 15964-015 | B94: BASIS B INNEN MATT | C94: 10 | D94: л | E94: Ведро | F94: 628.8810939 | G94: 754.6573126 | H94: 7546.573126 | J94: 0 | K94: ● | L94: 27 | M94: 410.67 | N94: 891
A95: 15965-004 | B95: INNEN SATINMATT O T | C95: 14.5 | D95: л | E95: Ведро | F95: 542.9095396 | G95: 651.4914475 | H95: 9446.625989 | J95: 0 | K95: ● | L95: 24 | M95: 447.528 | N95: 792
A96: 15965-005 | B96: BASIS A INNEN SATINMATT | C96: 15 | D96: л | E96: Ведро | F96: 806.1170773 | G96: 967.3404928 | H96: 14510.10739 | J96: 0 | K96: ● | L96: 24 | M96: 500.4 | N96: 792
A97: 15965-006 | B97: BASIS B INNEN SATINMATT | C97: 15 | D97: л | E97: Ведро | F97: 637.2891084 | G97: 764.7469301 | H97: 11471.20395 | J97: 0 | K97: ● | L97: 24 | M97: 473.04 | N97: 792
A98: 15965-007 | B98: INNEN SATINMATT O T | C98: 2.4 | D98: л | E98: Ведро | F98: 1013.352324 | G98: 1216.022789 | H98: 2918.454694 | J98: 0 | L98: 72 | M98: 227.736 | N98: 2376
A99: 15965-008 | B99: INNEN SATINMATT O T | C99: 4.85 | D99: л | E99: Ведро | F99: 701.7042125 | G99: 842.045055 | H99: 4083.918517 | J99: 0 | L99: 60 | M99: 376.26 | N99: 1980
A100: 15965-009 | B100: INNEN SATINMATT O T | C100: 9.7 | D100: л | E100: Ведро | F100: 616.5049654 | G100: 739.8059585 | H100: 7176.117798 | J100: 0 | K100: ● | L100: 27 | M100: 337.338 | N100: 891
A101: 15965-010 | B101: BASIS A INNEN SATINMATT | C101: 2.5 | D101: л | E101: Ведро | F101: 1225.174351 | G101: 1470.209221 | H101: 3675.523053 | J101: 0 | L101: 72 | M101: 282.6 | N101: 2376
A102: 15965-011 | B102: BASIS A INNEN SATINMATT | C102: 5 | D102: л | E102: Ведро | F102: 933.9352665 | G102: 1120.72232 | H102: 5603.611599 | J102: 0 | L102: 60 | M102: 463.8 | N102: 1980
A103: 15965-012 | B103: BASIS A INNEN SATINMATT | C103: 10 | D103: л | E103: Ведро | F103: 869.8882153 | G103: 1043.865858 | H103: 10438.65858 | J103: 0 | K103: ● | L103: 27 | M103: 416.07 | N103: 891
A104: 15965-013 | B104: BASIS B INNEN SATINMATT | C104: 2.5 | D104: л | E104: Ведро | F104: 1077.256076 | G104: 1292.707291 | H104: 3231.768228 | J104: 0 | L104: 72 | M104: 242.136 | N104: 2376
A105: 15965-014 | B105: BASIS B INNEN SATINMATT | C105: 5 | D105: л | E105: Ведро | F105: 785.8912818 | G105: 943.0695382 | H105: 4715.347691 | J105: 0 | L105: 60 | M105: 396.3 | N105: 1980
A106: 15965-015 | B106: BASIS B INNEN SATINMATT | C106: 10 | D106: л | E106: Ведро | F106: 700.8088273 | G106: 840.9705927 | H106: 8409.705927 | J106: 0 | K106: ● | L106: 27 | M106: 355.32 | N106: 891
A107: 15966-004 | B107: INNEN SATIN O T | C107: 14.5 | D107: л | E107: Ведро | F107: 815.5744875 | G107: 978.689385 | H107: 14190.99608 | J107: 0 | K107: ● | L107: 24 | M107: 448.224 | N107: 792
A108: 15966-005 | B108: BASIS A INNEN SATIN 15 L EIM | C108: 15 | D108: л | E108: Ведро | F108: 1169.243072 | G108: 1403.091686 | H108: 21046.37529 | J108: 0 | K108: ● | L108: 24 | M108: 522.36 | N108: 792
A109: 15966-006 | B109: BASIS B INNEN SATIN 15 L EIM | C109: 15 | D109: л | E109: Ведро | F109: 953.7564807 | G109: 1144.507777 | H109: 17167.61665 | J109: 0 | K109: ● | L109: 24 | M109: 482.04 | N109: 792
A110: 15966-007 | B110: INNEN SATIN O T | C110: 2.4 | D110: л | E110: Ведро | F110: 1346.147248 | G110: 1615.376698 | H110: 3876.904076 | J110: 0 | L110: 72 | M110: 222.624 | N110: 2376
A111: 15966-008 | B111: INNEN SATIN O T | C111: 4.85 | D111: л | E111: Ведро | F111: 996.9163613 | G111: 1196.299634 | H111: 5802.053223 | J111: 0 | L111: 60 | M111: 374.82 | N111: 1980
A112: 15966-009 | B112: INNEN SATIN O T | C112: 9.7 | D112: л | E112: Ведро | F112: 893.3836746 | G112: 1072.06041 | H112: 10398.98597 | J112: 0 | K112: ● | L112: 27 | M112: 337.338 | N112: 891
A113: 15966-010 | B113: BASIS A INNEN SATIN | C113: 2.5 | D113: л | E113: Ведро | F113: 1673.693591 | G113: 2008.432309 | H113: 5021.080772 | J113: 0 | L113: 72 | M113: 261.216 | N113: 2376
A114: 15966-011 | B114: BASIS A INNEN SATIN | C114: 5 | D114: л | E114: Ведро | F114: 1345.793658 | G114: 1614.952389 | H114: 8074.761947 | J114: 0 | L114: 60 | M114: 435.3 | N114: 1980
A115: 15966-012 | B115: BASIS A INNEN SATIN | C115: 10 | D115: л | E115: Ведро | F115: 1244.998856 | G115: 1493.998628 | H115: 14939.98628 | J115: 0 | K115: ● | L115: 27 | M115: 391.77 | N115: 891
A116: 15966-013 | B116: BASIS B INNEN SATIN | C116: 2.5 | D116: л | E116: Ведро | F116: 1457.741895 | G116: 1749.290274 | H116: 4373.225685 | J116: 0 | L116: 72 | M116: 241.056 | N116: 2376
A117: 15966-014 | B117: BASIS B INNEN SATIN | C117: 5 | D117: л | E117: Ведро | F117: 1138.295983 | G117: 1365.95518 | H117: 6829.775898 | J117: 0 | L117: 60 | M117: 401.7 | N117: 1980
A118: 15966-015 | B118: BASIS B INNEN SATIN | C118: 10 | D118: л | E118: Ведро | F118: 1028.948664 | G118: 1234.738397 | H118: 12347.38397 | J118: 0 | K118: ● | L118: 27 | M118: 361.53 | N118: 891
A119: 15967-004 | B119: INNEN GLOSS O T | C119: 14.5 | D119: л | E119: Ведро | F119: 1056.29412 | G119: 1267.552944 | H119: 18379.51769 | J119: 0 | L119: 24 | M119: 402.288 | N119: 792
A120: 15967-005 | B120: BASIS A INNEN GLOSS | C120: 15 | D120: л | E120: Ведро | F120: 1494.493946 | G120: 1793.392735 | H120: 26900.89102 | J120: 0 | L120: 24 | M120: 476.64 | N120: 792
A121: 15967-006 | B121: BASIS B INNEN GLOSS | C121: 15 | D121: л | E121: Ведро | F121: 1273.000012 | G121: 1527.600015 | H121: 22914.00022 | J121: 0 | L121: 24 | M121: 440.28 | N121: 792
A122: 15967-007 | B122: INNEN GLOSS O T | C122: 2.4 | D122: л | E122: Ведро | F122: 1547.836619 | G122: 1857.403943 | H122: 4457.769463 | J122: 0 | L122: 72 | M122: 200.448 | N122: 2376
A123: 15967-008 | B123: INNEN GLOSS O T | C123: 4.85 | D123: л | E123: Ведро | F123: 1233.636029 | G123: 1480.363235 | H123: 7179.76169 | J123: 0 | L123: 60 | M123: 337.56 | N123: 1980
A124: 15967-009 | B124: INNEN GLOSS O T | C124: 9.7 | D124: л | E124: Ведро | F124: 1394.110633 | G124: =F124*1.2 -> 1672.932759 | H124: =G124*C124 -> 16227.44776 | J124: 0 | L124: 27 | M124: 303.804 | N124: 891
A125: 15967-010 | B125: BASIS A INNEN GLOSS | C125: 2.5 | D125: л | E125: Ведро | F125: 1676.948853 | G125: 2012.338624 | H125: 5030.846559 | J125: 0 | L125: 72 | M125: 238.32 | N125: 2376
A126: 15967-011 | B126: BASIS A INNEN GLOSS | C126: 5 | D126: л | E126: Ведро | F126: 1669.907102 | G126: 2003.888522 | H126: 10019.44261 | J126: 0 | L126: 60 | M126: 397.2 | N126: 1980
A127: 15967-012 | B127: BASIS A INNEN GLOSS | C127: 10 | D127: л | E127: Ведро | F127: 1531.662545 | G127: 1837.995054 | H127: 18379.95054 | J127: 0 | L127: 27 | M127: 357.48 | N127: 891
A128: 15967-013 | B128: BASIS B INNEN GLOSS | C128: 2.5 | D128: л | E128: Ведро | F128: 1590.750881 | G128: 1908.901057 | H128: 4772.252643 | J128: 0 | L128: 72 | M128: 220.176 | N128: 2376
A129: 15967-014 | B129: BASIS B INNEN GLOSS | C129: 5 | D129: л | E129: Ведро | F129: 1442.280109 | G129: 1730.736131 | H129: 8653.680654 | J129: 0 | L129: 60 | M129: 366.9 | N129: 1980
A130: 15967-015 | B130: BASIS B INNEN GLOSS | C130: 10 | D130: л | E130: Ведро | F130: 1626.473612 | G130: 1951.768334 | H130: 19517.68334 | J130: 0 | L130: 27 | M130: 330.21 | N130: 891
A131: 15799-004 | B131: BASIS B PURAN SATIN | C131: 15 | D131: кг | E131: Ведро | F131: 1367.61408 | G131: 1641.136896 | H131: 24617.05344 | J131: 0 | K131: ● | L131: 24 | M131: 375.84 | N131: 792
A132: 15799-007 | B132: BASIS A PURAN SATIN | C132: 15 | D132: кг | E132: Ведро | F132: 1413.63264 | G132: 1696.359168 | H132: 25445.38752 | J132: 0 | K132: ● | L132: 24 | M132: 375.84 | N132: 792
A133: 15799-008 | B133: BASIS OT PURAN SATIN | C133: 14.6 | D133: кг | E133: Ведро | F133: 1236.7488 | G133: 1484.09856 | H133: 21667.83898 | J133: 0 | K133: ● | L133: 24 | M133: 366.168 | N133: 792
A134: 00082-001 | B134: PURAN KB | C134: 1.5 | D134: кг | E134: Банка | F134: 5257.98 | G134: 6309.576 | H134: 9464.364 | J134: 0 | K134: ● | L134: 180 | M134: 313.2 | N134: 5940
A135: 15033-002 | B135: LOOK STRUKTUR F OT | C135: 20 | D135: кг | E135: Ведро | F135: 530.8251943 | G135: 636.9902331 | H135: 12739.80466 | J135: 0 | L135: 24 | M135: 495.84 | N135: 792
A136: 05287-017 | B136: CRYL BF 100 BASIS A | C136: 10 | D136: л | E136: Ведро | F136: 1360.270614 | G136: 1632.324737 | H136: 16323.24737 | J136: =I136*H136 -> 0 | L136: 27 | M136: 347.22 | N136: 891
A137: 05287-003 | B137: CRYL BF 100 weiss | C137: 10 | D137: л | E137: Ведро | F137: 1277.259964 | G137: 1532.711957 | H137: 15327.11957 | J137: 0 | L137: 27 | M137: 347.22 | N137: 891
A138: 05287-019 | B138: CRYL BF 100 BASIS B | C138: 10 | D138: л | E138: Ведро | F138: 1307.40216 | G138: 1568.882592 | H138: 15688.82592 | J138: 0 | L138: 27 | M138: 347.22 | N138: 891
A139: 05287-014 | B139: CRYL BF 100 BASIS OT | C139: 10 | D139: л | E139: Ведро | F139: 1310.956342 | G139: 1573.14761 | H139: 15731.4761 | J139: 0 | L139: 27 | M139: 347.22 | N139: 891
A140: 15013-019 | B140: StoPOX WL 100 BASIS A | C140: 10 | D140: кг | E140: Ведро | F140: 1569.897263 | G140: 1883.876715 | H140: 18838.76715 | J140: 0 | L140: 40 | M140: 418.8 | N140: 1320
A141: 15013-021 | B141: StoPOX WL 100 BASIS B | C141: 10 | D141: кг | E141: Ведро | F141: 1534.292665 | G141: 1841.151198 | H141: 18411.51198 | J141: 0 | L141: 40 | M141: 418.8 | N141: 1320
A142: 08989-009 | B142: StoPOX WL/WB/WG Comp. B | C142: 2 | D142: кг | E142: Банка | F142: 1693.800385 | G142: 2032.560462 | H142: 4065.120925 | J142: 0 | L142: 120 | M142: 268.8 | N142: 3960
A143: 08989-010 | B143: StoPOX WL/WB/WG Comp. B | C143: 5 | D143: кг | E143: Банка | F143: 1611.106892 | G143: 1933.328271 | H143: 9666.641353 | J143: 0 | L143: 60 | M143: 325.8 | N143: 1980
A144: 15013-029 | B144: StoPOX WL 100 KA OT | C144: 9.7 | D144: кг | E144: Ведро | F144: 1475.366537 | G144: 1770.439844 | H144: 17173.26649 | J144: 0 | L144: 40 | M144: 407 | N144: 1320
A145: 15675-005 | B145: StoPox MS 200 Weiss | C145: 12.5 | D145: кг | E145: Ведро | F145: 1815.716579 | G145: 2178.859895 | H145: 27235.74869 | J145: 0 | L145: 28 | M145: 368.564 | N145: 924
A146: 15675-007 | B146: StoPox MS 200 Basis A | C146: 12.5 | D146: кг | E146: Ведро | F146: 1974.209569 | G146: 2369.051483 | H146: 29613.14353 | J146: 0 | L146: 28 | M146: 368.564 | N146: 924
A147: 15675-006 | B147: StoPox MS 200 Basis B | C147: 12.5 | D147: кг | E147: Ведро | F147: 1910.564779 | G147: 2292.677734 | H147: 28658.47168 | J147: 0 | L147: 28 | M147: 368.564 | N147: 924
A148: 15675-004 | B148: StoPox MS 200 Basis OT | C148: 12.1 | D148: кг | E148: Ведро | F148: 1776.849145 | G148: 2132.218974 | H148: 25799.84959 | J148: 0 | L148: 28 | M148: 357.364 | N148: 924
A149: 09352-001 | B149: StoPox MS 200 Comp. B | C149: 5 | D149: кг | E149: Ведро | F149: 3107.396228 | G149: 3728.875473 | H149: 18644.37737 | J149: 0 | L149: 60 | M149: 328.2 | N149: 1980
A150: 15003-175 | B150: Basis A CRYL BF 700 | C150: 10 | D150: л | E150: Ведро | F150: 1322.548961 | G150: 1587.058754 | H150: 15870.58754 | J150: 0 | L150: 27 | M150: 352.08 | N150: 891
A151: 15003-177 | B151: Basis B CRYL BF 700 | C151: 10 | D151: л | E151: Ведро | F151: 1332.714241 | G151: 1599.257089 | H151: 15992.57089 | J151: 0 | L151: 27 | M151: 344.52 | N151: 891
A152: 15003-180 | B152: Basis OT CRYL BF 700 | C152: 9.7 | D152: л | E152: Ведро | F152: 1341.835423 | G152: 1610.202507 | H152: 15618.96432 | J152: 0 | L152: 27 | M152: 329.481 | N152: 891
A153: 15003-176 | B153: Basis A CRYL BF 700 | C153: 5 | D153: л | E153: Ведро | F153: 1428.78955 | G153: 1714.547459 | H153: 8572.737297 | J153: 0 | L153: 60 | M153: 392.7 | N153: 1980
A154: 15003-178 | B154: Basis B CRYL BF 700 | C154: 5 | D154: л | E154: Ведро | F154: 1438.192189 | G154: 1725.830627 | H154: 8629.153136 | J154: 0 | L154: 60 | M154: 392.7 | N154: 1980
A155: 15003-179 | B155: Basis OT CRYL BF 700 | C155: 4.85 | D155: л | E155: Ведро | F155: 1451.553249 | G155: 1741.863899 | H155: 8448.039912 | J155: 0 | L155: 60 | M155: 380.94 | N155: 1980
A156: 15003-188 | B156: Basis Gold CRYL BF 700 Metallic | C156: 5 | D156: л | E156: Ведро | F156: 4038.607504 | G156: =F156*1.2 -> 4846.329005 | H156: =G156*C156 -> 24231.64502 | J156: 0 | L156: 60 | M156: 408.3 | N156: 1980
A157: 15003-189 | B157: Basis Silber CRYL BF 700 Metallic | C157: 5 | D157: л | E157: Ведро | F157: 2374.693955 | G157: =F157*1.2 -> 2849.632746 | H157: =G157*C157 -> 14248.16373 | J157: 0 | L157: 60 | M157: 408.3 | N157: 1980

Sheet 5. Ведра. Инструмент
A1: Прайс-лист Товаров Продуктовой группы раздела «Профессиональный ручной инструмент» Цены действительны c 01.10.2021 г.
A2: Артикул | B2: Наименование продукта | C2: Вид материала | D2: Упаковка | G2: Иллюстрация | H2: Цена Руб. БЕЗ учета НДС | I2: Цена Руб. с НДС 20% | J2: Кол-во единиц товара | K2: Сумма заказа с НДС | L2: Краткое описание продукта
D3: к-во | E3: ед.
A4: 09679-188 | B4: Ведро желтое с логотипом Sto - 0,8 литра | C4: Ведро | D4: 1 | E4: шт. | H4: 215.3768879 | I4: =H4*1.2 -> 258.4522654 | K4: =J4*I4 -> 0
A5: 09257-002 | B5: Ведро желтое с логотипом Sto - 1,8 литра | C5: Ведро | D5: 1 | E5: шт. | H5: 253.7555975 | I5: =H5*1.2 -> 304.506717 | K5: =J5*I5 -> 0
A6: 09050-002 | B6: Ведро желтое с логотипом Sto - 3,2 литра | C6: Ведро | D6: 1 | E6: шт. | H6: 254.1181638 | I6: =H6*1.2 -> 304.9417966 | K6: =J6*I6 -> 0
A7: 09049-002 | B7: Ведро желтое с логотипом Sto - 5,5 литра | C7: Ведро | D7: 1 | E7: шт. | H7: 296.7083093 | I7: =H7*1.2 -> 356.0499712 | K7: =J7*I7 -> 0
A8: 09065-001 | B8: Ведро желтое с логотипом Sto - 12,0 литров | C8: Ведро | D8: 1 | E8: шт. | H8: по запросу | I8: по запросу | K8: по запросу
A9: 09019-002 | B9: Ведро желтое с логотипом Sto - 18,0 литров | C9: Ведро | D9: 1 | E9: шт. | H9: по запросу | I9: по запросу | K9: по запросу
A10: 08335-001 | B10: Sto-WDVS-Schleifpapier 420 x 200 мм K 16 | C10: Шлифовальные материалы | D10: 1 | E10: шт. | H10: 1100.35 | I10: =H10*1.2 -> 1320.42 | K10: 0 | L10: шлифовальная бумага для шлифовальной доски Sto-WDVS-Schleifbrett, для шлифования теплоизоляционного материала
A11: 08335-002 | B11: Sto-WDVS-Schleifbrett 420 x 200 мм | C11: Шлифовальные материалы | D11: 1 | E11: шт. | H11: 4762.41 | I11: =H11*1.2 -> 5714.892 | K11: 0 | L11: алюминиевая шлифовальная доска с деревянной ручкой, в комплекте со шлифовальной бумагой K16
A12: 08290-015 | B12: Sto-Flächenspachtel mit Softgriff abgerundet, 480 мм | C12: Шпатели | D12: 1 | E12: шт. | H12: 2487.43 | I12: =H12*1.2 -> 2984.916 | K12: 0 | L12: широкий шпатель с мягкой ручкой и закругленными углами
A13: 08290-016 | B13: Sto-Flächenspachtel mit Softgriff abgerundet, 570 мм | C13: Шпатели | D13: 1 | E13: шт. | H13: 2722.75 | I13: 3267.3 | K13: 0
A14: 08303-004 | B14: Sto-Japanspachtelsatz mit Leichtmetallrücken | C14: Шпатели | D14: 1 | E14: шт. | H14: 985.87125 | I14: 1183.0455 | K14: 0 | L14: набор из четырех японских шпателей шир. 50, 80, 105, 120 мм, из закаленной нержавеющей стали толщ. 0,3 мм, нерабочая грань из легкого металла.
A15: 08356-001 | B15: Sto-Stuckateurspachtel, 80 мм | C15: Шпатели | D15: 1 | E15: шт. | H15: 1272.87 | I15: 1527.444 | K15: 0 | L15: мастерок из закаленной нержавеющей стали толщ. 0,8 мм, с деревянной ручкой
A16: 08356-002 | B16: Sto-Stuckateurspachtel, 100 мм | C16: Шпатели | D16: 1 | E16: шт. | H16: 1386.73 | I16: 1664.076 | K16: 0
A17: 08313-028 | B17: Sto-Malerspachtel Profi, 50 мм | C17: Шпатели | D17: 1 | E17: шт. | H17: 555.51 | I17: 666.612 | K17: 0 | L17: шпатель из закаленной стали с деревянной ручкой
A18: 08313-029 | B18: Sto-Malerspachtel Profi, 80 мм | C18: Шпатели | D18: 1 | E18: шт. | H18: 631.42 | I18: 757.704 | K18: 0
A19: 08288-001 | B19: Sto-Glättekelle Profi 280 x 130 x 0,7 мм | C19: Кельмы | выравнивающие | D19: 1 | E19: шт. | H19: 2339.4 | I19: =H19*1.2 -> 2807.28 | K19: 0 | L19: кельма из нержавеющей стали толщ. 0,7 мм для нанесения финишных штукатурок
A20: 08288-008 | B20: Sto-Glättekelle gezahnt 280 x 130 мм, 4 х 4 | C20: Кельмы | выравнивающие | D20: 1 | E20: шт. | H20: 1075.48 | I20: 1290.576 | K20: 0 | L20: зубчатая кельма из нержавеющей стали, для нанесения строительных растворов
A21: 08288-009 | B21: Sto-Glättekelle gezahnt 280 x 130 мм, 6 х 6 | C21: Кельмы | выравнивающие | D21: 1 | E21: шт. | H21: 1075.48 | I21: 1290.576 | K21: 0
A22: 08288-010 | B22: Sto-Glättekelle gezahnt 280 x 130 мм, 8 х 8 | C22: Кельмы | выравнивающие | D22: 1 | E22: шт. | H22: 1075.48 | I22: 1290.576 | K22: 0
A23: 08288-002 | B23: Sto-Schweizer Glättekelle 500 x 130 x 0,7 мм | C23: Кельмы | выравнивающие | D23: 1 | E23: шт. | H23: 4290.29 | I23: 5148.348 | K23: 0 | L23: швейцарская кельма из нержавеющей стали, для вытягивания, выравнивания, укладки армирующей сетки
A24: 08289-003 | B24: Sto-Glättekelle Profi Kunststoff Mini 160 x 80 x 3 мм | C24: Кельмы | выравнивающие | D24: 1 | E24: шт. | H24: 1257.67 | I24: 1509.204 | K24: 0 | L24: мини-кельма из серого ударопрочного ПВХ с деревянной ручкой, для структурирования финишных штукатурок
A25: 08289-010 | B25: Sto-Glättekelle Kunststoff mit Kunststoffgriff 280 x 140 x 3 мм | C25: Кельмы | выравнивающие | D25: 1 | E25: шт. | H25: 688.34 | I25: 826.008 | K25: 0 | L25: кельма из ударопрочного ПВХ с пластиковой ручкой, для структурирования финишных штукатурок
A26: 08289-009 | B26: Sto-Glättekelle Kunststoff mit Kunststoffgriff 280 x 140 x 2 мм | C26: Кельмы | выравнивающие | D26: 1 | E26: шт. | H26: 631.42 | I26: 757.704 | K26: 0
A27: 08376-003 | B27: Sto-Calce Marmorino-Glättekelle 280 x 100/90 мм | C27: Кельмы | выравнивающие | D27: 1 | E27: шт. | H27: 4631.88 | I27: 5558.256 | K27: 0 | L27: "венецианская" кельма из нержавеющей специальной стали толщ. 0,6 мм с закругленными углами, с деревянной ручкой, для нанесения StoCalce Marmorino
A28: 08376-002 | B28: Sto-Calce Marmorino-Glättekelle 240 x 100/80 мм | C28: Кельмы | выравнивающие | D28: 1 | E28: шт. | H28: 4119.5 | I28: 4943.4 | K28: 0
A29: 08376-001 | B29: Sto-Calce Marmorino-Glättekelle 200 x 80/70 мм | C29: Кельмы | выравнивающие | D29: 1 | E29: шт. | H29: 3872.78 | I29: 4647.336 | K29: 0
A30: 08327-001 | B30: Sto-Berner Putzkelle 140 мм | C30: Кельмы | штукатурные | D30: 1 | E30: шт. | H30: 1310.82 | I30: =H30*1.2 -> 1572.984 | K30: 0 | L30: кельма из закаленной нержавеющей стали толщ. 1,00 мм, с деревянной ручкой
A31: 08268-009 | B31: Sto-Inneneckenkelle 80 x 60 мм | C31: Кельмы | угловые | D31: 1 | E31: шт. | H31: 1295.62 | I31: 1554.744 | K31: 0 | L31: кельма для внутренних углов из нержавеющей закаленной стали толщ. 0,7 мм, с деревянной ручкой
A32: 08268-001 | B32: Sto-Außeneckenkelle 65 x 65 мм | C32: Кельмы | угловые | D32: 1 | E32: шт. | H32: 1462.64 | I32: 1755.168 | K32: 0 | L32: кельма для наружных углов из нержавеющей закаленной стали толщ. 0,7 мм, с деревянной ручкой
A33: 08259-001 | B33: Sto-Bossenkelle | C33: Кельмы | угловые | D33: 1 | E33: шт. | H33: 9490.14 | I33: 11388.168 | K33: 0 | L33: специальная кельма из нержавеющей стали, для воспроизведения руста
A34: 08328-001 | B34: Sto-Reibebrett mit Schwammgummibelag grob 280 x 140 мм | C34: Тёрки | D34: 1 | E34: шт. | H34: 1035.84 | I34: 1243.008 | K34: 0 | L34: пластиковая терка с основанием из грубой губчатой резины
A35: 08328-002 | B35: Sto-Zellkautschukreibebrett | C35: Тёрки | D35: 1 | E35: шт. | H35: 784.08 | I35: 940.896 | K35: 0 | L35: кельма для структурирования нивелирующих фасадных штукатурок
A36: 08301-001 | B36: StoLook Schwammscheibe 220 x 140 мм | C36: Тёрки | D36: 1 | E36: шт. | H36: 1839.75 | I36: 2207.7 | K36: 0 | L36: жесткая губка для обработки и выравнивания материалов StoCalce Fondo, StoCalce Effetto
A37: 17100-003 | B37: Sto-Flachpinsel Standart 50 мм, дл. щетины 58 мм | C37: Кисти | плоские | D37: 1 | E37: шт. | H37: 693.04 | I37: 831.648 | K37: 0 | L37: плоская кисть со светлой щетиной, для работы с алкидными лаками, содержащими растворитель, и дисперсионными красками
A38: 17100-004 | B38: Sto-Flachpinsel Standart 60 мм, дл. щетины 58 мм | C38: Кисти | плоские | D38: 1 | E38: шт. | H38: 881.21 | I38: 1057.452 | K38: 0
A39: 17100-005 | B39: Sto-Flachpinsel Standart 70 мм, дл. щетины 64 мм | C39: Кисти | плоские | D39: 1 | E39: шт. | H39: 1106.15 | I39: 1327.38 | K39: 0
A40: 17100-006 | B40: Sto-Flachpinsel Standart 80 мм, дл. щетины 64 мм | C40: Кисти | плоские | D40: 1 | E40: шт. | H40: 1470.2 | I40: 1764.24 | K40: 0
A41: 17100-007 | B41: Sto-Flachpinsel Standart 100 мм, дл. щетины 64 мм | C41: Кисти | плоские | D41: 1 | E41: шт. | H41: 1842.41 | I41: 2210.892 | K41: 0
A42: 17101-001 | B42: Sto-Heizkörperpinsel Standart hell 25 мм, дл. щетины 43 мм | C42: Кисти | радиаторные | D42: 1 | E42: шт. | H42: 324.91 | I42: 389.892 | K42: 0 | L42: кисть для окраски радиаторов со светлой щетиной, для работ с водорастворимыми, дисперсионными красками и лаками
A43: 17101-003 | B43: Sto-Heizkörperpinsel Standart hell 50 мм, дл. щетины 56 мм | C43: Кисти | радиаторные | D43: 1 | E43: шт. | H43: 447.62 | I43: 537.144 | K43: 0
A44: 17106-003 | B44: Sto-Flächenstreicher Orel®-Mix 135 мм, дл. щетины 85 мм | C44: Кисти | широкие | D44: 1 | E44: шт. | H44: 4574.4426 | I44: 5489.33112 | K44: 0 | L44: высококачественная широкая кисть в овальном деревянном корпусе, особенно подходит для нанесения лазурей и лаков
A45: 17103-006 | B45: Sto-Flächenstreicher Standart grau 120 мм, дл. щетины 65 мм | C45: Кисти | широкие | D45: 1 | E45: шт. | H45: 2018.28 | I45: 2421.936 | K45: 0 | L45: широкая кисть с серой щетиной в латунном корпусе с деревянной ручкой, для лакокрасочных работ, нанесения лазурей, морилок по дереву
A46: 17811-003 | B46: Sto-Fassadenwalze Standart 270 мм, Ø 96 мм | C46: Валики | фасадные | D46: 1 | E46: шт. | H46: 1184.87 | I46: 1421.844 | K46: 0 | L46: профессиональный полиамидный валик, дл. ворса 18 мм, набивка 8 мм, идеально подходит для дисперсий, латексных красок, пропиток, грунтовок глубокого проникновения
A47: Валики | малярные | C47: Валики | фасадные | K47: 0
A48: 17800-024 | B48: Sto-Malerwalze FIL Langflor 180 мм, Ø 85 мм | C48: Валики | фасадные | D48: 1 | E48: шт. | H48: 906 | I48: =H48*1.2 -> 1087.2 | K48: 0 | L48: высококачественный полиамидный валик с длинным ворсом, дл. 18 мм, без набивки, идеально подходит для нанесения грунтовок, дисперсионных красок
A49: 17800-025 | B49: Sto-Malerwalze FIL Langflor 250 мм, Ø 85 мм | C49: Валики | фасадные | D49: 1 | E49: шт. | H49: 1162.97 | I49: 1395.564 | K49: 0
A50: 17811-006 | B50: Sto-Malerwalze Standard 250 mm Langflor 18 мм | C50: Валики | фасадные | D50: 1 | E50: шт. | H50: 945.19 | I50: 1134.228 | K50: 0
A51: 17811-008 | B51: Sto-Malerwalze Standart Kurzflor 25см Flor 12мм, Ø 72мм | C51: Валики | фасадные | D51: 1 | E51: шт. | H51: 829.6 | I51: 995.52 | K51: 0 | L51: полиамидный валик с коротким ворсом, дл. 12 мм, без набивки, идеально подходит для нанесения латексных, дисперсионных красок, грунтовок глубокого проникновения, пропиток
A52: 17804-002 | B52: Sto-Grundierwalze Microfaser 250 mm (замена 17803-002) | C52: Валики | для лаков и лазурей | D52: 1 | E52: шт. | H52: 996.54 | I52: 1195.848 | K52: 0 | L52: полиамидный валик с ворсом 5 мм, без набивки, устойчив к воздействию растворителя, идеально подходит для нанесения антикоррозионных, эпоксидных, 2-компонентных красок, паркетных лаков на основе синтетической смолы и полиэфира
A53: 08278-006 | B53: Sto-Lackierwalze Nylon RS 8 250 мм Ø 60 мм | C53: Валики | для лаков и лазурей | D53: 1 | E53: шт. | H53: 872.41 | I53: 1046.892 | K53: 0 | L53: полиамидный валик с коротким ворсом 8 мм, идеален для 2-К , эпоксидов и лаков, длина 25 см
A54: 08279-004 | B54: Sto-Heizkörperwalze Nylon RS13 100 мм, Ø 45 мм | C54: Валики | радиаторные | D54: 1 | E54: шт. | H54: 213.27 | I54: 255.924 | K54: 0 | L54: высококачественный полиамидный валик с коротким ворсом, дл. 11 мм, без набивки, идеально подходит для нанесения латексных, дисперсионных красок
A55: 08279-005 | B55: Sto-Heizkörperwalze Nylon RS8 100 мм, Ø 31 мм | C55: Валики | радиаторные | D55: 1 | E55: шт. | H55: 213.27 | I55: 255.924 | K55: 0 | L55: валик с ворсом дл. 6 мм из нейлоновых волокн, фиксированных на полиамидной основе, устойчивой к воздействию растворителя, идеально подходит для нанесения антикоррозионных, эпоксидных, 2-компонентных красок, лаков на основе синтетической смолы и полиэфира
A56: 08219-001 | B56: Sto-Decorwalze Lederstücke 250 мм | C56: Валики | декоративные | D56: 1 | E56: шт. | H56: 3958.52 | I56: 4750.224 | K56: 0 | L56: специальный валик для нанесения покрытия "под мрамор"
A57: 08219-003 | B57: Sto-Effektwalze Flappen 180 мм | C57: Валики | декоративные | D57: 1 | E57: шт. | H57: 2487.27 | I57: 2984.724 | K57: 0 | L57: специальные валики для получения цветных, структурных эффектов (складки, пленка, кожа)
A58: 08354-010 | B58: Sto-Strukturwalze grob 110 мм, Ø 35 мм, прямой | C58: Валики | декоративные | D58: 1 | E58: шт. | H58: 226.12 | I58: 271.344 | K58: 0 | L58: грубый поролоновый валик, идеально подходит для структурирования штукатурки, шпаrлевки и структурной краски
A59: 08354-011 | B59: Sto-Strukturwalze grob 250 мм, Ø 74 мм, двустор. крепление | C59: Валики | декоративные | D59: 1 | E59: шт. | H59: 1488.75 | I59: 1786.5 | K59: 0
A60: 08219-006 | B60: Sto-Reliefwalze Eiche | C60: Валики | декоративные | D60: 1 | E60: шт. | H60: 2813.02 | I60: 3375.624 | K60: 0 | L60: валик для создания рельефа
A61: 08254-009 | B61: Sto-Farbrollerbügel Ø 8 мм, для валиков 18-20 см, дл. 29 см | C61: Сопутствующие / вспомогательные товары | D61: 1 | E61: шт. | H61: 312.04 | I61: =H61*1.2 -> 374.448 | K61: 0 | L61: ручка бюгельная из оцинкованной стали с пластиковой рукояткой
A62: 08254-010 | B62: Sto-Farbrollerbügel Ø 8 мм, для валиков 25-27 см, дл. 29 см | C62: Сопутствующие / вспомогательные товары | D62: 1 | E62: шт. | H62: 339.37 | I62: 407.244 | K62: 0
A63: 08302-001 | B63: Sto-Farbrollerbügel Ø 6 мм, для валиков 10-12 см, дл. 27 см | C63: Сопутствующие / вспомогательные товары | D63: 1 | E63: шт.
A64: 08302-010 | B64: Sto-Farbrollerbügel Ø 6 мм, для валиков 10-12 см, дл. 42 см | C64: Сопутствующие / вспомогательные товары | D64: 1 | E64: шт. | H64: 259.36 | I64: 311.232 | K64: 0
A65: 08369-009 | B65: Sto-Teleskopstange Aluminium gelb 117-200 см | C65: Сопутствующие / вспомогательные товары | D65: 1 | E65: шт. | H65: 3075.9183 | I65: 3691.10196 | K65: 0 | L65: раздвижная прочная алюминиевая штанга, подходит для любых типов бюгелей
A66: 08253-011 | B66: Sto-Abstreifgitter Kunststoff gelb 27 x 29 см | C66: Сопутствующие / вспомогательные товары | D66: 1 | E66: шт. | H66: 208.53 | I66: 250.236 | K66: 0 | L66: пластиковая решетка для раскатывания валика, желтая, опускается в ведро
A67: 08281-004 | B67: Sto-Farbwanne 22 x 27 см | C67: Сопутствующие / вспомогательные товары | D67: 1 | E67: шт. | H67: 245.62 | I67: 294.744 | K67: 0 | L67: желтая пластиковая ванночка для раскатывания валика
A68: 08359-003 | B68: Sto-Stachelwalze Messing | C68: Сопутствующие / вспомогательные товары | D68: 1 | E68: шт. | H68: 13789.61 | I68: 16547.532 | K68: 0 | L68: металлический игольчатый валик на длинной деревянной ручке для снятия старых обоев
A69: 08283-001 | B69: Federspachtel 160 mm | C69: Акустические потолки и покрытия | D69: 1 | E69: шт. | H69: 3292.08 | I69: =H69*1.2 -> 3950.496 | K69: =J69*I69 -> 0 | L69: металлический шпатель для заглаживания StoSilent Top Basic/ StoSilent Top Finish
A70: 08288-029 | B70: Sto-Spezialglätter 800x130mm | C70: Акустические потолки и покрытия | D70: 1 | E70: шт. | H70: 15714.78 | I70: 18857.736 | K70: 0 | L70: кельма для проглаживания StoSilent Top Basic/ StoSilent Top Finish
A71: 08288-039 | B71: Aufziehglätte, gezahnt 4x4 mm | C71: Акустические потолки и покрытия | D71: 1 | E71: шт. | H71: 2377.36 | I71: 2852.832 | K71: 0 | L71: кельма для нанесения StoSilent Top Basic/ StoSilent Top Finish
A72: 08288-040 | B72: Aufziehglätte, gezahnt 6x6 mm | C72: Акустические потолки и покрытия | D72: 1 | E72: шт. | H72: 2377.36 | I72: 2852.832 | K72: 0
A73: 08288-042 | B73: Aufziehglätte, gezahnt 10x10 mm | C73: Акустические потолки и покрытия | D73: 1 | E73: шт. | H73: 2648.67 | I73: 3178.404 | K73: 0
A74: 17202-007 | B74: Deckenspachtel 600 mm | C74: Акустические потолки и покрытия | D74: 1 | E74: шт. | H74: 9194.08 | I74: 11032.896 | K74: 0 | L74: шпатель для StoSilent Top Basic/ StoSilent Top Finish
A75: 17202-009 | B75: Deckenspachtel 1000 мм | C75: Акустические потолки и покрытия | D75: 1 | E75: шт. | H75: 13202.16 | I75: 15842.592 | K75: 0
A76: 17202-010 | B76: Sto-Deckenspachtel Verlangerung 2х500 mm | C76: Акустические потолки и покрытия | D76: 1 | E76: шт. | H76: 8495.72 | I76: 10194.864 | K76: 0 | L76: телескопический удлинитель держатель для шпателя Deckenspachtel
A77: 17202-011 | B77: Sto-Deckenspachtel Verlangerung 2x1 m | C77: Акустические потолки и покрытия | D77: 1 | E77: шт. | H77: 11539.72 | I77: 13847.664 | K77: 0
A78: 08289-002 | B78: Sto-Glattekelle Premium Kunststoff 280x135x1 mm | C78: Акустические потолки и покрытия | D78: 1 | E78: шт. | H78: 2168.59 | I78: 2602.308 | K78: 0 | L78: пластиковая кельма для заглаживания StoSilent Top Basic, толщина 1 мм
A79: 08255-001 | B79: Sto-Zahnleistenkelle | C79: Полимерные полы и покрытия | H79: 3033.97 | I79: =H79*1.2 -> 3640.764 | K79: 0 | L79: ручная ракель
A80: 08373-001 | B80: Sto-Zahnleiste für Zahnleistenkelle C2 | C80: Полимерные полы и покрытия | H80: 375.63 | I80: 450.756 | K80: 0 | L80: зубчатые металлические насадки для ручной ракели Sto-Zahnleistenkelle, длина 280 мм
A81: 08373-002 | B81: Sto-Zahnleiste für Zahnleistenkelle B1 | C81: Полимерные полы и покрытия | H81: 375.63 | I81: 450.756 | K81: 0
A82: 08373-004 | B82: Sto-Zahnleiste für Zahnleistenkelle C1 | C82: Полимерные полы и покрытия | H82: 375.63 | I82: 450.756 | K82: 0
A83: 08373-007 | B83: Sto-Zahnleiste für Zahnleistenkelle 78 | C83: Полимерные полы и покрытия | H83: 375.63 | I83: 450.756 | K83: 0
A84: 08373-008 | B84: Sto-Zahnleiste für Zahnleistenkelle 7 | C84: Полимерные полы и покрытия | H84: 375.63 | I84: 450.756 | K84: 0
A85: 08373-018 | B85: Sto-Zahnleiste, 280 x 25 mm, Zahnform 25 | C85: Полимерные полы и покрытия | H85: 375.63 | I85: 450.756 | K85: 0 | L85: зубчатые металлические насадки для ракели Sto-Rakel
A86: 08373-019 | B86: Sto-Zahnleiste, 280 x 25 mm, Zahnform 48 | C86: Полимерные полы и покрытия | H86: 375.63 | I86: 450.756 | K86: 0
A87: 08373-020 | B87: Sto-Zahnleiste, 280 x 25 mm, Zahnform 92 | C87: Полимерные полы и покрытия | H87: 375.63 | I87: 450.756 | K87: 0
A88: 08373-021 | B88: Sto-Zahnleiste, 280 x 25 mm, Zahnform 95 | C88: Полимерные полы и покрытия | H88: 375.63 | I88: 450.756 | K88: 0
A89: 08373-022 | B89: Sto-Zahnleiste, 280 x 25 mm, Zahnform A2 | C89: Полимерные полы и покрытия | H89: 375.63 | I89: 450.756 | K89: 0
A90: 08373-023 | B90: Sto-Zahnleiste, 280 x 25 mm, Zahnform A3 | C90: Полимерные полы и покрытия | H90: 375.63 | I90: 450.756 | K90: 0
A91: 08373-024 | B91: Sto-Zahnleiste, 280 x 25 mm, Zahnform S1 | C91: Полимерные полы и покрытия | H91: 375.63 | I91: 450.756 | K91: 0
A92: 08373-025 | B92: Sto-Zahnleiste, 280 x 25 mm, Zahnform S2 | C92: Полимерные полы и покрытия | H92: 375.63 | I92: 450.756 | K92: 0
A93: 08373-026 | B93: Sto-Zahnleiste, 280 x 25 mm, Zahnform S3 | C93: Полимерные полы и покрытия | H93: 375.63 | I93: 450.756 | K93: 0
A94: 08373-027 | B94: Sto-Zahnleiste, 280 x 25 mm, Zahnform S4 | C94: Полимерные полы и покрытия | H94: 375.63 | I94: 450.756 | K94: 0
A95: 17400-001 | B95: Gummischieber Profi doppellippig 550 mm | C95: Полимерные полы и покрытия | H95: 1504.39 | I95: 1805.268 | K95: 0 | L95: шиберы для полимерных полов, для нанесения грунтовочных составов
A96: 17400-002 | B96: Gummischieber doppellippig 600 mm | C96: Полимерные полы и покрытия | H96: 695.92 | I96: 835.104 | K96: 0
A97: 17400-003 | B97: Gummischieber Standart einlippig 600 mm | C97: Полимерные полы и покрытия | H97: 2316.62 | I97: 2779.944 | K97: 0
A98: 17401-001 | B98: Sto-Rakel f. Zahngummileisten 580 mm | C98: Полимерные полы и покрытия | H98: 12424.06 | I98: 14908.872 | K98: 0 | L98: ракель
A99: 17401-003 | B99: Zahngummileisten f. Sto-Rakel 2 mm | C99: Полимерные полы и покрытия | H99: 4364.1234 | I99: 5236.94808 | K99: 0 | L99: зубчатые резиновые насадки для ракели с зубом 2-10 мм
A100: 17401-004 | B100: Zahngummileisten f. Sto-Rakel 4 mm | C100: Полимерные полы и покрытия | H100: 4364.1234 | I100: 5236.94808 | K100: 0
A101: 17401-006 | B101: Zahngummileisten f. Sto-Rakel 6 mm | C101: Полимерные полы и покрытия | H101: 4318.31 | I101: 5181.972 | K101: 0
A102: 17401-008 | B102: Zahngummileisten f. Sto-Rakel 8 mm | C102: Полимерные полы и покрытия | H102: 4318.31 | I102: 5181.972 | K102: 0
A103: 17402-001 | B103: Sto-Stiftrakel 580 mm, Stielanschluss 28 mm | C103: Полимерные полы и покрытия | H103: 14819.03 | I103: 17782.836 | K103: 0 | L103: ракель
A104: 17403-001 | B104: Sto-Stehrakel mit Klemmleiste, 560 mm | C104: Полимерные полы и покрытия | H104: 3872.78 | I104: 4647.336 | K104: 0 | L104: широкий ракель для зубчатых металлических насадок
A105: 08289-007 | B105: Sto-Stieltulle | C105: Полимерные полы и покрытия | H105: 776.4 | I105: 931.68 | K105: 0 | L105: держатель для ракели
A106: 17404-001 | B106: Sto-Knieschoner | C106: Полимерные полы и покрытия | H106: 5954.66235 | I106: 7145.59482 | K106: 0 | L106: наколенники
A107: 17404-004 | B107: Nagelsohle mit Gurten | C107: Полимерные полы и покрытия | H107: 6017.55 | I107: 7221.06 | K107: 0 | L107: мокроступы
A108: 17406-001 | B108: Sto-Entlüftungswalze Standard | C108: Полимерные полы и покрытия | H108: 6467.3154 | I108: 7760.77848 | K108: 0 | L108: игольчатый валик с бюгелем, длина иглы 12 мм
A109: 17406-002 | B109: Sto-Ersatzwalze fur Entluftungswalze 12 mm - 25 cm Standard | C109: Полимерные полы и покрытия | H109: 4758.4719 | I109: 5710.16628 | K109: 0 | L109: игольчатый валик, длина иглы 12 мм
A110: 17406-003 | B110: Sto-Entlüftungswalze Duo-Bugel 12mm - 50cm | C110: Полимерные полы и покрытия | H110: 13199.16 | I110: 15838.992 | K110: 0 | L110: игольчатый валик с держателем, длина иглы 12 мм
A111: 17406-004 | B111: Sto-Entlüftungs-Ersatzwalze 12/50 | C111: Полимерные полы и покрытия | H111: 8870.9 | I111: 10645.08 | K111: 0 | L111: игольчатый валик, длина иглы 12 мм
A112: 17406-005 | B112: Sto-Entluftüngswalze Profi | C112: Полимерные полы и покрытия | H112: 7219.86 | I112: 8663.832 | K112: 0 | L112: игольчатый валик с ручкой, длина иглы 21 мм
A113: 17406-006 | B113: Sto-Ersatzwalze fur Entlüftungswalze Profi 21 mm | C113: Полимерные полы и покрытия | H113: 5744.34315 | I113: 6893.21178 | K113: 0 | L113: игольчатый валик, длина иглы 21 мм
A114: 17406-007 | B114: Sto-Schlingenwalze | C114: Полимерные полы и покрытия | H114: 2366.091 | I114: 2839.3092 | K114: 0 | L114: валик для выпуска пузырьков воздуха из тонкослойных материалов
A115: 17802-005 | B115: Sto-Großflächenwalze Microfaser 500 mm | C115: Полимерные полы и покрытия | H115: 1511.66925 | I115: 1814.0031 | K115: 0 | L115: валик с мягким ворсом дл. 10 мм из микрофибры, фиксированных на полиамидной основе, идеально подходит для нанесения эпоксидных, 2-компонентных красок, лаков на водной основе
A116: 17802-001 | B116: Sto-Großflächenwalze Nylon RS 13 mm | C116: Полимерные полы и покрытия | H116: 1758.39 | I116: 2110.068 | K116: 0 | L116: валик с ворсом дл. 13 мм из нейлоновых волокн, фиксированных на полиамидной основе, устойчивой к воздействию растворителя, идеально подходит для нанесения антикоррозионных, эпоксидных, 2-компонентных красок, лаков на основе синтетической смолы и полиэфира
A117: 17802-003 | B117: Sto-Großflächenwalze Nylon RS 8 mm | C117: Полимерные полы и покрытия | H117: 1735.1334 | I117: 2082.16008 | K117: 0 | L117: валик с ворсом дл. 8 мм из нейлоновых волокн, фиксированных на полиамидной основе, устойчивой к воздействию растворителя, идеально подходит для нанесения антикоррозионных, эпоксидных, 2-компонентных красок, лаков на основе синтетической смолы и полиэфира
A118: 17802-007 | B118: Sto-Verstellbügel | C118: Полимерные полы и покрытия | H118: 3851.47035 | I118: 4621.76442 | K118: 0 | L118: держатель для валика, подходит к валикам различного размера ( от 30 до 60 см )
A119: Приложение. Зубчатые металлические насадки для ракелей.

Sheet 6. Полы
A1: Прайс-лист Товаров Продуктовой группы раздела «Бетон» (полимерные покрытия для полов) Цены действительны c 01.10.2021 г.
A2: Артикул | B2: Наименование продукта | C2: Производство | D2: Упаковка | G2: Расчетный расход продукта | J2: Цена БЕЗ учета НДС за единицу измерения | K2: Цена с НДС за единицу измерения | L2: Цена с НДС за 1м² (при min расходе) | M2: Цена с НДС за упаковку | N2: Кол-во единиц товара | O2: Сумма заказа с НДС | P2: Количество упаковок на паллете, шт. | Q2: Вес одного паллето-места (без палеты), кг. | R2: Норма загрузки авто (20 т.) шт. | S2: Краткое описание продукта
D3: к-во | E3: ед. | F3: вид упаковки | G3: от | H3: до | I3: единица измерения
A4: 03677-008 | B4: StoCryl BF 200 weiss (белый) | C4: DE | D4: 16 | E4: кг | F4: Ведро | G4: 0.4 | H4: 0.9 | I4: кг/м² | J4: 966.21 | K4: =J4*1.2 -> 1159.452 | L4: =K4*G4 -> 463.7808 | M4: =K4*D4 -> 18551.232 | O4: =N4*M4 -> 0 | P4: 27 | Q4: 347.22 | R4: 891 | S4: органическая матовая краска для пола, пигментированная, водоразбавимая, устойчива к старению, к воздействию света, колеруется, подходит для покрытия маслосборных ёмкостей. Для слабо нагруженных проходимых площадей (подвалы, лестницы, террасы, балконы)
A5: 03677-002_2 | B5: StoCryl BF 200 C1 | C5: DE | D5: 16 | E5: кг | F5: Ведро | G5: 0.4 | H5: 0.9 | I5: кг/м² | J5: 1134.735 | K5: 1361.682 | L5: 544.6728 | M5: 21786.912 | O5: =N5*M5 -> 0 | P5: 27 | Q5: 347.22 | R5: 891
A6: 00044-003 | B6: StoCryl BF 700 weiss (белое) | C6: DE | D6: 10 | E6: л | F6: Ведро | G6: 0.15 | H6: 0.4 | I6: л/м² | J6: 1315.239294 | K6: 1578.287152 | L6: 236.7430728 | M6: 15782.87152 | O6: =N6*M6 -> 0 | P6: 27 | Q6: 352.08 | R6: 891 | S6: однокомпонентная напольная краска, устойчива к механическим нагрузкам, полуматовая. Колеруется в различные цвета.
A7: 00044-001 | B7: StoCryl BF 700 getönt (колерованное) | C7: DE | D7: 10 | E7: л | F7: Ведро | G7: 0.15 | H7: 0.4 | I7: л/м² | J7: =J6+68 -> 1383.239294 | K7: 1659.887152 | L7: 248.9830728 | M7: 16598.87152 | O7: 0 | P7: 27 | Q7: 352.08 | R7: 891
A8: 00044-004 | B8: StoCryl BF 700 weiss (белое) | C8: DE | D8: 5 | E8: л | F8: Ведро | G8: 0.15 | H8: 0.4 | I8: л/м² | J8: 1421.182347 | K8: 1705.418816 | L8: 255.8128224 | M8: 8527.09408 | O8: 0 | P8: 60 | Q8: 392.7 | R8: 1980
A9: 00044-002 | B9: StoCryl BF 700 getönt (колерованное) | C9: DE | D9: 5 | E9: л | F9: Ведро | G9: 0.15 | H9: 0.4 | I9: л/м² | J9: =J8+68 -> 1489.182347 | K9: 1787.018816 | L9: 268.0528224 | M9: 8935.09408 | O9: 0 | P9: 60 | Q9: 392.7 | R9: 1980
A10: 15003-189 | B10: StoCryl BF 700 Metallic (база, серебристая) | C10: DE | D10: 5 | E10: л | F10: Ведро | G10: 0.15 | H10: 0.4 | I10: л/м² | J10: 2374.693955 | K10: 2849.632746 | L10: 427.4449119 | M10: 14248.16373 | O10: 0 | P10: 60 | Q10: 408.3 | R10: 1980 | S10: однокомпонентное, эффектное покрытие. Может наноситься в различных техниках, придает металлический блеск. Колеруется в ограниченный спектр цветов по вееру StoColor Metallic
A11: 00044-122 | B11: StoCryl BF 700 Metallic (колерованная, серебристая) C1 | C11: DE | D11: 5 | E11: л | F11: Ведро | G11: 0.15 | H11: 0.4 | I11: л/м² | J11: 2671 | K11: 3205.2 | L11: 480.78 | M11: 16026 | O11: 0 | P11: 60 | Q11: 408.3 | R11: 1980
A12: 15003-188 | B12: StoCryl BF 700 Metallic (база, золотистая) | C12: DE | D12: 5 | E12: л | F12: Ведро | G12: 0.15 | H12: 0.4 | I12: л/м² | J12: 4038.607504 | K12: 4846.329005 | L12: 726.9493507 | M12: 24231.64502 | O12: 0 | P12: 60 | Q12: 408.3 | R12: 1980 | S12: однокомпонентное, эффектное покрытие. Может наноситься в различных техниках, придает металлический блеск. Колеруется в ограниченный спектр цветов по вееру StoColor Metallic
A13: 00044-022 | B13: StoCryl BF 700 Metallic (колерованная, золотистая) C1 | C13: DE | D13: 5 | E13: л | F13: Ведро | G13: 0.15 | H13: 0.4 | I13: л/м² | J13: =J12+68 -> 4106.607504 | K13: 4927.929005 | L13: 739.1893507 | M13: 24639.64502 | O13: 0 | P13: 60 | Q13: 408.3 | R13: 1980
A14: 00081-002 | B14: StoCryl BF 750 прозрачный | C14: DE | D14: 5 | E14: л | F14: Ведро | G14: 0.1 | H14: 0.25 | I14: л/м² | J14: 2202.075686 | K14: 2642.490823 | L14: 264.2490823 | M14: 13212.45412 | O14: 0 | P14: 60 | Q14: 329.7 | R14: 1980 | S14: однокомпонентный прозрачный глянцевый лак. Предназначен для защиты и придания дополнительного глянца
A15: 03470/008 | B15: StoPox WL 100 VAR SET, C1 | C15: DE | D15: 12 | E15: кг | F15: Комплект | G15: 0.2 | H15: 0.4 | I15: кг/м² | J15: 1438.08 | K15: 1725.696 | L15: 345.1392 | M15: 20708.352 | O15: 0 | P15: Н/Д | Q15: Н/Д | R15: 960 | S15: двухкомпонентная глянцевая водоразбавимая краска на основе эпоксидной смолы, без растворителя, для цветного запечатывания минеральных оснований полов и стен подвержанных высокими механическими и химическими воздействиями
A16: 03470/015 | B16: StoPox WL 100 VAR SET, C1 | C16: DE | D16: 30 | E16: кг | F16: Комплект | G16: 0.2 | H16: 0.4 | I16: кг/м² | J16: 1348.2 | K16: 1617.84 | L16: 323.568 | M16: 48535.2 | O16: 0 | P16: Н/Д | Q16: Н/Д | R16: 450
A17: 14206/005 | B17: StoPox WL 100 SET transparent | C17: DE | D17: 8 | E17: кг | F17: Комплект | G17: 0.15 | H17: 0.25 | I17: кг/м² | J17: 2334.695029 | K17: 2801.634035 | L17: 420.2451052 | M17: 22413.07228 | O17: 0 | P17: Н/Д | Q17: Н/Д | R17: 960 | S17: двухкомпонентный глянцевый водоразбавимый лак на основе эпоксидной смолы, без растворителя, для запечатывания минеральных оснований
A18: 08043/001 | B18: StoPox WL 150 transparent/ прозрачный , SET | C18: DE | D18: 8 | E18: кг | F18: Комплект | G18: 0.15 | H18: 0.3 | I18: кг/м² | J18: 2227.990746 | K18: 2673.588895 | L18: 401.0383343 | M18: 21388.71116 | O18: 0 | P18: Н/Д | Q18: Н/Д | R18: 960 | S18: двухкомпонентный полуматовый водоразбавимый лак на основе эпоксидной смолы, без растворителя, для запечатывания минеральных оснований
A19: 09351/001 | B19: StoPox MS 200 VAR SET, C1 | C19: DE | D19: 17,5 | E19: кг | F19: Комплект | G19: 0.15 | H19: 0.25 | I19: кг/м² | J19: 2279.256416 | K19: 2735.107699 | L19: 410.2661549 | M19: 47864.38474 | O19: 0 | P19: Н/Д | Q19: Н/Д | R19: 616 | S19: эпоксидная водорастворимая матовая краска. В качестве цветного запечатывающего слоя для полов и стен. Отсутсвует "эффект письма", возможно применение в качестве краски для грифильных досок.
A20: 09351/004 | B20: StoPox MS 200 VAR SET, C1 | C20: DE | D20: 7 | E20: кг | F20: Комплект | G20: 0.15 | H20: 0.25 | I20: кг/м² | J20: 2697.073105 | K20: 3236.487726 | L20: 485.4731589 | M20: 22655.41408 | O20: 0 | P20: Н/Д | Q20: Н/Д | R20: 960
A21: 00557-001 | B21: StoDivers ST | C21: DE | D21: 0,2 | E21: кг | F21: Пласт.мешок | J21: 1048.6 | K21: 1258.32 | L21: 0 | M21: 251.664 | O21: 0 | P21: Н/Д | Q21: Н/Д | R21: 49500 | S21: специальный загуститель, идеален для добавления в напольные покрытия
A22: 00557-002 | B22: StoDivers ST | C22: DE | D22: 10 | E22: шт. | F22: Пласт.мешок | J22: 3377.432428 | K22: 4052.918914 | L22: 0 | M22: 40529.18914 | O22: 0 | P22: Н/Д | Q22: Н/Д | R22: 825
A23: 01144-002 | B23: StoCryl EH 100 | C23: DE | D23: 5 | E23: кг | F23: Канистра | G23: 0.2 | H23: 0.3 | I23: кг/м² | J23: 1167.96789 | K23: 1401.561469 | L23: 280.3122937 | M23: 7007.807343 | O23: 0 | P23: 80 | Q23: 414.8 | R23: 2640 | S23: однокомпонентная грунтовка, для системы "Анти Шип" StoPox EH 200
A24: 01152/001 | B24: StoCrete EH 200 | C24: DE | D24: 30 | E24: кг | F24: Комплект | G24: 3.5 | H24: 4 | I24: кг/м² | J24: 870.5736413 | K24: 1044.68837 | L24: 3656.409294 | M24: 31340.65109 | O24: 0 | P24: Н/Д | Q24: Н/Д | R24: 450 | S24: сверхпрочное полимер-цементное покрытие, имеет высокую устойчивость к шипам, система "Анти Шип".

Sheet 7. Колоранты
A1: Прайс-лист Товаров Продуктовой группы раздела «Колоранты» Цены действительны c 01.10.2021 г.
A2: Артикул | B2: Наименование продукта | C2: Производство | D2: Упаковка | H2: Цена БЕЗ учета НДС за единицу измерения | I2: Цена с НДС за единицу измерения | J2: Цена с НДС за упаковку | K2: Кол-во единиц товара | L2: Сумма заказа с НДС | M2: Кол-во упаковок на паллете, шт. | N2: Вес одного паллето-места (без палеты), кг.
D3: к-во | E3: ед. изм. | F3: литраж | G3: вид упаковки
A4: 06508-005 | B4: Sto-Colorant SBL | C4: DE | D4: 4,577 | E4: кг | F4: 2.3 | G4: Ведро | H4: 7965.8397 | I4: =H4*1.2 -> 9559.00764 | J4: =I4*D4 -> 43751.57797 | L4: =K4*J4 -> 0 | M4: 72 | N4: 338.4
A5: 06516-007 | B5: Sto-Colorant OG | C5: DE | D5: 4,600 | E5: кг | F5: 2.3 | G5: Ведро | H5: 1144.266269 | I5: 1373.119523 | J5: 6316.349806 | L5: =K5*J5 -> 0 | M5: 72 | N5: 345.6
A6: 06517-007 | B6: Colorant G2GXD | C6: DE | D6: 2,714 | E6: кг | F6: 2.3 | G6: Ведро | H6: 3595.900515 | I6: 4315.080619 | J6: 11711.1288 | L6: =K6*J6 -> 0 | M6: 72 | N6: 208.8
A7: 06523-005 | B7: Colorant PG | C7: DE | D7: 1,340 | E7: кг | F7: 1 | G7: Банка | H7: 4802.639477 | I7: 5763.167372 | J7: 7722.644279 | L7: 0 | M7: 270 | N7: 405
A8: 06526-006 | B8: Sto-Colorant CGR | C8: DE | D8: 5,980 | E8: кг | F8: 2.3 | G8: Ведро | H8: 2739.196216 | I8: 3287.035459 | J8: 19656.47204 | L8: 0 | M8: 72 | N8: 439.2
A9: 06531-003 | B9: Sto-Colorant BLU | C9: DE | D9: 1,240 | E9: кг | F9: 1 | G9: Ведро | H9: 4797.736637 | I9: 5757.283965 | J9: 7139.032116 | L9: 0 | M9: 270 | N9: 351
A10: 06532-007 | B10: Sto-Colorant CV | C10: DE | D10: 1,130 | E10: кг | F10: 1 | G10: Ведро | H10: 13251.94991 | I10: 15902.33989 | J10: 17969.64407 | L10: 0 | M10: 270 | N10: 351
A11: 06533-006 | B11: Sto-Colorant KBL | C11: DE | D11: 4,922 | E11: кг | F11: 2.3 | G11: Ведро | H11: 8084.14425 | I11: 9700.9731 | J11: 47748.1896 | L11: 0 | M11: 72 | N11: 367.2
A12: 06536-006 | B12: Sto-Colorant BV | C12: DE | D12: 5,129 | E12: кг | F12: 2.3 | G12: Ведро | H12: 6078.037185 | I12: 7293.644622 | J12: 37409.10327 | L12: 0 | M12: 72 | N12: 374.4
A13: 06547-008 | B13: Sto-Colorant OR | C13: DE | D13: 5,497 | E13: кг | F13: 2.3 | G13: Ведро | H13: 1502.917029 | I13: 1803.500435 | J13: 9913.84189 | L13: 0 | M13: 72 | N13: 417.6
A14: 06548-010 | B14: Colorant OS 530 | C14: DE | D14: 4,140 | E14: кг | F14: 2.3 | G14: Ведро | H14: 1798.609763 | I14: 2158.331716 | J14: 8935.493302 | L14: 0 | M14: 72 | N14: 324
A15: 06550-004 | B15: Colorant TY | C15: DE | D15: 1,500 | E15: кг | F15: 1 | G15: Банка | H15: 5192.25525 | I15: 6230.7063 | J15: 9346.05945 | L15: 0 | M15: 270 | N15: 486
A16: 06552-004 | B16: Sto-Colorant TR | C16: DE | D16: 1,450 | E16: кг | F16: 1 | G16: Банка | H16: 5494.5891 | I16: 6593.50692 | J16: 9560.585034 | L16: 0 | M16: 270 | N16: 405
A17: 06556-007 | B17: Sto-Colorant TW | C17: DE | D17: 5,060 | E17: кг | F17: 2.3 | G17: Ведро | H17: 1853.43795 | I17: 2224.12554 | J17: 11254.07523 | L17: 0 | M17: 72 | N17: 378.72
A18: 06557-008 | B18: Sto-Colorant G100 | C18: DE | D18: 4,968 | E18: кг | F18: 2.3 | G18: Ведро | H18: 1510.956854 | I18: 1813.148224 | J18: 9007.720379 | L18: 0 | M18: 72 | N18: 367.2
A19: 06558-009 | B19: Sto-Colorant CR100 | C19: DE | D19: 5,083 | E19: кг | F19: 2.3 | G19: Ведро | H19: 2979.471876 | I19: 3575.366251 | J19: 18173.58665 | L19: 0 | M19: 75 | N19: 390
A20: 06560-008 | B20: Sto-Colorant CS | C20: DE | D20: 2,898 | E20: кг | F20: 2.3 | G20: Ведро | H20: 1868.008952 | I20: 2241.610742 | J20: 6496.187932 | L20: 0 | M20: 72 | N20: 217.44
A21: 16547-004 | B21: Colorant ROSA E | C21: DE | D21: 1,080 | E21: кг | F21: 1 | G21: Банка | H21: 7437.795652 | I21: 8925.354782 | J21: 9639.383165 | L21: 0 | M21: 270 | N21: 345.6
A22: 16576-001 | B22: Sto-Colorant SGN | C22: DE | D22: 5,000 | E22: кг | F22: 5 | G22: Ведро | H22: 16615.2168 | I22: 19938.26016 | J22: 99691.3008 | L22: 0 | M22: 270 | N22: 388.8
A23: 16580-002 | B23: Sto-Colorant PO2 R | C23: DE | D23: 1,750 | E23: кг | F23: 1 | G23: Банка | H23: 2049.067075 | I23: 2458.88049 | J23: 4303.040857 | L23: 0 | M23: 270 | N23: 513
A24: 06519-004 | B24: Sto-Colorant FGR | C24: DE | D24: 1,200 | E24: кг | F24: 1 | G24: Банка | H24: 4203.52 | I24: 5044.224 | J24: 6053.0688 | L24: 0 | M24: 270 | N24: 405

Sheet 8. Надбавки
A1: Прайс-лист на надбавки за тонирование Товара Цены действительны c 01.10.2021 г.
A2: Таблица надбавок к ценам на колерованные материалы
A4: Единицы измерения материала
B5: С2 | C5: С3 | D5: С4
B6: Фиксированная надбавка* к С1 | C6: Фиксированная надбавка* к С1 | D6: Фиксированная надбавка*
B7: в руб. без учета НДС (с НДС) | C7: в руб. без учета НДС (с НДС) | D7: в руб. без учета НДС (с НДС)
A8: килограмм | B8: 37,00 р. (44,40 р. с НДС) / кг | C8: 62,00 р. (74,40 р. с НДС)/ кг | D8: по запросу / кг
A9: литр | B9: 74,00 р. (88,80 р. с НДС) / л | C9: 124,00 р. (148,80 р. с НДС)/ л | D9: по запросу / л
A11: Таблица надбавок к ценам на колерованные материалы StoCalce Marmorino, StoCalce Effetto, StoCalce Fondo
A13: Единицы измерения материала
B14: С2 | C14: С3 | D14: С4
B15: Фиксированная надбавка* к С1 | C15: Фиксированная надбавка* к С1 | D15: Фиксированная надбавка*
B16: в руб. без учета НДС | C16: в руб. без учета НДС | D16: в руб. без учета НДС
A17: килограмм | B17: 74,00 р. (88,80 р. с НДС) / кг | C17: 124,00 р. (148,80 р. с НДС)/ кг | D17: по запросу / кг
A19: * ) нетто-цена / окончательный размер надбавки. Скидки не распространяются.
A20: Окончательная цена материала = цена за колерованный материал + фиксированная надбавка за тонирование.
A21: Внимание! Определенные нестандартные цветовые тона относятся к классу С4, не указанному в колеровочной карте.
A22: Подробно согласовывайте спецификации с менеджерами по продажам.
D40: 25
E447: 7.3

Sheet Транспортные услуги 2021
C1: со склада Видное | E1: со склада Орёл | G1: со склада Германия
B3: Вознаграждение за транспортно-экспедиционные услуги ООО"СТО"
C4: Транспортные услуги - поставки со склада г. Видное | E4: Транспортные услуги - поставки со склада г. Орёл | G4: Транспортные услуги - прямые поставки Германия (79+78) - регионы России
C5: Стоимость доставки со складов ООО "СТО". Расчет при полной загрузке 20-тн машины. Ставки указаны в руб. с НДС. | E5: Стоимость доставки со складов ООО "СТО". Расчет при полной загрузке 20-тн машины. Ставки указаны в руб. с НДС. | G5: Стоимость доставки со склада Sto (Германия) - регионы РФ. Расчет при полной загрузке 20-тн машины. Ставки указаны в евро с НДС
C6: Условия и сроки поставки товара со склада Sto (Видное): | E6: Условия и сроки поставки товара со склада Sto (Видное): | G6: Условия и сроки поставки товара со склада Sto (Германия):
C7: 1. При заказе продукции больше текущего запаса на складе дозаказ/внутреннее перемещение согласовывается с Покупателем дополнительно. | E7: 1. При заказе продукции больше текущего запаса на складе дозаказ/внутреннее перемещение согласовывается с Покупателем дополнительно. | G7: 1. Размещение заказа в Германии - за 10-14 календарных дней до планируемой даты отгрузки
C8: 2. Отгрузка товаров через транспортные компании – в течение 3-х рабочих дней. | E8: 2. Отгрузка товаров через транспортные компании – в течение 3-х рабочих дней. | G8: 2. Отгрузка только полными 20-тн машинами
C9: 3. Продукты торговых марок Sto и STOMIX требуют соблюдения температурного режима перевозки. Период с ноября по конец марта для перевозок используются РЭФы (температурный режим +6 +8), с апреля по конец ноября - тенты. | E9: 3. Продукты торговых марок Sto и STOMIX требуют соблюдения температурного режима перевозки. Период с ноября по конец марта для перевозок используются РЭФы (температурный режим +6 +8), с апреля по конец ноября - тенты. | G9: 3. Заказ транспорта и согласование даты отгрузки - за 7 календарных дней до планируемой даты отгрузки
C10: 4. Вознаграждение Поставщику уплачивается Покупателем в размере 100%, указанной в счете отдельной строкой. | E10: 4. Вознаграждение Поставщику уплачивается Покупателем в размере 100%, указанной в счете отдельной строкой. | G10: 4. Транзитное время + растамаживание груза - 9-10 календарных дней
G11: 5. Доставка до региона - дополнительно 1-3 календарных дня в зависимости от местонахождения склада Покупателя
G12: 6. Стоимость доставки выставляется в счете отдельной строкой в рублях по курсу на день выставления счета
C13: Откуда
C14: Видное | E14: Орёл | G14: Германия
B15: куда | C15: стоимость в руб. с НДС | E15: стоимость в руб. с НДС | G15: стоимость в евро с НДС
C16: тент | D16: реф | E16: тент | F16: реф | G16: тент | H16: реф
B17: г. Калуга | C17: 22000 | D17: 29000 | E17: 28800 | F17: 36000 | G17: 100 | H17: 300
B18: г. Тула | C18: 22000 | D18: 29000 | E18: 24000 | F18: 34800 | G18: 250 | H18: 450
B19: г. Рязань | C19: 22000 | D19: 29000 | E19: 30000 | F19: 38400 | G19: 300 | H19: 500
B20: г. Тамбов | C20: 34000 | D20: 41000 | E20: 36000 | F20: 40800 | G20: 500 | H20: 700
B21: г. Ярославль | C21: 29000 | D21: 33500 | E21: 48000 | F21: 54000 | G21: по запросу | H21: по запросу
B22: г. Истра | C22: 17000 | D22: 19200 | E22: 30000 | F22: 38400 | G22: по запросу | H22: по запросу
B23: г. Дубна МО | C23: 21000 | D23: 24000 | E23: 38400 | F23: 50400 | G23: по запросу | H23: по запросу
B24: г. Владимир | C24: 22000 | D24: 26000 | E24: 42000 | F24: 45600 | G24: по запросу | H24: по запросу
B25: г. Белгород | C25: 38000 | D25: 45000 | E25: 27600 | F25: 30000 | G25: по запросу | H25: по запросу
B26: г. Курск | C26: 30000 | D26: 35000 | E26: 19500 | F26: 22000 | G26: по запросу | H26: по запросу
B27: г. Липецк | C27: 32000 | D27: 37000 | E27: 27600 | F27: 30000 | G27: по запросу | H27: по запросу
B28: г. Воронеж | C28: 35000 | D28: 42000 | E28: 30000 | F28: 36000 | G28: по запросу | H28: по запросу
B29: г. Брянск | C29: 36000 | D29: 43500 | E29: 18000 | F29: 24500 | G29: по запросу | H29: по запросу
B30: г. Смоленск | C30: 34000 | D30: 41000 | E30: 27600 | F30: 32000 | G30: по запросу | H30: по запросу
B31: г. Ростов на Дону | C31: 78000 | D31: 93600 | E31: 79000 | F31: 93600 | G31: 800 | H31: 1000
B32: г. Краснодар | C32: 91000 | D32: 109000 | E32: 94000 | F32: 112800 | G32: 1000 | H32: 1200
B33: г. Ставрополь | C33: 98800 | D33: 117500 | E33: 100000 | F33: 117600 | G33: 1050 | H33: 1250
B34: г. Сочи | C34: 138000 | D34: 165500 | E34: 138000 | F34: 148000 | G34: 1100 | H34: 1300
B35: г. Чебоксары | C35: 57000 | D35: 64000 | E35: 88000 | F35: 96000 | G35: по запросу | H35: по запросу
B36: г. Казань | C36: 60000 | D36: 72000 | E36: 88000 | F36: 103200 | G36: 800 | H36: 1100
B37: г. Самара | C37: 71400 | D37: 85500 | E37: 81000 | F37: 98400 | G37: 1000 | H37: 1300
B38: г. Ульяновск | C38: 67000 | D38: 79000 | E38: 83000 | F38: 89000 | G38: 850 | H38: 1150
B39: г. Санкт-Петербург | C39: 38000 | D39: 45000 | E39: 72000 | F39: 79000 | G39: по запросу | H39: по запросу
B40: г. Орел | C40: 28000 | D40: 33500 | E40: 30000 | F40: 36000 | G40: по запросу | H40: по запросу
B41: г. Нижний Новгород | C41: 32000 | D41: 38000 | E41: 48000 | F41: 57600 | G41: по запросу | H41: по запросу
B42: г. Екатеринбург | C42: 126000 | D42: 151000 | E42: 140400 | F42: 158000 | G42: по запросу | H42: по запросу
B43: г. Уфа | C43: 115000 | D43: 127000 | E43: 98000 | F43: 115000 | G43: по запросу | H43: по запросу
B44: г. Пермь | C44: 115000 | D44: 127000 | E44: 110000 | F44: 129000 | G44: по запросу | H44: по запросу
B45: г. Новосибирск | C45: 192000 | D45: 231000 | E45: 230000 | F45: 252000 | G45: по запросу | H45: по запросу
